{"text_format":"3","workbook":"xlsx","n_sheets":5,"sheets":["ALKU","SUUNNITELLUT KULUT","TODELLISET KULUT","KUSTANNUSPOIKKEAMAT","KULUANALYYSI"],"not_rendered":{"charts":3,"images":3,"defined_names":1},"read":"whole","date_system":"1900"}

{"sheet":"ALKU","index":0,"n_rows":8,"n_cols":2,"rows_kept":8}
[null,"TIETOJA TÄSTÄ MALLISTA"]
[null,"Tämän Liiketoiminnan kulubudjetti -työkirjan avulla voit seurata suunniteltuja ja todellisia kuluja sekä kustannuspoikkeamia."]
[null,"Kirjoita yrityksen nimi ja lisää logo."]
[null,"Kirjoita tiedot Suunnitellut kulut- ja Todelliset kulut -laskentataulukoihin."]
[null,"Kustannuspoikkeamat-laskentataulukon taulukot ja Kuluanalyysi-laskentataulukon kaaviot päivittyvät automaattisesti."]
[null,"Huomautus: "]
[null,"Kunkin laskentataulukon sarakkeessa A annetaan lisäohjeita. Tämä teksti on piilotettu tarkoituksella. Jos haluat poistaa tekstin, valitse sarake A ja valitse sitten POISTA. Jos haluat tuoda tekstin näkyviin, valitse sarake A ja muuta sitten fonttiväriä."]
[null,"Jos haluat lisätietoja taulukoista, paina VAIHTO ja F10 taulukossa, valitse TAULUKKO-kohta ja valitse sitten VAIHTOEHTOINEN TEKSTI."]

{"sheet":"SUUNNITELLUT KULUT","index":1,"n_rows":37,"n_cols":18,"rows_kept":37,"merged":[[1,1,2,3],[1,10,1,12],[1,13,2,14],[2,10,2,12],[3,17,12,19],[8,1,8,2],[19,1,19,2],[28,1,28,2],[33,1,33,2]]}
["Kirjoita suunnitellut työntekijäkulut, toimistokulut, markkinointikulut ja koulutus- tai matkakulut tämän laskentataulukon taulukoihin. Summa lasketaan automaattisesti. Tämän sarakkeen soluissa on hyödyllisiä ohjeita tämän laskentataulukon käyttöön. Aloita siirtymällä nuolella alaspäin.",{"$nulls":14}," "]
["Kirjoita yrityksen nimi oikealla olevaan soluun ja lisää logo soluun N2. Tämän laskentataulukon otsikko on solussa K2.","Yrityksen nimi",{"$nulls":8},"Yksityiskohtaiset kuluarviot",null,null,"Logon paikkamerkki on tässä solussa."]
["Solussa K3 on vihje.",{"$nulls":9},"Varjostetut solut ovat laskutoimituksia."]
["Suunnitellut kulut -otsikko on oikealla olevassa solussa, kuukaudet soluissa C4–N4, Vuosi-otsikko solussa O4 ja tämän mallin käyttöohjeet solussa R4.","SUUNNITELLUT KULUT","TAMMI","HELMI","MAALIS","HUHTI","TOUKO","KESÄ","HEINÄ","ELO","SYYS","LOKA","MARRAS","JOULU","VUOSI",null,null,"Vihje: TÄMÄN MALLIN KÄYTTÖ\nSyötä tiedot SUUNNITELLUT KULUT- ja TODELLISET KULUT -laskentataulukoiden valkoisiin soluihin ja KUSTANNUSPOIKKEAMAT ja KULUANALYYSI lasketaan automaattisesti. Jos lisäät rivin yhteen taulukkoon, muiden taulukoiden on oltava yhteensopivat."]
["Kirjoita työntekijäkulut Työntekijäsuunniteltu-taulukkoon oikealla olevasta solusta aloittaen. Seuraava ohje on solussa A10.","Työntekijäkulut","Tammi","Helmi","Maalis","Huhti","Touko","Kesä","Heinä","Elo","Syys","Loka","Marras","Joulu","VUOSI"]
[null,"Palkat",{"v":85000,"d":"85,000.00 €"},{"v":85000,"d":"85,000.00 €"},{"v":85000,"d":"85,000.00 €"},{"v":87500,"d":"87,500.00 €"},{"v":87500,"d":"87,500.00 €"},{"v":87500,"d":"87,500.00 €"},{"v":87500,"d":"87,500.00 €"},{"v":92400,"d":"92,400.00 €"},{"v":92400,"d":"92,400.00 €"},{"v":92400,"d":"92,400.00 €"},{"v":92400,"d":"92,400.00 €"},{"v":92400,"d":"92,400.00 €"},{"$f":"SUM(C6:N6)","v":{"v":1067000,"d":"1,067,000.00 €"}}]
[null,"Edut",{"$f":"C6*0.27","v":{"v":22950,"d":"22,950.00 €"}},{"v":22950,"d":"22,950.00 €"},{"v":22950,"d":"22,950.00 €"},{"v":23625,"d":"23,625.00 €"},{"v":23625,"d":"23,625.00 €"},{"v":23625,"d":"23,625.00 €"},{"v":23625,"d":"23,625.00 €"},{"v":24948,"d":"24,948.00 €"},{"v":24948,"d":"24,948.00 €"},{"v":24948,"d":"24,948.00 €"},{"v":24948,"d":"24,948.00 €"},{"v":24948,"d":"24,948.00 €"},{"$f":"SUM(C7:N7)","v":{"v":288090,"d":"288,090.00 €"}}]
[null,"Välisumma",{"$f":"SUBTOTAL(109,TyöntekijäSuunniteltu[Tammi])","v":{"v":107950,"d":"107,950.00 €"}},{"$f":"SUBTOTAL(109,TyöntekijäSuunniteltu[Helmi])","v":{"v":107950,"d":"107,950.00 €"}},{"$f":"SUBTOTAL(109,TyöntekijäSuunniteltu[Maalis])","v":{"v":107950,"d":"107,950.00 €"}},{"$f":"SUBTOTAL(109,TyöntekijäSuunniteltu[Huhti])","v":{"v":111125,"d":"111,125.00 €"}},{"$f":"SUBTOTAL(109,TyöntekijäSuunniteltu[Touko])","v":{"v":111125,"d":"111,125.00 €"}},{"$f":"SUBTOTAL(109,TyöntekijäSuunniteltu[Kesä])","v":{"v":111125,"d":"111,125.00 €"}},{"$f":"SUBTOTAL(109,TyöntekijäSuunniteltu[Heinä])","v":{"v":111125,"d":"111,125.00 €"}},{"$f":"SUBTOTAL(109,TyöntekijäSuunniteltu[Elo])","v":{"v":117348,"d":"117,348.00 €"}},{"$f":"SUBTOTAL(109,TyöntekijäSuunniteltu[Syys])","v":{"v":117348,"d":"117,348.00 €"}},{"$f":"SUBTOTAL(109,TyöntekijäSuunniteltu[Loka])","v":{"v":117348,"d":"117,348.00 €"}},{"$f":"SUBTOTAL(109,TyöntekijäSuunniteltu[Marras])","v":{"v":117348,"d":"117,348.00 €"}},{"$f":"SUBTOTAL(109,TyöntekijäSuunniteltu[Joulu])","v":{"v":117348,"d":"117,348.00 €"}},{"$f":"SUBTOTAL(109,TyöntekijäSuunniteltu[VUOSI])","v":{"v":1355090,"d":"1,355,090.00 €"}}]
[]
["Kirjoita toimistokulut Toimistosuunniteltu-taulukkoon oikealla olevasta solusta aloittaen. Seuraava ohje on solussa A21.","Toimistokulut","Tammi","Helmi","Maalis","Huhti","Touko","Kesä","Heinä","Elo","Syys","Loka","Marras","Joulu","VUOSI"]
[null,"Toimiston vuokra",{"v":9800,"d":"9,800.00 €"},{"v":9800,"d":"9,800.00 €"},{"v":9800,"d":"9,800.00 €"},{"v":9800,"d":"9,800.00 €"},{"v":9800,"d":"9,800.00 €"},{"v":9800,"d":"9,800.00 €"},{"v":9800,"d":"9,800.00 €"},{"v":9800,"d":"9,800.00 €"},{"v":9800,"d":"9,800.00 €"},{"v":9800,"d":"9,800.00 €"},{"v":9800,"d":"9,800.00 €"},{"v":9800,"d":"9,800.00 €"},{"$f":"SUM(C11:N11)","v":{"v":117600,"d":"117,600.00 €"}}]
[null,"Lämmitys",null,{"v":400,"d":"400.00 €"},{"v":400,"d":"400.00 €"},{"v":100,"d":"100.00 €"},{"v":100,"d":"100.00 €"},{"v":100,"d":"100.00 €"},{"v":100,"d":"100.00 €"},{"v":100,"d":"100.00 €"},{"v":100,"d":"100.00 €"},{"v":100,"d":"100.00 €"},{"v":400,"d":"400.00 €"},{"v":400,"d":"400.00 €"},{"v":2300,"d":"2,300.00 €"}]
[null,"Sähkö",{"v":300,"d":"300.00 €"},{"v":300,"d":"300.00 €"},{"v":300,"d":"300.00 €"},{"v":300,"d":"300.00 €"},{"v":300,"d":"300.00 €"},{"v":300,"d":"300.00 €"},{"v":300,"d":"300.00 €"},{"v":300,"d":"300.00 €"},{"v":300,"d":"300.00 €"},{"v":300,"d":"300.00 €"},{"v":300,"d":"300.00 €"},{"v":300,"d":"300.00 €"},{"v":3600,"d":"3,600.00 €"}]
[null,"Vesi",{"v":40,"d":"40.00 €"},{"v":40,"d":"40.00 €"},{"v":40,"d":"40.00 €"},{"v":40,"d":"40.00 €"},{"v":40,"d":"40.00 €"},{"v":40,"d":"40.00 €"},{"v":40,"d":"40.00 €"},{"v":40,"d":"40.00 €"},{"v":40,"d":"40.00 €"},{"v":40,"d":"40.00 €"},{"v":40,"d":"40.00 €"},{"v":40,"d":"40.00 €"},{"v":480,"d":"480.00 €"}]
[null,"Puhelin",{"v":250,"d":"250.00 €"},{"v":250,"d":"250.00 €"},{"v":250,"d":"250.00 €"},{"v":250,"d":"250.00 €"},{"v":250,"d":"250.00 €"},{"v":250,"d":"250.00 €"},{"v":250,"d":"250.00 €"},{"v":250,"d":"250.00 €"},{"v":250,"d":"250.00 €"},{"v":250,"d":"250.00 €"},{"v":250,"d":"250.00 €"},{"v":250,"d":"250.00 €"},{"v":3000,"d":"3,000.00 €"}]
[null,"Internet-yhteys",{"v":180,"d":"180.00 €"},{"v":180,"d":"180.00 €"},{"v":180,"d":"180.00 €"},{"v":180,"d":"180.00 €"},{"v":180,"d":"180.00 €"},{"v":180,"d":"180.00 €"},{"v":180,"d":"180.00 €"},{"v":180,"d":"180.00 €"},{"v":180,"d":"180.00 €"},{"v":180,"d":"180.00 €"},{"v":180,"d":"180.00 €"},{"v":180,"d":"180.00 €"},{"v":2160,"d":"2,160.00 €"}]
[null,"Toimistotarvikkeet",{"v":200,"d":"200.00 €"},{"v":200,"d":"200.00 €"},{"v":200,"d":"200.00 €"},{"v":200,"d":"200.00 €"},{"v":200,"d":"200.00 €"},{"v":200,"d":"200.00 €"},{"v":200,"d":"200.00 €"},{"v":200,"d":"200.00 €"},{"v":200,"d":"200.00 €"},{"v":200,"d":"200.00 €"},{"v":200,"d":"200.00 €"},{"v":200,"d":"200.00 €"},{"v":2400,"d":"2,400.00 €"}]
[null,"Tietoturva",{"v":600,"d":"600.00 €"},{"v":600,"d":"600.00 €"},{"v":600,"d":"600.00 €"},{"v":600,"d":"600.00 €"},{"v":600,"d":"600.00 €"},{"v":600,"d":"600.00 €"},{"v":600,"d":"600.00 €"},{"v":600,"d":"600.00 €"},{"v":600,"d":"600.00 €"},{"v":600,"d":"600.00 €"},{"v":600,"d":"600.00 €"},{"v":600,"d":"600.00 €"},{"v":7200,"d":"7,200.00 €"}]
[null,"Välisumma",{"$f":"SUBTOTAL(109,ToimistoSuunniteltu[Tammi])","v":{"v":11370,"d":"11,370.00 €"}},{"$f":"SUBTOTAL(109,ToimistoSuunniteltu[Helmi])","v":{"v":11770,"d":"11,770.00 €"}},{"$f":"SUBTOTAL(109,ToimistoSuunniteltu[Maalis])","v":{"v":11770,"d":"11,770.00 €"}},{"$f":"SUBTOTAL(109,ToimistoSuunniteltu[Huhti])","v":{"v":11470,"d":"11,470.00 €"}},{"$f":"SUBTOTAL(109,ToimistoSuunniteltu[Touko])","v":{"v":11470,"d":"11,470.00 €"}},{"$f":"SUBTOTAL(109,ToimistoSuunniteltu[Kesä])","v":{"v":11470,"d":"11,470.00 €"}},{"$f":"SUBTOTAL(109,ToimistoSuunniteltu[Heinä])","v":{"v":11470,"d":"11,470.00 €"}},{"$f":"SUBTOTAL(109,ToimistoSuunniteltu[Elo])","v":{"v":11470,"d":"11,470.00 €"}},{"$f":"SUBTOTAL(109,ToimistoSuunniteltu[Syys])","v":{"v":11470,"d":"11,470.00 €"}},{"$f":"SUBTOTAL(109,ToimistoSuunniteltu[Loka])","v":{"v":11470,"d":"11,470.00 €"}},{"$f":"SUBTOTAL(109,ToimistoSuunniteltu[Marras])","v":{"v":11770,"d":"11,770.00 €"}},{"$f":"SUBTOTAL(109,ToimistoSuunniteltu[Joulu])","v":{"v":11770,"d":"11,770.00 €"}},{"$f":"SUBTOTAL(109,ToimistoSuunniteltu[VUOSI])","v":{"v":138740,"d":"138,740.00 €"}}]
[]
["Kirjoita markkinointikulut Markkinointisuunniteltu-taulukkoon oikealla olevasta solusta aloittaen. Seuraava ohje on solussa A30.","Markkinointikulut","Tammi","Helmi","Maalis","Huhti","Touko","Kesä","Heinä","Elo","Syys","Loka","Marras","Joulu","VUOSI"]
[null,"Verkkosivuston isännöinti",{"v":500,"d":"500.00 €"},{"v":500,"d":"500.00 €"},{"v":500,"d":"500.00 €"},{"v":500,"d":"500.00 €"},{"v":500,"d":"500.00 €"},{"v":500,"d":"500.00 €"},{"v":500,"d":"500.00 €"},{"v":500,"d":"500.00 €"},{"v":500,"d":"500.00 €"},{"v":500,"d":"500.00 €"},{"v":500,"d":"500.00 €"},{"v":500,"d":"500.00 €"},{"$f":"SUM(C22:N22)","v":{"v":6000,"d":"6,000.00 €"}}]
[null,"Verkkosivuston päivitykset",{"v":200,"d":"200.00 €"},{"v":200,"d":"200.00 €"},{"v":200,"d":"200.00 €"},{"v":200,"d":"200.00 €"},{"v":200,"d":"200.00 €"},{"v":1000,"d":"1,000.00 €"},{"v":200,"d":"200.00 €"},{"v":200,"d":"200.00 €"},{"v":200,"d":"200.00 €"},{"v":200,"d":"200.00 €"},{"v":200,"d":"200.00 €"},{"v":1000,"d":"1,000.00 €"},{"v":4000,"d":"4,000.00 €"}]
[null,"Oheismateriaalin valmistelu",{"v":5000,"d":"5,000.00 €"},{"v":0,"d":"0.00 €"},{"v":0,"d":"0.00 €"},{"v":5000,"d":"5,000.00 €"},{"v":0,"d":"0.00 €"},{"v":0,"d":"0.00 €"},{"v":5000,"d":"5,000.00 €"},{"v":0,"d":"0.00 €"},{"v":0,"d":"0.00 €"},{"v":5000,"d":"5,000.00 €"},{"v":0,"d":"0.00 €"},{"v":0,"d":"0.00 €"},{"v":20000,"d":"20,000.00 €"}]
[null,"Oheismateriaalin tulostaminen",{"v":200,"d":"200.00 €"},{"v":200,"d":"200.00 €"},{"v":200,"d":"200.00 €"},{"v":200,"d":"200.00 €"},{"v":200,"d":"200.00 €"},{"v":200,"d":"200.00 €"},{"v":200,"d":"200.00 €"},{"v":200,"d":"200.00 €"},{"v":200,"d":"200.00 €"},{"v":200,"d":"200.00 €"},{"v":200,"d":"200.00 €"},{"v":200,"d":"200.00 €"},{"v":2400,"d":"2,400.00 €"}]
[null,"Markkinointitapahtumat",{"v":2000,"d":"2,000.00 €"},{"v":2000,"d":"2,000.00 €"},{"v":2000,"d":"2,000.00 €"},{"v":5000,"d":"5,000.00 €"},{"v":2000,"d":"2,000.00 €"},{"v":2000,"d":"2,000.00 €"},{"v":2000,"d":"2,000.00 €"},{"v":5000,"d":"5,000.00 €"},{"v":2000,"d":"2,000.00 €"},{"v":2000,"d":"2,000.00 €"},{"v":2000,"d":"2,000.00 €"},{"v":5000,"d":"5,000.00 €"},{"v":33000,"d":"33,000.00 €"}]
[null,"Sekalaiset kulut",{"v":200,"d":"200.00 €"},{"v":200,"d":"200.00 €"},{"v":200,"d":"200.00 €"},{"v":200,"d":"200.00 €"},{"v":200,"d":"200.00 €"},{"v":200,"d":"200.00 €"},{"v":200,"d":"200.00 €"},{"v":200,"d":"200.00 €"},{"v":200,"d":"200.00 €"},{"v":200,"d":"200.00 €"},{"v":200,"d":"200.00 €"},{"v":200,"d":"200.00 €"},{"v":2400,"d":"2,400.00 €"}]
[null,"Välisumma",{"$f":"SUBTOTAL(109,MarkkinointiSuunniteltu[Tammi])","v":{"v":8100,"d":"8,100.00 €"}},{"$f":"SUBTOTAL(109,MarkkinointiSuunniteltu[Helmi])","v":{"v":3100,"d":"3,100.00 €"}},{"$f":"SUBTOTAL(109,MarkkinointiSuunniteltu[Maalis])","v":{"v":3100,"d":"3,100.00 €"}},{"$f":"SUBTOTAL(109,MarkkinointiSuunniteltu[Huhti])","v":{"v":11100,"d":"11,100.00 €"}},{"$f":"SUBTOTAL(109,MarkkinointiSuunniteltu[Touko])","v":{"v":3100,"d":"3,100.00 €"}},{"$f":"SUBTOTAL(109,MarkkinointiSuunniteltu[Kesä])","v":{"v":3900,"d":"3,900.00 €"}},{"$f":"SUBTOTAL(109,MarkkinointiSuunniteltu[Heinä])","v":{"v":8100,"d":"8,100.00 €"}},{"$f":"SUBTOTAL(109,MarkkinointiSuunniteltu[Elo])","v":{"v":6100,"d":"6,100.00 €"}},{"$f":"SUBTOTAL(109,MarkkinointiSuunniteltu[Syys])","v":{"v":3100,"d":"3,100.00 €"}},{"$f":"SUBTOTAL(109,MarkkinointiSuunniteltu[Loka])","v":{"v":8100,"d":"8,100.00 €"}},{"$f":"SUBTOTAL(109,MarkkinointiSuunniteltu[Marras])","v":{"v":3100,"d":"3,100.00 €"}},{"$f":"SUBTOTAL(109,MarkkinointiSuunniteltu[Joulu])","v":{"v":6900,"d":"6,900.00 €"}},{"$f":"SUBTOTAL(109,MarkkinointiSuunniteltu[VUOSI])","v":{"v":67800,"d":"67,800.00 €"}}]
[]
["Kirjoita koulutus- ja matkakulut Koulutusjamatkasuunniteltu -taulukkoon oikealla olevasta solusta aloittaen. Seuraava ohje on solussa A35.","Koulutus/matka","Tammi","Helmi","Maalis","Huhti","Touko","Kesä","Heinä","Elo","Syys","Loka","Marras","Joulu","VUOSI"]
[null,"Koulutuskurssit",{"v":2000,"d":"2,000.00 €"},{"v":2000,"d":"2,000.00 €"},{"v":2000,"d":"2,000.00 €"},{"v":2000,"d":"2,000.00 €"},{"v":2000,"d":"2,000.00 €"},{"v":2000,"d":"2,000.00 €"},{"v":2000,"d":"2,000.00 €"},{"v":2000,"d":"2,000.00 €"},{"v":2000,"d":"2,000.00 €"},{"v":2000,"d":"2,000.00 €"},{"v":2000,"d":"2,000.00 €"},{"v":2000,"d":"2,000.00 €"},{"$f":"SUM(C31:N31)","v":{"v":24000,"d":"24,000.00 €"}}]
[null,"Koulutukseen liittyvät matkakulut",{"v":2000,"d":"2,000.00 €"},{"v":2000,"d":"2,000.00 €"},{"v":2000,"d":"2,000.00 €"},{"v":2000,"d":"2,000.00 €"},{"v":2000,"d":"2,000.00 €"},{"v":2000,"d":"2,000.00 €"},{"v":2000,"d":"2,000.00 €"},{"v":2000,"d":"2,000.00 €"},{"v":2000,"d":"2,000.00 €"},{"v":2000,"d":"2,000.00 €"},{"v":2000,"d":"2,000.00 €"},{"v":2000,"d":"2,000.00 €"},{"$f":"SUM(C32:N32)","v":{"v":24000,"d":"24,000.00 €"}}]
[null,"Välisumma",{"$f":"SUBTOTAL(109,KoulutusJaMatkaSuunniteltu[Tammi])","v":{"v":4000,"d":"4,000.00 €"}},{"$f":"SUBTOTAL(109,KoulutusJaMatkaSuunniteltu[Helmi])","v":{"v":4000,"d":"4,000.00 €"}},{"$f":"SUBTOTAL(109,KoulutusJaMatkaSuunniteltu[Maalis])","v":{"v":4000,"d":"4,000.00 €"}},{"$f":"SUBTOTAL(109,KoulutusJaMatkaSuunniteltu[Huhti])","v":{"v":4000,"d":"4,000.00 €"}},{"$f":"SUBTOTAL(109,KoulutusJaMatkaSuunniteltu[Touko])","v":{"v":4000,"d":"4,000.00 €"}},{"$f":"SUBTOTAL(109,KoulutusJaMatkaSuunniteltu[Kesä])","v":{"v":4000,"d":"4,000.00 €"}},{"$f":"SUBTOTAL(109,KoulutusJaMatkaSuunniteltu[Heinä])","v":{"v":4000,"d":"4,000.00 €"}},{"$f":"SUBTOTAL(109,KoulutusJaMatkaSuunniteltu[Elo])","v":{"v":4000,"d":"4,000.00 €"}},{"$f":"SUBTOTAL(109,KoulutusJaMatkaSuunniteltu[Syys])","v":{"v":4000,"d":"4,000.00 €"}},{"$f":"SUBTOTAL(109,KoulutusJaMatkaSuunniteltu[Loka])","v":{"v":4000,"d":"4,000.00 €"}},{"$f":"SUBTOTAL(109,KoulutusJaMatkaSuunniteltu[Marras])","v":{"v":4000,"d":"4,000.00 €"}},{"$f":"SUBTOTAL(109,KoulutusJaMatkaSuunniteltu[Joulu])","v":{"v":4000,"d":"4,000.00 €"}},{"$f":"SUBTOTAL(109,KoulutusJaMatkaSuunniteltu[VUOSI])","v":{"v":48000,"d":"48,000.00 €"}}]
[]
["Summa lasketaan automaattisesti Suunniteltu yhteissumma -taulukkoon oikealla olevasta solusta aloittaen.","SUMMA","Tammi","Helmi","Maalis","Huhti","Touko","Kesä","Heinä","Elo","Syys","Loka","Marras","Joulu","Vuosi"]
[null,"Kuukausittaiset suunnitellut kulut",{"$f":"KoulutusJaMatkaSuunniteltu[[#Totals],[Tammi]]+MarkkinointiSuunniteltu[[#Totals],[Tammi]]+ToimistoSuunniteltu[[#Totals],[Tammi]]+TyöntekijäSuunniteltu[[#Totals],[Tammi]]","v":{"v":131420,"d":"131,420.00 €"}},{"$f":"KoulutusJaMatkaSuunniteltu[[#Totals],[Helmi]]+MarkkinointiSuunniteltu[[#Totals],[Helmi]]+ToimistoSuunniteltu[[#Totals],[Helmi]]+TyöntekijäSuunniteltu[[#Totals],[Helmi]]","v":{"v":126820,"d":"126,820.00 €"}},{"$f":"KoulutusJaMatkaSuunniteltu[[#Totals],[Maalis]]+MarkkinointiSuunniteltu[[#Totals],[Maalis]]+ToimistoSuunniteltu[[#Totals],[Maalis]]+TyöntekijäSuunniteltu[[#Totals],[Maalis]]","v":{"v":126820,"d":"126,820.00 €"}},{"$f":"KoulutusJaMatkaSuunniteltu[[#Totals],[Huhti]]+MarkkinointiSuunniteltu[[#Totals],[Huhti]]+ToimistoSuunniteltu[[#Totals],[Huhti]]+TyöntekijäSuunniteltu[[#Totals],[Huhti]]","v":{"v":137695,"d":"137,695.00 €"}},{"$f":"KoulutusJaMatkaSuunniteltu[[#Totals],[Touko]]+MarkkinointiSuunniteltu[[#Totals],[Touko]]+ToimistoSuunniteltu[[#Totals],[Touko]]+TyöntekijäSuunniteltu[[#Totals],[Touko]]","v":{"v":129695,"d":"129,695.00 €"}},{"$f":"KoulutusJaMatkaSuunniteltu[[#Totals],[Kesä]]+MarkkinointiSuunniteltu[[#Totals],[Kesä]]+ToimistoSuunniteltu[[#Totals],[Kesä]]+TyöntekijäSuunniteltu[[#Totals],[Kesä]]","v":{"v":130495,"d":"130,495.00 €"}},{"$f":"KoulutusJaMatkaSuunniteltu[[#Totals],[Heinä]]+MarkkinointiSuunniteltu[[#Totals],[Heinä]]+ToimistoSuunniteltu[[#Totals],[Heinä]]+TyöntekijäSuunniteltu[[#Totals],[Heinä]]","v":{"v":134695,"d":"134,695.00 €"}},{"$f":"KoulutusJaMatkaSuunniteltu[[#Totals],[Elo]]+MarkkinointiSuunniteltu[[#Totals],[Elo]]+ToimistoSuunniteltu[[#Totals],[Elo]]+TyöntekijäSuunniteltu[[#Totals],[Elo]]","v":{"v":138918,"d":"138,918.00 €"}},{"$f":"KoulutusJaMatkaSuunniteltu[[#Totals],[Syys]]+MarkkinointiSuunniteltu[[#Totals],[Syys]]+ToimistoSuunniteltu[[#Totals],[Syys]]+TyöntekijäSuunniteltu[[#Totals],[Syys]]","v":{"v":135918,"d":"135,918.00 €"}},{"$f":"KoulutusJaMatkaSuunniteltu[[#Totals],[Loka]]+MarkkinointiSuunniteltu[[#Totals],[Loka]]+ToimistoSuunniteltu[[#Totals],[Loka]]+TyöntekijäSuunniteltu[[#Totals],[Loka]]","v":{"v":140918,"d":"140,918.00 €"}},{"$f":"KoulutusJaMatkaSuunniteltu[[#Totals],[Marras]]+MarkkinointiSuunniteltu[[#Totals],[Marras]]+ToimistoSuunniteltu[[#Totals],[Marras]]+TyöntekijäSuunniteltu[[#Totals],[Marras]]","v":{"v":136218,"d":"136,218.00 €"}},{"$f":"KoulutusJaMatkaSuunniteltu[[#Totals],[Joulu]]+MarkkinointiSuunniteltu[[#Totals],[Joulu]]+ToimistoSuunniteltu[[#Totals],[Joulu]]+TyöntekijäSuunniteltu[[#Totals],[Joulu]]","v":{"v":140018,"d":"140,018.00 €"}},{"$f":"KoulutusJaMatkaSuunniteltu[[#Totals],[VUOSI]]+MarkkinointiSuunniteltu[[#Totals],[VUOSI]]+ToimistoSuunniteltu[[#Totals],[VUOSI]]+TyöntekijäSuunniteltu[[#Totals],[VUOSI]]","v":{"v":1609630,"d":"1,609,630.00 €"}}]
[null,"YHTEENSÄ Suunnitellut kulut",{"$f":"SUM($C$36:C36)","v":{"v":131420,"d":"131,420.00 €"}},{"$f":"SUM($C$36:D36)","v":{"v":258240,"d":"258,240.00 €"}},{"$f":"SUM($C$36:E36)","v":{"v":385060,"d":"385,060.00 €"}},{"$f":"SUM($C$36:F36)","v":{"v":522755,"d":"522,755.00 €"}},{"$f":"SUM($C$36:G36)","v":{"v":652450,"d":"652,450.00 €"}},{"$f":"SUM($C$36:H36)","v":{"v":782945,"d":"782,945.00 €"}},{"$f":"SUM($C$36:I36)","v":{"v":917640,"d":"917,640.00 €"}},{"$f":"SUM($C$36:J36)","v":{"v":1056558,"d":"1,056,558.00 €"}},{"$f":"SUM($C$36:K36)","v":{"v":1192476,"d":"1,192,476.00 €"}},{"$f":"SUM($C$36:L36)","v":{"v":1333394,"d":"1,333,394.00 €"}},{"$f":"SUM($C$36:M36)","v":{"v":1469612,"d":"1,469,612.00 €"}},{"$f":"SUM($C$36:N36)","v":{"v":1609630,"d":"1,609,630.00 €"}}]

{"sheet":"TODELLISET KULUT","index":2,"n_rows":37,"n_cols":16,"rows_kept":37,"merged":[[1,1,2,3],[1,10,1,12],[1,13,2,14],[2,10,2,12],[8,1,8,2],[19,1,19,2],[28,1,28,2],[33,1,33,2]]}
["Kirjoita todelliset työntekijäkulut, toimistokulut, markkinointikulut ja koulutus- tai matkakulut tämän laskentataulukon taulukoihin. Yhteissummat lasketaan automaattisesti. Tämän sarakkeen soluissa on hyödyllisiä ohjeita tämän laskentataulukon käyttöön. Aloita siirtymällä nuolella alaspäin.",{"$nulls":14}," "]
["Yrityksen nimi päivitetään automaattisesti oikealla olevaan soluun. Tämän laskentataulukon otsikko on solussa K2. Lisää logo soluun N2.",{"$f":"'SUUNNITELLUT KULUT'!B2:D3","v":"Yrityksen nimi"},{"$nulls":8},{"$f":"laskentataulukon_otsikko","v":"Yksityiskohtaiset kuluarviot"},null,null,"Logon paikkamerkki on tässä solussa."]
["Solussa K3 on vihje.",{"$nulls":9},"Varjostetut solut ovat laskutoimituksia."]
["Todelliset kulut -otsikko on oikealla olevassa solussa, kuukaudet soluissa C4–N4 ja Vuosi-otsikko solussa O4.","TODELLISET KULUT","TAMMI","HELMI","MAALIS","HUHTI","TOUKO","KESÄ","HEINÄ","ELO","SYYS","LOKA","MARRAS","JOULU","VUOSI"]
["Kirjoita työntekijäkulut Työntekijä, todellinen -taulukkoon oikealla olevasta solusta aloittaen. Seuraava ohje on solussa A10.","Työntekijäkulut","Tammi","Helmi","Maalis","Huhti","Touko","Kesä","Heinä","Elo","Syys","Loka","Marras","Joulu","VUOSI"]
[null,"Palkat",{"v":85000,"d":"85,000.00 €"},{"v":85000,"d":"85,000.00 €"},{"v":85000,"d":"85,000.00 €"},{"v":88000,"d":"88,000.00 €"},{"v":88000,"d":"88,000.00 €"},{"v":88000,"d":"88,000.00 €"},{"$nulls":6},{"$f":"SUM(C6:N6)","v":{"v":519000,"d":"519,000.00 €"}}]
[null,"Edut",{"$f":"C6*0.27","v":{"v":22950,"d":"22,950.00 €"}},{"v":22950,"d":"22,950.00 €"},{"v":22950,"d":"22,950.00 €"},{"v":23760,"d":"23,760.00 €"},{"v":23760,"d":"23,760.00 €"},{"v":23760,"d":"23,760.00 €"},{"v":0,"d":"0.00 €"},{"v":0,"d":"0.00 €"},{"v":0,"d":"0.00 €"},{"v":0,"d":"0.00 €"},{"v":0,"d":"0.00 €"},{"v":0,"d":"0.00 €"},{"$f":"SUM(C7:N7)","v":{"v":140130,"d":"140,130.00 €"}}]
[null,"Välisumma",{"$f":"SUBTOTAL(109,TyöntekijäTodellinen[Tammi])","v":{"v":107950,"d":"107,950.00 €"}},{"$f":"SUBTOTAL(109,TyöntekijäTodellinen[Helmi])","v":{"v":107950,"d":"107,950.00 €"}},{"$f":"SUBTOTAL(109,TyöntekijäTodellinen[Maalis])","v":{"v":107950,"d":"107,950.00 €"}},{"$f":"SUBTOTAL(109,TyöntekijäTodellinen[Huhti])","v":{"v":111760,"d":"111,760.00 €"}},{"$f":"SUBTOTAL(109,TyöntekijäTodellinen[Touko])","v":{"v":111760,"d":"111,760.00 €"}},{"$f":"SUBTOTAL(109,TyöntekijäTodellinen[Kesä])","v":{"v":111760,"d":"111,760.00 €"}},{"$f":"SUBTOTAL(109,TyöntekijäTodellinen[Heinä])","v":{"v":0,"d":"0.00 €"}},{"$f":"SUBTOTAL(109,TyöntekijäTodellinen[Elo])","v":{"v":0,"d":"0.00 €"}},{"$f":"SUBTOTAL(109,TyöntekijäTodellinen[Syys])","v":{"v":0,"d":"0.00 €"}},{"$f":"SUBTOTAL(109,TyöntekijäTodellinen[Loka])","v":{"v":0,"d":"0.00 €"}},{"$f":"SUBTOTAL(109,TyöntekijäTodellinen[Marras])","v":{"v":0,"d":"0.00 €"}},{"$f":"SUBTOTAL(109,TyöntekijäTodellinen[Joulu])","v":{"v":0,"d":"0.00 €"}},{"$f":"SUBTOTAL(109,TyöntekijäTodellinen[VUOSI])","v":{"v":659130,"d":"659,130.00 €"}}]
[]
["Kirjoita toimistokulut Toimisto, todellinen -taulukkoon oikealla olevasta solusta aloittaen. Seuraava ohje on solussa A21.","Toimistokulut","Tammi","Helmi","Maalis","Huhti","Touko","Kesä","Heinä","Elo","Syys","Loka","Marras","Joulu","VUOSI"]
[null,"Toimiston vuokra",{"v":9800,"d":"9,800.00 €"},{"v":9800,"d":"9,800.00 €"},{"v":9800,"d":"9,800.00 €"},{"v":9800,"d":"9,800.00 €"},{"v":9800,"d":"9,800.00 €"},{"v":9800,"d":"9,800.00 €"},{"$nulls":6},{"$f":"SUM(C11:N11)","v":{"v":58800,"d":"58,800.00 €"}}]
[null,"Lämmitys",{"v":4,"d":"4.00 €"},{"v":430,"d":"430.00 €"},{"v":385,"d":"385.00 €"},{"v":230,"d":"230.00 €"},{"v":87,"d":"87.00 €"},{"v":88,"d":"88.00 €"},{"$nulls":6},{"v":1224,"d":"1,224.00 €"}]
[null,"Sähkö",{"v":288,"d":"288.00 €"},{"v":278,"d":"278.00 €"},{"v":268,"d":"268.00 €"},{"v":299,"d":"299.00 €"},{"v":306,"d":"306.00 €"},{"v":290,"d":"290.00 €"},{"$nulls":6},{"v":1729,"d":"1,729.00 €"}]
[null,"Vesi",{"v":35,"d":"35.00 €"},{"v":33,"d":"33.00 €"},{"v":34,"d":"34.00 €"},{"v":36,"d":"36.00 €"},{"v":34,"d":"34.00 €"},{"v":36,"d":"36.00 €"},{"$nulls":6},{"v":208,"d":"208.00 €"}]
[null,"Puhelin",{"v":224,"d":"224.00 €"},{"v":235,"d":"235.00 €"},{"v":265,"d":"265.00 €"},{"v":245,"d":"245.00 €"},{"v":245,"d":"245.00 €"},{"v":220,"d":"220.00 €"},{"$nulls":6},{"v":1434,"d":"1,434.00 €"}]
[null,"Internet-yhteys",{"v":180,"d":"180.00 €"},{"v":180,"d":"180.00 €"},{"v":180,"d":"180.00 €"},{"v":180,"d":"180.00 €"},{"v":180,"d":"180.00 €"},{"v":180,"d":"180.00 €"},{"$nulls":6},{"v":1080,"d":"1,080.00 €"}]
[null,"Toimistotarvikkeet",{"v":256,"d":"256.00 €"},{"v":142,"d":"142.00 €"},{"v":160,"d":"160.00 €"},{"v":221,"d":"221.00 €"},{"v":256,"d":"256.00 €"},{"v":240,"d":"240.00 €"},{"$nulls":6},{"v":1275,"d":"1,275.00 €"}]
[null,"Tietoturva",{"v":600,"d":"600.00 €"},{"v":600,"d":"600.00 €"},{"v":600,"d":"600.00 €"},{"v":600,"d":"600.00 €"},{"v":600,"d":"600.00 €"},{"v":600,"d":"600.00 €"},{"$nulls":6},{"v":3600,"d":"3,600.00 €"}]
[null,"Välisumma",{"$f":"SUBTOTAL(109,ToimistoTodellinen[Tammi])","v":{"v":11387,"d":"11,387.00 €"}},{"$f":"SUBTOTAL(109,ToimistoTodellinen[Helmi])","v":{"v":11698,"d":"11,698.00 €"}},{"$f":"SUBTOTAL(109,ToimistoTodellinen[Maalis])","v":{"v":11692,"d":"11,692.00 €"}},{"$f":"SUBTOTAL(109,ToimistoTodellinen[Huhti])","v":{"v":11611,"d":"11,611.00 €"}},{"$f":"SUBTOTAL(109,ToimistoTodellinen[Touko])","v":{"v":11508,"d":"11,508.00 €"}},{"$f":"SUBTOTAL(109,ToimistoTodellinen[Kesä])","v":{"v":11454,"d":"11,454.00 €"}},{"$f":"SUBTOTAL(109,ToimistoTodellinen[Heinä])","v":{"v":0,"d":"0.00 €"}},{"$f":"SUBTOTAL(109,ToimistoTodellinen[Elo])","v":{"v":0,"d":"0.00 €"}},{"$f":"SUBTOTAL(109,ToimistoTodellinen[Syys])","v":{"v":0,"d":"0.00 €"}},{"$f":"SUBTOTAL(109,ToimistoTodellinen[Loka])","v":{"v":0,"d":"0.00 €"}},{"$f":"SUBTOTAL(109,ToimistoTodellinen[Marras])","v":{"v":0,"d":"0.00 €"}},{"$f":"SUBTOTAL(109,ToimistoTodellinen[Joulu])","v":{"v":0,"d":"0.00 €"}},{"$f":"SUBTOTAL(109,ToimistoTodellinen[VUOSI])","v":{"v":69350,"d":"69,350.00 €"}}]
[]
["Kirjoita markkinointikulut Markkinointi, todellinen -taulukkoon oikealla olevasta solusta aloittaen. Seuraava ohje on solussa A30.","Markkinointikulut","Tammi","Helmi","Maalis","Huhti","Touko","Kesä","Heinä","Elo","Syys","Loka","Marras","Joulu","VUOSI"]
[null,"Verkkosivuston isännöinti",{"v":500,"d":"500.00 €"},{"v":500,"d":"500.00 €"},{"v":500,"d":"500.00 €"},{"v":500,"d":"500.00 €"},{"v":500,"d":"500.00 €"},{"v":500,"d":"500.00 €"},{"$nulls":6},{"$f":"SUM(C22:N22)","v":{"v":3000,"d":"3,000.00 €"}}]
[null,"Verkkosivuston päivitykset",{"v":200,"d":"200.00 €"},{"v":200,"d":"200.00 €"},{"v":200,"d":"200.00 €"},{"v":200,"d":"200.00 €"},{"v":200,"d":"200.00 €"},{"v":1500,"d":"1,500.00 €"},{"$nulls":6},{"v":2500,"d":"2,500.00 €"}]
[null,"Oheismateriaalin valmistelu",{"v":4800,"d":"4,800.00 €"},{"v":0,"d":"0.00 €"},{"v":0,"d":"0.00 €"},{"v":5500,"d":"5,500.00 €"},{"v":0,"d":"0.00 €"},{"v":0,"d":"0.00 €"},{"$nulls":6},{"v":10300,"d":"10,300.00 €"}]
[null,"Oheismateriaalin tulostaminen",{"v":100,"d":"100.00 €"},{"v":500,"d":"500.00 €"},{"v":100,"d":"100.00 €"},{"v":100,"d":"100.00 €"},{"v":600,"d":"600.00 €"},{"v":180,"d":"180.00 €"},{"$nulls":6},{"v":1580,"d":"1,580.00 €"}]
[null,"Markkinointitapahtumat",{"v":1800,"d":"1,800.00 €"},{"v":2200,"d":"2,200.00 €"},{"v":2200,"d":"2,200.00 €"},{"v":4700,"d":"4,700.00 €"},{"v":1500,"d":"1,500.00 €"},{"v":2300,"d":"2,300.00 €"},{"$nulls":6},{"v":14700,"d":"14,700.00 €"}]
[null,"Sekalaiset kulut",{"v":145,"d":"145.00 €"},{"v":156,"d":"156.00 €"},{"v":123,"d":"123.00 €"},{"v":223,"d":"223.00 €"},{"v":187,"d":"187.00 €"},{"v":245,"d":"245.00 €"},{"$nulls":6},{"v":1079,"d":"1,079.00 €"}]
[null,"Välisumma",{"$f":"SUBTOTAL(109,MarkkinointiTodellinen[Tammi])","v":{"v":7545,"d":"7,545.00 €"}},{"$f":"SUBTOTAL(109,MarkkinointiTodellinen[Helmi])","v":{"v":3556,"d":"3,556.00 €"}},{"$f":"SUBTOTAL(109,MarkkinointiTodellinen[Maalis])","v":{"v":3123,"d":"3,123.00 €"}},{"$f":"SUBTOTAL(109,MarkkinointiTodellinen[Huhti])","v":{"v":11223,"d":"11,223.00 €"}},{"$f":"SUBTOTAL(109,MarkkinointiTodellinen[Touko])","v":{"v":2987,"d":"2,987.00 €"}},{"$f":"SUBTOTAL(109,MarkkinointiTodellinen[Kesä])","v":{"v":4725,"d":"4,725.00 €"}},{"$f":"SUBTOTAL(109,MarkkinointiTodellinen[Heinä])","v":{"v":0,"d":"0.00 €"}},{"$f":"SUBTOTAL(109,MarkkinointiTodellinen[Elo])","v":{"v":0,"d":"0.00 €"}},{"$f":"SUBTOTAL(109,MarkkinointiTodellinen[Syys])","v":{"v":0,"d":"0.00 €"}},{"$f":"SUBTOTAL(109,MarkkinointiTodellinen[Loka])","v":{"v":0,"d":"0.00 €"}},{"$f":"SUBTOTAL(109,MarkkinointiTodellinen[Marras])","v":{"v":0,"d":"0.00 €"}},{"$f":"SUBTOTAL(109,MarkkinointiTodellinen[Joulu])","v":{"v":0,"d":"0.00 €"}},{"$f":"SUBTOTAL(109,MarkkinointiTodellinen[VUOSI])","v":{"v":33159,"d":"33,159.00 €"}}]
[]
["Kirjoita koulutus- tai matkakulut Koulutus- ja matka, todellinen -taulukkoon oikealla olevasta solusta aloittaen. Seuraava ohje on solussa A35.","Koulutus/matka","Tammi","Helmi","Maalis","Huhti","Touko","Kesä","Heinä","Elo","Syys","Loka","Marras","Joulu","VUOSI"]
[null,"Koulutuskurssit",{"v":1600,"d":"1,600.00 €"},{"v":2400,"d":"2,400.00 €"},{"v":1400,"d":"1,400.00 €"},{"v":1600,"d":"1,600.00 €"},{"v":1200,"d":"1,200.00 €"},{"v":2800,"d":"2,800.00 €"},{"$nulls":6},{"$f":"SUM(C31:N31)","v":{"v":11000,"d":"11,000.00 €"}}]
[null,"Koulutukseen liittyvät matkakulut",{"v":1200,"d":"1,200.00 €"},{"v":2200,"d":"2,200.00 €"},{"v":1400,"d":"1,400.00 €"},{"v":1200,"d":"1,200.00 €"},{"v":800,"d":"800.00 €"},{"v":3500,"d":"3,500.00 €"},{"$nulls":6},{"$f":"SUM(C32:N32)","v":{"v":10300,"d":"10,300.00 €"}}]
[null,"Välisumma",{"$f":"SUBTOTAL(109,KoulutusJaMatkaTodellinen[Tammi])","v":{"v":2800,"d":"2,800.00 €"}},{"$f":"SUBTOTAL(109,KoulutusJaMatkaTodellinen[Helmi])","v":{"v":4600,"d":"4,600.00 €"}},{"$f":"SUBTOTAL(109,KoulutusJaMatkaTodellinen[Maalis])","v":{"v":2800,"d":"2,800.00 €"}},{"$f":"SUBTOTAL(109,KoulutusJaMatkaTodellinen[Huhti])","v":{"v":2800,"d":"2,800.00 €"}},{"$f":"SUBTOTAL(109,KoulutusJaMatkaTodellinen[Touko])","v":{"v":2000,"d":"2,000.00 €"}},{"$f":"SUBTOTAL(109,KoulutusJaMatkaTodellinen[Kesä])","v":{"v":6300,"d":"6,300.00 €"}},{"$f":"SUBTOTAL(109,KoulutusJaMatkaTodellinen[Heinä])","v":{"v":0,"d":"0.00 €"}},{"$f":"SUBTOTAL(109,KoulutusJaMatkaTodellinen[Elo])","v":{"v":0,"d":"0.00 €"}},{"$f":"SUBTOTAL(109,KoulutusJaMatkaTodellinen[Syys])","v":{"v":0,"d":"0.00 €"}},{"$f":"SUBTOTAL(109,KoulutusJaMatkaTodellinen[Loka])","v":{"v":0,"d":"0.00 €"}},{"$f":"SUBTOTAL(109,KoulutusJaMatkaTodellinen[Marras])","v":{"v":0,"d":"0.00 €"}},{"$f":"SUBTOTAL(109,KoulutusJaMatkaTodellinen[Joulu])","v":{"v":0,"d":"0.00 €"}},{"$f":"SUBTOTAL(109,KoulutusJaMatkaTodellinen[VUOSI])","v":{"v":21300,"d":"21,300.00 €"}}]
[]
["Todellisten kulujen yhteissummat lasketaan automaattisesti Todelliset yhteensä -taulukkoon oikealla olevasta solusta aloittaen.","YHTEENSÄ Suunnitellut kulut","Tammi","Helmi","Maalis","Huhti","Touko","Kesä","Heinä","Elo","Syys","Loka","Marras","Joulu","Vuosi"]
[null,"Kuukausittaiset todelliset kulut",{"$f":"KoulutusJaMatkaTodellinen[[#Totals],[Tammi]]+MarkkinointiTodellinen[[#Totals],[Tammi]]+ToimistoTodellinen[[#Totals],[Tammi]]+TyöntekijäTodellinen[[#Totals],[Tammi]]","v":{"v":129682,"d":"129,682.00 €"}},{"$f":"KoulutusJaMatkaTodellinen[[#Totals],[Helmi]]+MarkkinointiTodellinen[[#Totals],[Helmi]]+ToimistoTodellinen[[#Totals],[Helmi]]+TyöntekijäTodellinen[[#Totals],[Helmi]]","v":{"v":127804,"d":"127,804.00 €"}},{"$f":"KoulutusJaMatkaTodellinen[[#Totals],[Maalis]]+MarkkinointiTodellinen[[#Totals],[Maalis]]+ToimistoTodellinen[[#Totals],[Maalis]]+TyöntekijäTodellinen[[#Totals],[Maalis]]","v":{"v":125565,"d":"125,565.00 €"}},{"$f":"KoulutusJaMatkaTodellinen[[#Totals],[Huhti]]+MarkkinointiTodellinen[[#Totals],[Huhti]]+ToimistoTodellinen[[#Totals],[Huhti]]+TyöntekijäTodellinen[[#Totals],[Huhti]]","v":{"v":137394,"d":"137,394.00 €"}},{"$f":"KoulutusJaMatkaTodellinen[[#Totals],[Touko]]+MarkkinointiTodellinen[[#Totals],[Touko]]+ToimistoTodellinen[[#Totals],[Touko]]+TyöntekijäTodellinen[[#Totals],[Touko]]","v":{"v":128255,"d":"128,255.00 €"}},{"$f":"KoulutusJaMatkaTodellinen[[#Totals],[Kesä]]+MarkkinointiTodellinen[[#Totals],[Kesä]]+ToimistoTodellinen[[#Totals],[Kesä]]+TyöntekijäTodellinen[[#Totals],[Kesä]]","v":{"v":134239,"d":"134,239.00 €"}},{"$f":"KoulutusJaMatkaTodellinen[[#Totals],[Heinä]]+MarkkinointiTodellinen[[#Totals],[Heinä]]+ToimistoTodellinen[[#Totals],[Heinä]]+TyöntekijäTodellinen[[#Totals],[Heinä]]","v":{"v":0,"d":"0.00 €"}},{"$f":"KoulutusJaMatkaTodellinen[[#Totals],[Elo]]+MarkkinointiTodellinen[[#Totals],[Elo]]+ToimistoTodellinen[[#Totals],[Elo]]+TyöntekijäTodellinen[[#Totals],[Elo]]","v":{"v":0,"d":"0.00 €"}},{"$f":"KoulutusJaMatkaTodellinen[[#Totals],[Syys]]+MarkkinointiTodellinen[[#Totals],[Syys]]+ToimistoTodellinen[[#Totals],[Syys]]+TyöntekijäTodellinen[[#Totals],[Syys]]","v":{"v":0,"d":"0.00 €"}},{"$f":"KoulutusJaMatkaTodellinen[[#Totals],[Loka]]+MarkkinointiTodellinen[[#Totals],[Loka]]+ToimistoTodellinen[[#Totals],[Loka]]+TyöntekijäTodellinen[[#Totals],[Loka]]","v":{"v":0,"d":"0.00 €"}},{"$f":"KoulutusJaMatkaTodellinen[[#Totals],[Marras]]+MarkkinointiTodellinen[[#Totals],[Marras]]+ToimistoTodellinen[[#Totals],[Marras]]+TyöntekijäTodellinen[[#Totals],[Marras]]","v":{"v":0,"d":"0.00 €"}},{"$f":"KoulutusJaMatkaTodellinen[[#Totals],[Joulu]]+MarkkinointiTodellinen[[#Totals],[Joulu]]+ToimistoTodellinen[[#Totals],[Joulu]]+TyöntekijäTodellinen[[#Totals],[Joulu]]","v":{"v":0,"d":"0.00 €"}},{"$f":"KoulutusJaMatkaTodellinen[[#Totals],[VUOSI]]+MarkkinointiTodellinen[[#Totals],[VUOSI]]+ToimistoTodellinen[[#Totals],[VUOSI]]+TyöntekijäTodellinen[[#Totals],[VUOSI]]","v":{"v":782939,"d":"782,939.00 €"}}]
[null,"YHTEENSÄ Todelliset kulut",{"$f":"SUM($C$36:C36)","v":{"v":129682,"d":"129,682.00 €"}},{"$f":"SUM($C$36:D36)","v":{"v":257486,"d":"257,486.00 €"}},{"$f":"SUM($C$36:E36)","v":{"v":383051,"d":"383,051.00 €"}},{"$f":"SUM($C$36:F36)","v":{"v":520445,"d":"520,445.00 €"}},{"$f":"SUM($C$36:G36)","v":{"v":648700,"d":"648,700.00 €"}},{"$f":"SUM($C$36:H36)","v":{"v":782939,"d":"782,939.00 €"}},{"$f":"SUM($C$36:I36)","v":{"v":782939,"d":"782,939.00 €"}},{"$f":"SUM($C$36:J36)","v":{"v":782939,"d":"782,939.00 €"}},{"$f":"SUM($C$36:K36)","v":{"v":782939,"d":"782,939.00 €"}},{"$f":"SUM($C$36:L36)","v":{"v":782939,"d":"782,939.00 €"}},{"$f":"SUM($C$36:M36)","v":{"v":782939,"d":"782,939.00 €"}},{"$f":"SUM($C$36:N36)","v":{"v":782939,"d":"782,939.00 €"}}]

{"sheet":"KUSTANNUSPOIKKEAMAT","index":3,"n_rows":37,"n_cols":16,"rows_kept":37,"merged":[[1,1,2,3],[1,10,1,12],[1,13,2,14],[2,10,2,12],[8,1,8,2],[19,1,19,2],[28,1,28,2],[33,1,33,2]]}
["Työntekijäkulut, toimistokulut, markkinointikulut ja koulutus- tai matkakulujen kustannuspoikkeamat lasketaan automaattisesti tämän laskentataulukon taulukoihin. Tämän sarakkeen soluissa on hyödyllisiä ohjeita tämän laskentataulukon käyttöön. Aloita siirtymällä nuolella alaspäin.",{"$nulls":14}," "]
["Yrityksen nimi päivitetään automaattisesti oikealla olevaan soluun. Tämän laskentataulukon otsikko on solussa K2. Lisää logo soluun N2.",{"$f":"'SUUNNITELLUT KULUT'!B2:D3","v":"Yrityksen nimi"},{"$nulls":8},{"$f":"laskentataulukon_otsikko","v":"Yksityiskohtaiset kuluarviot"},null,null,"Logon paikkamerkki on tässä solussa."]
["Solussa K3 on vihje.",{"$nulls":9},"Varjostetut solut ovat laskutoimituksia."]
["Kustannuspoikkeamat-otsikko on oikealla olevassa solussa, kuukaudet soluissa C4–N4 ja Vuosi-otsikko solussa O4.","KUSTANNUSPOIKKEAMAT","TAMMI","HELMI","MAALIS","HUHTI","TOUKO","KESÄ","HEINÄ","ELO","SYYS","LOKA","MARRAS","JOULU","VUOSI"]
["Työntekijäkulut poikkeama lasketaan automaattisesti Työntekijäpoikkeamat-taulukkoon oikealla olevasta solusta aloittaen. Seuraava ohje on solussa A10.","Työntekijäkulut","Tammi","Helmi","Maalis","Huhti","Touko","Kesä","Heinä","Elo","Syys","Loka","Marras","Joulu","VUOSI"]
[null,"Palkat",{"$f":"INDEX(TyöntekijäSuunniteltu[],MATCH(INDEX(Työntekijäpoikkeamat[],ROW()-ROW(Työntekijäpoikkeamat[[#Headers],[Tammi]]),1),INDEX(TyöntekijäSuunniteltu[],,1),0),MATCH(Työntekijäpoikkeamat[[#Headers],[Tammi]],TyöntekijäSuunniteltu[#Headers],0))-INDEX(TyöntekijäTodellinen[],MATCH(INDEX(Työntekijäpoikkeamat[],ROW()-ROW(Työntekijäpoikkeamat[[#Headers],[Tammi]]),1),INDEX(TyöntekijäSuunniteltu[],,1),0),MATCH(Työntekijäpoikkeamat[[#Headers],[Tammi]],TyöntekijäTodellinen[#Headers],0))","v":{"v":0,"d":"0.00 €"}},{"$f":"INDEX(TyöntekijäSuunniteltu[],MATCH(INDEX(Työntekijäpoikkeamat[],ROW()-ROW(Työntekijäpoikkeamat[[#Headers],[Helmi]]),1),INDEX(TyöntekijäSuunniteltu[],,1),0),MATCH(Työntekijäpoikkeamat[[#Headers],[Helmi]],TyöntekijäSuunniteltu[#Headers],0))-INDEX(TyöntekijäTodellinen[],MATCH(INDEX(Työntekijäpoikkeamat[],ROW()-ROW(Työntekijäpoikkeamat[[#Headers],[Helmi]]),1),INDEX(TyöntekijäSuunniteltu[],,1),0),MATCH(Työntekijäpoikkeamat[[#Headers],[Helmi]],TyöntekijäTodellinen[#Headers],0))","v":{"v":0,"d":"0.00 €"}},{"$f":"INDEX(TyöntekijäSuunniteltu[],MATCH(INDEX(Työntekijäpoikkeamat[],ROW()-ROW(Työntekijäpoikkeamat[[#Headers],[Maalis]]),1),INDEX(TyöntekijäSuunniteltu[],,1),0),MATCH(Työntekijäpoikkeamat[[#Headers],[Maalis]],TyöntekijäSuunniteltu[#Headers],0))-INDEX(TyöntekijäTodellinen[],MATCH(INDEX(Työntekijäpoikkeamat[],ROW()-ROW(Työntekijäpoikkeamat[[#Headers],[Maalis]]),1),INDEX(TyöntekijäSuunniteltu[],,1),0),MATCH(Työntekijäpoikkeamat[[#Headers],[Maalis]],TyöntekijäTodellinen[#Headers],0))","v":{"v":0,"d":"0.00 €"}},{"$f":"INDEX(TyöntekijäSuunniteltu[],MATCH(INDEX(Työntekijäpoikkeamat[],ROW()-ROW(Työntekijäpoikkeamat[[#Headers],[Huhti]]),1),INDEX(TyöntekijäSuunniteltu[],,1),0),MATCH(Työntekijäpoikkeamat[[#Headers],[Huhti]],TyöntekijäSuunniteltu[#Headers],0))-INDEX(TyöntekijäTodellinen[],MATCH(INDEX(Työntekijäpoikkeamat[],ROW()-ROW(Työntekijäpoikkeamat[[#Headers],[Huhti]]),1),INDEX(TyöntekijäSuunniteltu[],,1),0),MATCH(Työntekijäpoikkeamat[[#Headers],[Huhti]],TyöntekijäTodellinen[#Headers],0))","v":{"v":-500,"d":"-500.00 €"}},{"$f":"INDEX(TyöntekijäSuunniteltu[],MATCH(INDEX(Työntekijäpoikkeamat[],ROW()-ROW(Työntekijäpoikkeamat[[#Headers],[Touko]]),1),INDEX(TyöntekijäSuunniteltu[],,1),0),MATCH(Työntekijäpoikkeamat[[#Headers],[Touko]],TyöntekijäSuunniteltu[#Headers],0))-INDEX(TyöntekijäTodellinen[],MATCH(INDEX(Työntekijäpoikkeamat[],ROW()-ROW(Työntekijäpoikkeamat[[#Headers],[Touko]]),1),INDEX(TyöntekijäSuunniteltu[],,1),0),MATCH(Työntekijäpoikkeamat[[#Headers],[Touko]],TyöntekijäTodellinen[#Headers],0))","v":{"v":-500,"d":"-500.00 €"}},{"$f":"INDEX(TyöntekijäSuunniteltu[],MATCH(INDEX(Työntekijäpoikkeamat[],ROW()-ROW(Työntekijäpoikkeamat[[#Headers],[Kesä]]),1),INDEX(TyöntekijäSuunniteltu[],,1),0),MATCH(Työntekijäpoikkeamat[[#Headers],[Kesä]],TyöntekijäSuunniteltu[#Headers],0))-INDEX(TyöntekijäTodellinen[],MATCH(INDEX(Työntekijäpoikkeamat[],ROW()-ROW(Työntekijäpoikkeamat[[#Headers],[Kesä]]),1),INDEX(TyöntekijäSuunniteltu[],,1),0),MATCH(Työntekijäpoikkeamat[[#Headers],[Kesä]],TyöntekijäTodellinen[#Headers],0))","v":{"v":-500,"d":"-500.00 €"}},{"$f":"INDEX(TyöntekijäSuunniteltu[],MATCH(INDEX(Työntekijäpoikkeamat[],ROW()-ROW(Työntekijäpoikkeamat[[#Headers],[Heinä]]),1),INDEX(TyöntekijäSuunniteltu[],,1),0),MATCH(Työntekijäpoikkeamat[[#Headers],[Heinä]],TyöntekijäSuunniteltu[#Headers],0))-INDEX(TyöntekijäTodellinen[],MATCH(INDEX(Työntekijäpoikkeamat[],ROW()-ROW(Työntekijäpoikkeamat[[#Headers],[Heinä]]),1),INDEX(TyöntekijäSuunniteltu[],,1),0),MATCH(Työntekijäpoikkeamat[[#Headers],[Heinä]],TyöntekijäTodellinen[#Headers],0))","v":{"v":87500,"d":"87,500.00 €"}},{"$f":"INDEX(TyöntekijäSuunniteltu[],MATCH(INDEX(Työntekijäpoikkeamat[],ROW()-ROW(Työntekijäpoikkeamat[[#Headers],[Elo]]),1),INDEX(TyöntekijäSuunniteltu[],,1),0),MATCH(Työntekijäpoikkeamat[[#Headers],[Elo]],TyöntekijäSuunniteltu[#Headers],0))-INDEX(TyöntekijäTodellinen[],MATCH(INDEX(Työntekijäpoikkeamat[],ROW()-ROW(Työntekijäpoikkeamat[[#Headers],[Elo]]),1),INDEX(TyöntekijäSuunniteltu[],,1),0),MATCH(Työntekijäpoikkeamat[[#Headers],[Elo]],TyöntekijäTodellinen[#Headers],0))","v":{"v":92400,"d":"92,400.00 €"}},{"$f":"INDEX(TyöntekijäSuunniteltu[],MATCH(INDEX(Työntekijäpoikkeamat[],ROW()-ROW(Työntekijäpoikkeamat[[#Headers],[Syys]]),1),INDEX(TyöntekijäSuunniteltu[],,1),0),MATCH(Työntekijäpoikkeamat[[#Headers],[Syys]],TyöntekijäSuunniteltu[#Headers],0))-INDEX(TyöntekijäTodellinen[],MATCH(INDEX(Työntekijäpoikkeamat[],ROW()-ROW(Työntekijäpoikkeamat[[#Headers],[Syys]]),1),INDEX(TyöntekijäSuunniteltu[],,1),0),MATCH(Työntekijäpoikkeamat[[#Headers],[Syys]],TyöntekijäTodellinen[#Headers],0))","v":{"v":92400,"d":"92,400.00 €"}},{"$f":"INDEX(TyöntekijäSuunniteltu[],MATCH(INDEX(Työntekijäpoikkeamat[],ROW()-ROW(Työntekijäpoikkeamat[[#Headers],[Loka]]),1),INDEX(TyöntekijäSuunniteltu[],,1),0),MATCH(Työntekijäpoikkeamat[[#Headers],[Loka]],TyöntekijäSuunniteltu[#Headers],0))-INDEX(TyöntekijäTodellinen[],MATCH(INDEX(Työntekijäpoikkeamat[],ROW()-ROW(Työntekijäpoikkeamat[[#Headers],[Loka]]),1),INDEX(TyöntekijäSuunniteltu[],,1),0),MATCH(Työntekijäpoikkeamat[[#Headers],[Loka]],TyöntekijäTodellinen[#Headers],0))","v":{"v":92400,"d":"92,400.00 €"}},{"$f":"INDEX(TyöntekijäSuunniteltu[],MATCH(INDEX(Työntekijäpoikkeamat[],ROW()-ROW(Työntekijäpoikkeamat[[#Headers],[Marras]]),1),INDEX(TyöntekijäSuunniteltu[],,1),0),MATCH(Työntekijäpoikkeamat[[#Headers],[Marras]],TyöntekijäSuunniteltu[#Headers],0))-INDEX(TyöntekijäTodellinen[],MATCH(INDEX(Työntekijäpoikkeamat[],ROW()-ROW(Työntekijäpoikkeamat[[#Headers],[Marras]]),1),INDEX(TyöntekijäSuunniteltu[],,1),0),MATCH(Työntekijäpoikkeamat[[#Headers],[Marras]],TyöntekijäTodellinen[#Headers],0))","v":{"v":92400,"d":"92,400.00 €"}},{"$f":"INDEX(TyöntekijäSuunniteltu[],MATCH(INDEX(Työntekijäpoikkeamat[],ROW()-ROW(Työntekijäpoikkeamat[[#Headers],[Joulu]]),1),INDEX(TyöntekijäSuunniteltu[],,1),0),MATCH(Työntekijäpoikkeamat[[#Headers],[Joulu]],TyöntekijäSuunniteltu[#Headers],0))-INDEX(TyöntekijäTodellinen[],MATCH(INDEX(Työntekijäpoikkeamat[],ROW()-ROW(Työntekijäpoikkeamat[[#Headers],[Joulu]]),1),INDEX(TyöntekijäSuunniteltu[],,1),0),MATCH(Työntekijäpoikkeamat[[#Headers],[Joulu]],TyöntekijäTodellinen[#Headers],0))","v":{"v":92400,"d":"92,400.00 €"}},{"$f":"SUM(Työntekijäpoikkeamat[[#This Row],[Tammi]:[Joulu]])","v":{"v":548000,"d":"548,000.00 €"}}]
[null,"Edut",{"$f":"INDEX(TyöntekijäSuunniteltu[],MATCH(INDEX(Työntekijäpoikkeamat[],ROW()-ROW(Työntekijäpoikkeamat[[#Headers],[Tammi]]),1),INDEX(TyöntekijäSuunniteltu[],,1),0),MATCH(Työntekijäpoikkeamat[[#Headers],[Tammi]],TyöntekijäSuunniteltu[#Headers],0))-INDEX(TyöntekijäTodellinen[],MATCH(INDEX(Työntekijäpoikkeamat[],ROW()-ROW(Työntekijäpoikkeamat[[#Headers],[Tammi]]),1),INDEX(TyöntekijäSuunniteltu[],,1),0),MATCH(Työntekijäpoikkeamat[[#Headers],[Tammi]],TyöntekijäTodellinen[#Headers],0))","v":{"v":0,"d":"0.00 €"}},{"$f":"INDEX(TyöntekijäSuunniteltu[],MATCH(INDEX(Työntekijäpoikkeamat[],ROW()-ROW(Työntekijäpoikkeamat[[#Headers],[Helmi]]),1),INDEX(TyöntekijäSuunniteltu[],,1),0),MATCH(Työntekijäpoikkeamat[[#Headers],[Helmi]],TyöntekijäSuunniteltu[#Headers],0))-INDEX(TyöntekijäTodellinen[],MATCH(INDEX(Työntekijäpoikkeamat[],ROW()-ROW(Työntekijäpoikkeamat[[#Headers],[Helmi]]),1),INDEX(TyöntekijäSuunniteltu[],,1),0),MATCH(Työntekijäpoikkeamat[[#Headers],[Helmi]],TyöntekijäTodellinen[#Headers],0))","v":{"v":0,"d":"0.00 €"}},{"$f":"INDEX(TyöntekijäSuunniteltu[],MATCH(INDEX(Työntekijäpoikkeamat[],ROW()-ROW(Työntekijäpoikkeamat[[#Headers],[Maalis]]),1),INDEX(TyöntekijäSuunniteltu[],,1),0),MATCH(Työntekijäpoikkeamat[[#Headers],[Maalis]],TyöntekijäSuunniteltu[#Headers],0))-INDEX(TyöntekijäTodellinen[],MATCH(INDEX(Työntekijäpoikkeamat[],ROW()-ROW(Työntekijäpoikkeamat[[#Headers],[Maalis]]),1),INDEX(TyöntekijäSuunniteltu[],,1),0),MATCH(Työntekijäpoikkeamat[[#Headers],[Maalis]],TyöntekijäTodellinen[#Headers],0))","v":{"v":0,"d":"0.00 €"}},{"$f":"INDEX(TyöntekijäSuunniteltu[],MATCH(INDEX(Työntekijäpoikkeamat[],ROW()-ROW(Työntekijäpoikkeamat[[#Headers],[Huhti]]),1),INDEX(TyöntekijäSuunniteltu[],,1),0),MATCH(Työntekijäpoikkeamat[[#Headers],[Huhti]],TyöntekijäSuunniteltu[#Headers],0))-INDEX(TyöntekijäTodellinen[],MATCH(INDEX(Työntekijäpoikkeamat[],ROW()-ROW(Työntekijäpoikkeamat[[#Headers],[Huhti]]),1),INDEX(TyöntekijäSuunniteltu[],,1),0),MATCH(Työntekijäpoikkeamat[[#Headers],[Huhti]],TyöntekijäTodellinen[#Headers],0))","v":{"v":-135,"d":"-135.00 €"}},{"$f":"INDEX(TyöntekijäSuunniteltu[],MATCH(INDEX(Työntekijäpoikkeamat[],ROW()-ROW(Työntekijäpoikkeamat[[#Headers],[Touko]]),1),INDEX(TyöntekijäSuunniteltu[],,1),0),MATCH(Työntekijäpoikkeamat[[#Headers],[Touko]],TyöntekijäSuunniteltu[#Headers],0))-INDEX(TyöntekijäTodellinen[],MATCH(INDEX(Työntekijäpoikkeamat[],ROW()-ROW(Työntekijäpoikkeamat[[#Headers],[Touko]]),1),INDEX(TyöntekijäSuunniteltu[],,1),0),MATCH(Työntekijäpoikkeamat[[#Headers],[Touko]],TyöntekijäTodellinen[#Headers],0))","v":{"v":-135,"d":"-135.00 €"}},{"$f":"INDEX(TyöntekijäSuunniteltu[],MATCH(INDEX(Työntekijäpoikkeamat[],ROW()-ROW(Työntekijäpoikkeamat[[#Headers],[Kesä]]),1),INDEX(TyöntekijäSuunniteltu[],,1),0),MATCH(Työntekijäpoikkeamat[[#Headers],[Kesä]],TyöntekijäSuunniteltu[#Headers],0))-INDEX(TyöntekijäTodellinen[],MATCH(INDEX(Työntekijäpoikkeamat[],ROW()-ROW(Työntekijäpoikkeamat[[#Headers],[Kesä]]),1),INDEX(TyöntekijäSuunniteltu[],,1),0),MATCH(Työntekijäpoikkeamat[[#Headers],[Kesä]],TyöntekijäTodellinen[#Headers],0))","v":{"v":-135,"d":"-135.00 €"}},{"$f":"INDEX(TyöntekijäSuunniteltu[],MATCH(INDEX(Työntekijäpoikkeamat[],ROW()-ROW(Työntekijäpoikkeamat[[#Headers],[Heinä]]),1),INDEX(TyöntekijäSuunniteltu[],,1),0),MATCH(Työntekijäpoikkeamat[[#Headers],[Heinä]],TyöntekijäSuunniteltu[#Headers],0))-INDEX(TyöntekijäTodellinen[],MATCH(INDEX(Työntekijäpoikkeamat[],ROW()-ROW(Työntekijäpoikkeamat[[#Headers],[Heinä]]),1),INDEX(TyöntekijäSuunniteltu[],,1),0),MATCH(Työntekijäpoikkeamat[[#Headers],[Heinä]],TyöntekijäTodellinen[#Headers],0))","v":{"v":23625,"d":"23,625.00 €"}},{"$f":"INDEX(TyöntekijäSuunniteltu[],MATCH(INDEX(Työntekijäpoikkeamat[],ROW()-ROW(Työntekijäpoikkeamat[[#Headers],[Elo]]),1),INDEX(TyöntekijäSuunniteltu[],,1),0),MATCH(Työntekijäpoikkeamat[[#Headers],[Elo]],TyöntekijäSuunniteltu[#Headers],0))-INDEX(TyöntekijäTodellinen[],MATCH(INDEX(Työntekijäpoikkeamat[],ROW()-ROW(Työntekijäpoikkeamat[[#Headers],[Elo]]),1),INDEX(TyöntekijäSuunniteltu[],,1),0),MATCH(Työntekijäpoikkeamat[[#Headers],[Elo]],TyöntekijäTodellinen[#Headers],0))","v":{"v":24948,"d":"24,948.00 €"}},{"$f":"INDEX(TyöntekijäSuunniteltu[],MATCH(INDEX(Työntekijäpoikkeamat[],ROW()-ROW(Työntekijäpoikkeamat[[#Headers],[Syys]]),1),INDEX(TyöntekijäSuunniteltu[],,1),0),MATCH(Työntekijäpoikkeamat[[#Headers],[Syys]],TyöntekijäSuunniteltu[#Headers],0))-INDEX(TyöntekijäTodellinen[],MATCH(INDEX(Työntekijäpoikkeamat[],ROW()-ROW(Työntekijäpoikkeamat[[#Headers],[Syys]]),1),INDEX(TyöntekijäSuunniteltu[],,1),0),MATCH(Työntekijäpoikkeamat[[#Headers],[Syys]],TyöntekijäTodellinen[#Headers],0))","v":{"v":24948,"d":"24,948.00 €"}},{"$f":"INDEX(TyöntekijäSuunniteltu[],MATCH(INDEX(Työntekijäpoikkeamat[],ROW()-ROW(Työntekijäpoikkeamat[[#Headers],[Loka]]),1),INDEX(TyöntekijäSuunniteltu[],,1),0),MATCH(Työntekijäpoikkeamat[[#Headers],[Loka]],TyöntekijäSuunniteltu[#Headers],0))-INDEX(TyöntekijäTodellinen[],MATCH(INDEX(Työntekijäpoikkeamat[],ROW()-ROW(Työntekijäpoikkeamat[[#Headers],[Loka]]),1),INDEX(TyöntekijäSuunniteltu[],,1),0),MATCH(Työntekijäpoikkeamat[[#Headers],[Loka]],TyöntekijäTodellinen[#Headers],0))","v":{"v":24948,"d":"24,948.00 €"}},{"$f":"INDEX(TyöntekijäSuunniteltu[],MATCH(INDEX(Työntekijäpoikkeamat[],ROW()-ROW(Työntekijäpoikkeamat[[#Headers],[Marras]]),1),INDEX(TyöntekijäSuunniteltu[],,1),0),MATCH(Työntekijäpoikkeamat[[#Headers],[Marras]],TyöntekijäSuunniteltu[#Headers],0))-INDEX(TyöntekijäTodellinen[],MATCH(INDEX(Työntekijäpoikkeamat[],ROW()-ROW(Työntekijäpoikkeamat[[#Headers],[Marras]]),1),INDEX(TyöntekijäSuunniteltu[],,1),0),MATCH(Työntekijäpoikkeamat[[#Headers],[Marras]],TyöntekijäTodellinen[#Headers],0))","v":{"v":24948,"d":"24,948.00 €"}},{"$f":"INDEX(TyöntekijäSuunniteltu[],MATCH(INDEX(Työntekijäpoikkeamat[],ROW()-ROW(Työntekijäpoikkeamat[[#Headers],[Joulu]]),1),INDEX(TyöntekijäSuunniteltu[],,1),0),MATCH(Työntekijäpoikkeamat[[#Headers],[Joulu]],TyöntekijäSuunniteltu[#Headers],0))-INDEX(TyöntekijäTodellinen[],MATCH(INDEX(Työntekijäpoikkeamat[],ROW()-ROW(Työntekijäpoikkeamat[[#Headers],[Joulu]]),1),INDEX(TyöntekijäSuunniteltu[],,1),0),MATCH(Työntekijäpoikkeamat[[#Headers],[Joulu]],TyöntekijäTodellinen[#Headers],0))","v":{"v":24948,"d":"24,948.00 €"}},{"$f":"SUM(Työntekijäpoikkeamat[[#This Row],[Tammi]:[Joulu]])","v":{"v":147960,"d":"147,960.00 €"}}]
[null,"Välisumma",{"$f":"SUBTOTAL(109,Työntekijäpoikkeamat[Tammi])","v":{"v":0,"d":"0.00 €"}},{"$f":"SUBTOTAL(109,Työntekijäpoikkeamat[Helmi])","v":{"v":0,"d":"0.00 €"}},{"$f":"SUBTOTAL(109,Työntekijäpoikkeamat[Maalis])","v":{"v":0,"d":"0.00 €"}},{"$f":"SUBTOTAL(109,Työntekijäpoikkeamat[Huhti])","v":{"v":-635,"d":"-635.00 €"}},{"$f":"SUBTOTAL(109,Työntekijäpoikkeamat[Touko])","v":{"v":-635,"d":"-635.00 €"}},{"$f":"SUBTOTAL(109,Työntekijäpoikkeamat[Kesä])","v":{"v":-635,"d":"-635.00 €"}},{"$f":"SUBTOTAL(109,Työntekijäpoikkeamat[Heinä])","v":{"v":111125,"d":"111,125.00 €"}},{"$f":"SUBTOTAL(109,Työntekijäpoikkeamat[Elo])","v":{"v":117348,"d":"117,348.00 €"}},{"$f":"SUBTOTAL(109,Työntekijäpoikkeamat[Syys])","v":{"v":117348,"d":"117,348.00 €"}},{"$f":"SUBTOTAL(109,Työntekijäpoikkeamat[Loka])","v":{"v":117348,"d":"117,348.00 €"}},{"$f":"SUBTOTAL(109,Työntekijäpoikkeamat[Marras])","v":{"v":117348,"d":"117,348.00 €"}},{"$f":"SUBTOTAL(109,Työntekijäpoikkeamat[Joulu])","v":{"v":117348,"d":"117,348.00 €"}},{"$f":"SUBTOTAL(109,Työntekijäpoikkeamat[VUOSI])","v":{"v":695960,"d":"695,960.00 €"}}]
[]
["Toimistokulut poikkeama lasketaan automaattisesti Toimistopoikkeamat-taulukkoon oikealla olevasta solusta aloittaen. Seuraava ohje on solussa A21.","Toimistokulut","Tammi","Helmi","Maalis","Huhti","Touko","Kesä","Heinä","Elo","Syys","Loka","Marras","Joulu","VUOSI"]
[null,"Toimiston vuokra",{"$f":"INDEX(ToimistoSuunniteltu[],MATCH(INDEX(Toimistopoikkeamat[],ROW()-ROW(Toimistopoikkeamat[[#Headers],[Tammi]]),1),INDEX(ToimistoSuunniteltu[],,1),0),MATCH(Toimistopoikkeamat[[#Headers],[Tammi]],ToimistoSuunniteltu[#Headers],0))-INDEX(ToimistoTodellinen[],MATCH(INDEX(Toimistopoikkeamat[],ROW()-ROW(Toimistopoikkeamat[[#Headers],[Tammi]]),1),INDEX(ToimistoSuunniteltu[],,1),0),MATCH(Toimistopoikkeamat[[#Headers],[Tammi]],ToimistoTodellinen[#Headers],0))","v":{"v":0,"d":"0.00 €"}},{"$f":"INDEX(ToimistoSuunniteltu[],MATCH(INDEX(Toimistopoikkeamat[],ROW()-ROW(Toimistopoikkeamat[[#Headers],[Helmi]]),1),INDEX(ToimistoSuunniteltu[],,1),0),MATCH(Toimistopoikkeamat[[#Headers],[Helmi]],ToimistoSuunniteltu[#Headers],0))-INDEX(ToimistoTodellinen[],MATCH(INDEX(Toimistopoikkeamat[],ROW()-ROW(Toimistopoikkeamat[[#Headers],[Helmi]]),1),INDEX(ToimistoSuunniteltu[],,1),0),MATCH(Toimistopoikkeamat[[#Headers],[Helmi]],ToimistoTodellinen[#Headers],0))","v":{"v":0,"d":"0.00 €"}},{"$f":"INDEX(ToimistoSuunniteltu[],MATCH(INDEX(Toimistopoikkeamat[],ROW()-ROW(Toimistopoikkeamat[[#Headers],[Maalis]]),1),INDEX(ToimistoSuunniteltu[],,1),0),MATCH(Toimistopoikkeamat[[#Headers],[Maalis]],ToimistoSuunniteltu[#Headers],0))-INDEX(ToimistoTodellinen[],MATCH(INDEX(Toimistopoikkeamat[],ROW()-ROW(Toimistopoikkeamat[[#Headers],[Maalis]]),1),INDEX(ToimistoSuunniteltu[],,1),0),MATCH(Toimistopoikkeamat[[#Headers],[Maalis]],ToimistoTodellinen[#Headers],0))","v":{"v":0,"d":"0.00 €"}},{"$f":"INDEX(ToimistoSuunniteltu[],MATCH(INDEX(Toimistopoikkeamat[],ROW()-ROW(Toimistopoikkeamat[[#Headers],[Huhti]]),1),INDEX(ToimistoSuunniteltu[],,1),0),MATCH(Toimistopoikkeamat[[#Headers],[Huhti]],ToimistoSuunniteltu[#Headers],0))-INDEX(ToimistoTodellinen[],MATCH(INDEX(Toimistopoikkeamat[],ROW()-ROW(Toimistopoikkeamat[[#Headers],[Huhti]]),1),INDEX(ToimistoSuunniteltu[],,1),0),MATCH(Toimistopoikkeamat[[#Headers],[Huhti]],ToimistoTodellinen[#Headers],0))","v":{"v":0,"d":"0.00 €"}},{"$f":"INDEX(ToimistoSuunniteltu[],MATCH(INDEX(Toimistopoikkeamat[],ROW()-ROW(Toimistopoikkeamat[[#Headers],[Touko]]),1),INDEX(ToimistoSuunniteltu[],,1),0),MATCH(Toimistopoikkeamat[[#Headers],[Touko]],ToimistoSuunniteltu[#Headers],0))-INDEX(ToimistoTodellinen[],MATCH(INDEX(Toimistopoikkeamat[],ROW()-ROW(Toimistopoikkeamat[[#Headers],[Touko]]),1),INDEX(ToimistoSuunniteltu[],,1),0),MATCH(Toimistopoikkeamat[[#Headers],[Touko]],ToimistoTodellinen[#Headers],0))","v":{"v":0,"d":"0.00 €"}},{"$f":"INDEX(ToimistoSuunniteltu[],MATCH(INDEX(Toimistopoikkeamat[],ROW()-ROW(Toimistopoikkeamat[[#Headers],[Kesä]]),1),INDEX(ToimistoSuunniteltu[],,1),0),MATCH(Toimistopoikkeamat[[#Headers],[Kesä]],ToimistoSuunniteltu[#Headers],0))-INDEX(ToimistoTodellinen[],MATCH(INDEX(Toimistopoikkeamat[],ROW()-ROW(Toimistopoikkeamat[[#Headers],[Kesä]]),1),INDEX(ToimistoSuunniteltu[],,1),0),MATCH(Toimistopoikkeamat[[#Headers],[Kesä]],ToimistoTodellinen[#Headers],0))","v":{"v":0,"d":"0.00 €"}},{"$f":"INDEX(ToimistoSuunniteltu[],MATCH(INDEX(Toimistopoikkeamat[],ROW()-ROW(Toimistopoikkeamat[[#Headers],[Heinä]]),1),INDEX(ToimistoSuunniteltu[],,1),0),MATCH(Toimistopoikkeamat[[#Headers],[Heinä]],ToimistoSuunniteltu[#Headers],0))-INDEX(ToimistoTodellinen[],MATCH(INDEX(Toimistopoikkeamat[],ROW()-ROW(Toimistopoikkeamat[[#Headers],[Heinä]]),1),INDEX(ToimistoSuunniteltu[],,1),0),MATCH(Toimistopoikkeamat[[#Headers],[Heinä]],ToimistoTodellinen[#Headers],0))","v":{"v":9800,"d":"9,800.00 €"}},{"$f":"INDEX(ToimistoSuunniteltu[],MATCH(INDEX(Toimistopoikkeamat[],ROW()-ROW(Toimistopoikkeamat[[#Headers],[Elo]]),1),INDEX(ToimistoSuunniteltu[],,1),0),MATCH(Toimistopoikkeamat[[#Headers],[Elo]],ToimistoSuunniteltu[#Headers],0))-INDEX(ToimistoTodellinen[],MATCH(INDEX(Toimistopoikkeamat[],ROW()-ROW(Toimistopoikkeamat[[#Headers],[Elo]]),1),INDEX(ToimistoSuunniteltu[],,1),0),MATCH(Toimistopoikkeamat[[#Headers],[Elo]],ToimistoTodellinen[#Headers],0))","v":{"v":9800,"d":"9,800.00 €"}},{"$f":"INDEX(ToimistoSuunniteltu[],MATCH(INDEX(Toimistopoikkeamat[],ROW()-ROW(Toimistopoikkeamat[[#Headers],[Syys]]),1),INDEX(ToimistoSuunniteltu[],,1),0),MATCH(Toimistopoikkeamat[[#Headers],[Syys]],ToimistoSuunniteltu[#Headers],0))-INDEX(ToimistoTodellinen[],MATCH(INDEX(Toimistopoikkeamat[],ROW()-ROW(Toimistopoikkeamat[[#Headers],[Syys]]),1),INDEX(ToimistoSuunniteltu[],,1),0),MATCH(Toimistopoikkeamat[[#Headers],[Syys]],ToimistoTodellinen[#Headers],0))","v":{"v":9800,"d":"9,800.00 €"}},{"$f":"INDEX(ToimistoSuunniteltu[],MATCH(INDEX(Toimistopoikkeamat[],ROW()-ROW(Toimistopoikkeamat[[#Headers],[Loka]]),1),INDEX(ToimistoSuunniteltu[],,1),0),MATCH(Toimistopoikkeamat[[#Headers],[Loka]],ToimistoSuunniteltu[#Headers],0))-INDEX(ToimistoTodellinen[],MATCH(INDEX(Toimistopoikkeamat[],ROW()-ROW(Toimistopoikkeamat[[#Headers],[Loka]]),1),INDEX(ToimistoSuunniteltu[],,1),0),MATCH(Toimistopoikkeamat[[#Headers],[Loka]],ToimistoTodellinen[#Headers],0))","v":{"v":9800,"d":"9,800.00 €"}},{"$f":"INDEX(ToimistoSuunniteltu[],MATCH(INDEX(Toimistopoikkeamat[],ROW()-ROW(Toimistopoikkeamat[[#Headers],[Marras]]),1),INDEX(ToimistoSuunniteltu[],,1),0),MATCH(Toimistopoikkeamat[[#Headers],[Marras]],ToimistoSuunniteltu[#Headers],0))-INDEX(ToimistoTodellinen[],MATCH(INDEX(Toimistopoikkeamat[],ROW()-ROW(Toimistopoikkeamat[[#Headers],[Marras]]),1),INDEX(ToimistoSuunniteltu[],,1),0),MATCH(Toimistopoikkeamat[[#Headers],[Marras]],ToimistoTodellinen[#Headers],0))","v":{"v":9800,"d":"9,800.00 €"}},{"$f":"INDEX(ToimistoSuunniteltu[],MATCH(INDEX(Toimistopoikkeamat[],ROW()-ROW(Toimistopoikkeamat[[#Headers],[Joulu]]),1),INDEX(ToimistoSuunniteltu[],,1),0),MATCH(Toimistopoikkeamat[[#Headers],[Joulu]],ToimistoSuunniteltu[#Headers],0))-INDEX(ToimistoTodellinen[],MATCH(INDEX(Toimistopoikkeamat[],ROW()-ROW(Toimistopoikkeamat[[#Headers],[Joulu]]),1),INDEX(ToimistoSuunniteltu[],,1),0),MATCH(Toimistopoikkeamat[[#Headers],[Joulu]],ToimistoTodellinen[#Headers],0))","v":{"v":9800,"d":"9,800.00 €"}},{"$f":"SUM(Toimistopoikkeamat[[#This Row],[Tammi]:[Joulu]])","v":{"v":58800,"d":"58,800.00 €"}}]
[null,"Lämmitys",{"$f":"INDEX(ToimistoSuunniteltu[],MATCH(INDEX(Toimistopoikkeamat[],ROW()-ROW(Toimistopoikkeamat[[#Headers],[Tammi]]),1),INDEX(ToimistoSuunniteltu[],,1),0),MATCH(Toimistopoikkeamat[[#Headers],[Tammi]],ToimistoSuunniteltu[#Headers],0))-INDEX(ToimistoTodellinen[],MATCH(INDEX(Toimistopoikkeamat[],ROW()-ROW(Toimistopoikkeamat[[#Headers],[Tammi]]),1),INDEX(ToimistoSuunniteltu[],,1),0),MATCH(Toimistopoikkeamat[[#Headers],[Tammi]],ToimistoTodellinen[#Headers],0))","v":{"v":-4,"d":"-4.00 €"}},{"$f":"INDEX(ToimistoSuunniteltu[],MATCH(INDEX(Toimistopoikkeamat[],ROW()-ROW(Toimistopoikkeamat[[#Headers],[Helmi]]),1),INDEX(ToimistoSuunniteltu[],,1),0),MATCH(Toimistopoikkeamat[[#Headers],[Helmi]],ToimistoSuunniteltu[#Headers],0))-INDEX(ToimistoTodellinen[],MATCH(INDEX(Toimistopoikkeamat[],ROW()-ROW(Toimistopoikkeamat[[#Headers],[Helmi]]),1),INDEX(ToimistoSuunniteltu[],,1),0),MATCH(Toimistopoikkeamat[[#Headers],[Helmi]],ToimistoTodellinen[#Headers],0))","v":{"v":-30,"d":"-30.00 €"}},{"$f":"INDEX(ToimistoSuunniteltu[],MATCH(INDEX(Toimistopoikkeamat[],ROW()-ROW(Toimistopoikkeamat[[#Headers],[Maalis]]),1),INDEX(ToimistoSuunniteltu[],,1),0),MATCH(Toimistopoikkeamat[[#Headers],[Maalis]],ToimistoSuunniteltu[#Headers],0))-INDEX(ToimistoTodellinen[],MATCH(INDEX(Toimistopoikkeamat[],ROW()-ROW(Toimistopoikkeamat[[#Headers],[Maalis]]),1),INDEX(ToimistoSuunniteltu[],,1),0),MATCH(Toimistopoikkeamat[[#Headers],[Maalis]],ToimistoTodellinen[#Headers],0))","v":{"v":15,"d":"15.00 €"}},{"$f":"INDEX(ToimistoSuunniteltu[],MATCH(INDEX(Toimistopoikkeamat[],ROW()-ROW(Toimistopoikkeamat[[#Headers],[Huhti]]),1),INDEX(ToimistoSuunniteltu[],,1),0),MATCH(Toimistopoikkeamat[[#Headers],[Huhti]],ToimistoSuunniteltu[#Headers],0))-INDEX(ToimistoTodellinen[],MATCH(INDEX(Toimistopoikkeamat[],ROW()-ROW(Toimistopoikkeamat[[#Headers],[Huhti]]),1),INDEX(ToimistoSuunniteltu[],,1),0),MATCH(Toimistopoikkeamat[[#Headers],[Huhti]],ToimistoTodellinen[#Headers],0))","v":{"v":-130,"d":"-130.00 €"}},{"$f":"INDEX(ToimistoSuunniteltu[],MATCH(INDEX(Toimistopoikkeamat[],ROW()-ROW(Toimistopoikkeamat[[#Headers],[Touko]]),1),INDEX(ToimistoSuunniteltu[],,1),0),MATCH(Toimistopoikkeamat[[#Headers],[Touko]],ToimistoSuunniteltu[#Headers],0))-INDEX(ToimistoTodellinen[],MATCH(INDEX(Toimistopoikkeamat[],ROW()-ROW(Toimistopoikkeamat[[#Headers],[Touko]]),1),INDEX(ToimistoSuunniteltu[],,1),0),MATCH(Toimistopoikkeamat[[#Headers],[Touko]],ToimistoTodellinen[#Headers],0))","v":{"v":13,"d":"13.00 €"}},{"$f":"INDEX(ToimistoSuunniteltu[],MATCH(INDEX(Toimistopoikkeamat[],ROW()-ROW(Toimistopoikkeamat[[#Headers],[Kesä]]),1),INDEX(ToimistoSuunniteltu[],,1),0),MATCH(Toimistopoikkeamat[[#Headers],[Kesä]],ToimistoSuunniteltu[#Headers],0))-INDEX(ToimistoTodellinen[],MATCH(INDEX(Toimistopoikkeamat[],ROW()-ROW(Toimistopoikkeamat[[#Headers],[Kesä]]),1),INDEX(ToimistoSuunniteltu[],,1),0),MATCH(Toimistopoikkeamat[[#Headers],[Kesä]],ToimistoTodellinen[#Headers],0))","v":{"v":12,"d":"12.00 €"}},{"$f":"INDEX(ToimistoSuunniteltu[],MATCH(INDEX(Toimistopoikkeamat[],ROW()-ROW(Toimistopoikkeamat[[#Headers],[Heinä]]),1),INDEX(ToimistoSuunniteltu[],,1),0),MATCH(Toimistopoikkeamat[[#Headers],[Heinä]],ToimistoSuunniteltu[#Headers],0))-INDEX(ToimistoTodellinen[],MATCH(INDEX(Toimistopoikkeamat[],ROW()-ROW(Toimistopoikkeamat[[#Headers],[Heinä]]),1),INDEX(ToimistoSuunniteltu[],,1),0),MATCH(Toimistopoikkeamat[[#Headers],[Heinä]],ToimistoTodellinen[#Headers],0))","v":{"v":100,"d":"100.00 €"}},{"$f":"INDEX(ToimistoSuunniteltu[],MATCH(INDEX(Toimistopoikkeamat[],ROW()-ROW(Toimistopoikkeamat[[#Headers],[Elo]]),1),INDEX(ToimistoSuunniteltu[],,1),0),MATCH(Toimistopoikkeamat[[#Headers],[Elo]],ToimistoSuunniteltu[#Headers],0))-INDEX(ToimistoTodellinen[],MATCH(INDEX(Toimistopoikkeamat[],ROW()-ROW(Toimistopoikkeamat[[#Headers],[Elo]]),1),INDEX(ToimistoSuunniteltu[],,1),0),MATCH(Toimistopoikkeamat[[#Headers],[Elo]],ToimistoTodellinen[#Headers],0))","v":{"v":100,"d":"100.00 €"}},{"$f":"INDEX(ToimistoSuunniteltu[],MATCH(INDEX(Toimistopoikkeamat[],ROW()-ROW(Toimistopoikkeamat[[#Headers],[Syys]]),1),INDEX(ToimistoSuunniteltu[],,1),0),MATCH(Toimistopoikkeamat[[#Headers],[Syys]],ToimistoSuunniteltu[#Headers],0))-INDEX(ToimistoTodellinen[],MATCH(INDEX(Toimistopoikkeamat[],ROW()-ROW(Toimistopoikkeamat[[#Headers],[Syys]]),1),INDEX(ToimistoSuunniteltu[],,1),0),MATCH(Toimistopoikkeamat[[#Headers],[Syys]],ToimistoTodellinen[#Headers],0))","v":{"v":100,"d":"100.00 €"}},{"$f":"INDEX(ToimistoSuunniteltu[],MATCH(INDEX(Toimistopoikkeamat[],ROW()-ROW(Toimistopoikkeamat[[#Headers],[Loka]]),1),INDEX(ToimistoSuunniteltu[],,1),0),MATCH(Toimistopoikkeamat[[#Headers],[Loka]],ToimistoSuunniteltu[#Headers],0))-INDEX(ToimistoTodellinen[],MATCH(INDEX(Toimistopoikkeamat[],ROW()-ROW(Toimistopoikkeamat[[#Headers],[Loka]]),1),INDEX(ToimistoSuunniteltu[],,1),0),MATCH(Toimistopoikkeamat[[#Headers],[Loka]],ToimistoTodellinen[#Headers],0))","v":{"v":100,"d":"100.00 €"}},{"$f":"INDEX(ToimistoSuunniteltu[],MATCH(INDEX(Toimistopoikkeamat[],ROW()-ROW(Toimistopoikkeamat[[#Headers],[Marras]]),1),INDEX(ToimistoSuunniteltu[],,1),0),MATCH(Toimistopoikkeamat[[#Headers],[Marras]],ToimistoSuunniteltu[#Headers],0))-INDEX(ToimistoTodellinen[],MATCH(INDEX(Toimistopoikkeamat[],ROW()-ROW(Toimistopoikkeamat[[#Headers],[Marras]]),1),INDEX(ToimistoSuunniteltu[],,1),0),MATCH(Toimistopoikkeamat[[#Headers],[Marras]],ToimistoTodellinen[#Headers],0))","v":{"v":400,"d":"400.00 €"}},{"$f":"INDEX(ToimistoSuunniteltu[],MATCH(INDEX(Toimistopoikkeamat[],ROW()-ROW(Toimistopoikkeamat[[#Headers],[Joulu]]),1),INDEX(ToimistoSuunniteltu[],,1),0),MATCH(Toimistopoikkeamat[[#Headers],[Joulu]],ToimistoSuunniteltu[#Headers],0))-INDEX(ToimistoTodellinen[],MATCH(INDEX(Toimistopoikkeamat[],ROW()-ROW(Toimistopoikkeamat[[#Headers],[Joulu]]),1),INDEX(ToimistoSuunniteltu[],,1),0),MATCH(Toimistopoikkeamat[[#Headers],[Joulu]],ToimistoTodellinen[#Headers],0))","v":{"v":400,"d":"400.00 €"}},{"$f":"SUM(Toimistopoikkeamat[[#This Row],[Tammi]:[Joulu]])","v":{"v":1076,"d":"1,076.00 €"}}]
[null,"Sähkö",{"$f":"INDEX(ToimistoSuunniteltu[],MATCH(INDEX(Toimistopoikkeamat[],ROW()-ROW(Toimistopoikkeamat[[#Headers],[Tammi]]),1),INDEX(ToimistoSuunniteltu[],,1),0),MATCH(Toimistopoikkeamat[[#Headers],[Tammi]],ToimistoSuunniteltu[#Headers],0))-INDEX(ToimistoTodellinen[],MATCH(INDEX(Toimistopoikkeamat[],ROW()-ROW(Toimistopoikkeamat[[#Headers],[Tammi]]),1),INDEX(ToimistoSuunniteltu[],,1),0),MATCH(Toimistopoikkeamat[[#Headers],[Tammi]],ToimistoTodellinen[#Headers],0))","v":{"v":12,"d":"12.00 €"}},{"$f":"INDEX(ToimistoSuunniteltu[],MATCH(INDEX(Toimistopoikkeamat[],ROW()-ROW(Toimistopoikkeamat[[#Headers],[Helmi]]),1),INDEX(ToimistoSuunniteltu[],,1),0),MATCH(Toimistopoikkeamat[[#Headers],[Helmi]],ToimistoSuunniteltu[#Headers],0))-INDEX(ToimistoTodellinen[],MATCH(INDEX(Toimistopoikkeamat[],ROW()-ROW(Toimistopoikkeamat[[#Headers],[Helmi]]),1),INDEX(ToimistoSuunniteltu[],,1),0),MATCH(Toimistopoikkeamat[[#Headers],[Helmi]],ToimistoTodellinen[#Headers],0))","v":{"v":22,"d":"22.00 €"}},{"$f":"INDEX(ToimistoSuunniteltu[],MATCH(INDEX(Toimistopoikkeamat[],ROW()-ROW(Toimistopoikkeamat[[#Headers],[Maalis]]),1),INDEX(ToimistoSuunniteltu[],,1),0),MATCH(Toimistopoikkeamat[[#Headers],[Maalis]],ToimistoSuunniteltu[#Headers],0))-INDEX(ToimistoTodellinen[],MATCH(INDEX(Toimistopoikkeamat[],ROW()-ROW(Toimistopoikkeamat[[#Headers],[Maalis]]),1),INDEX(ToimistoSuunniteltu[],,1),0),MATCH(Toimistopoikkeamat[[#Headers],[Maalis]],ToimistoTodellinen[#Headers],0))","v":{"v":32,"d":"32.00 €"}},{"$f":"INDEX(ToimistoSuunniteltu[],MATCH(INDEX(Toimistopoikkeamat[],ROW()-ROW(Toimistopoikkeamat[[#Headers],[Huhti]]),1),INDEX(ToimistoSuunniteltu[],,1),0),MATCH(Toimistopoikkeamat[[#Headers],[Huhti]],ToimistoSuunniteltu[#Headers],0))-INDEX(ToimistoTodellinen[],MATCH(INDEX(Toimistopoikkeamat[],ROW()-ROW(Toimistopoikkeamat[[#Headers],[Huhti]]),1),INDEX(ToimistoSuunniteltu[],,1),0),MATCH(Toimistopoikkeamat[[#Headers],[Huhti]],ToimistoTodellinen[#Headers],0))","v":{"v":1,"d":"1.00 €"}},{"$f":"INDEX(ToimistoSuunniteltu[],MATCH(INDEX(Toimistopoikkeamat[],ROW()-ROW(Toimistopoikkeamat[[#Headers],[Touko]]),1),INDEX(ToimistoSuunniteltu[],,1),0),MATCH(Toimistopoikkeamat[[#Headers],[Touko]],ToimistoSuunniteltu[#Headers],0))-INDEX(ToimistoTodellinen[],MATCH(INDEX(Toimistopoikkeamat[],ROW()-ROW(Toimistopoikkeamat[[#Headers],[Touko]]),1),INDEX(ToimistoSuunniteltu[],,1),0),MATCH(Toimistopoikkeamat[[#Headers],[Touko]],ToimistoTodellinen[#Headers],0))","v":{"v":-6,"d":"-6.00 €"}},{"$f":"INDEX(ToimistoSuunniteltu[],MATCH(INDEX(Toimistopoikkeamat[],ROW()-ROW(Toimistopoikkeamat[[#Headers],[Kesä]]),1),INDEX(ToimistoSuunniteltu[],,1),0),MATCH(Toimistopoikkeamat[[#Headers],[Kesä]],ToimistoSuunniteltu[#Headers],0))-INDEX(ToimistoTodellinen[],MATCH(INDEX(Toimistopoikkeamat[],ROW()-ROW(Toimistopoikkeamat[[#Headers],[Kesä]]),1),INDEX(ToimistoSuunniteltu[],,1),0),MATCH(Toimistopoikkeamat[[#Headers],[Kesä]],ToimistoTodellinen[#Headers],0))","v":{"v":10,"d":"10.00 €"}},{"$f":"INDEX(ToimistoSuunniteltu[],MATCH(INDEX(Toimistopoikkeamat[],ROW()-ROW(Toimistopoikkeamat[[#Headers],[Heinä]]),1),INDEX(ToimistoSuunniteltu[],,1),0),MATCH(Toimistopoikkeamat[[#Headers],[Heinä]],ToimistoSuunniteltu[#Headers],0))-INDEX(ToimistoTodellinen[],MATCH(INDEX(Toimistopoikkeamat[],ROW()-ROW(Toimistopoikkeamat[[#Headers],[Heinä]]),1),INDEX(ToimistoSuunniteltu[],,1),0),MATCH(Toimistopoikkeamat[[#Headers],[Heinä]],ToimistoTodellinen[#Headers],0))","v":{"v":300,"d":"300.00 €"}},{"$f":"INDEX(ToimistoSuunniteltu[],MATCH(INDEX(Toimistopoikkeamat[],ROW()-ROW(Toimistopoikkeamat[[#Headers],[Elo]]),1),INDEX(ToimistoSuunniteltu[],,1),0),MATCH(Toimistopoikkeamat[[#Headers],[Elo]],ToimistoSuunniteltu[#Headers],0))-INDEX(ToimistoTodellinen[],MATCH(INDEX(Toimistopoikkeamat[],ROW()-ROW(Toimistopoikkeamat[[#Headers],[Elo]]),1),INDEX(ToimistoSuunniteltu[],,1),0),MATCH(Toimistopoikkeamat[[#Headers],[Elo]],ToimistoTodellinen[#Headers],0))","v":{"v":300,"d":"300.00 €"}},{"$f":"INDEX(ToimistoSuunniteltu[],MATCH(INDEX(Toimistopoikkeamat[],ROW()-ROW(Toimistopoikkeamat[[#Headers],[Syys]]),1),INDEX(ToimistoSuunniteltu[],,1),0),MATCH(Toimistopoikkeamat[[#Headers],[Syys]],ToimistoSuunniteltu[#Headers],0))-INDEX(ToimistoTodellinen[],MATCH(INDEX(Toimistopoikkeamat[],ROW()-ROW(Toimistopoikkeamat[[#Headers],[Syys]]),1),INDEX(ToimistoSuunniteltu[],,1),0),MATCH(Toimistopoikkeamat[[#Headers],[Syys]],ToimistoTodellinen[#Headers],0))","v":{"v":300,"d":"300.00 €"}},{"$f":"INDEX(ToimistoSuunniteltu[],MATCH(INDEX(Toimistopoikkeamat[],ROW()-ROW(Toimistopoikkeamat[[#Headers],[Loka]]),1),INDEX(ToimistoSuunniteltu[],,1),0),MATCH(Toimistopoikkeamat[[#Headers],[Loka]],ToimistoSuunniteltu[#Headers],0))-INDEX(ToimistoTodellinen[],MATCH(INDEX(Toimistopoikkeamat[],ROW()-ROW(Toimistopoikkeamat[[#Headers],[Loka]]),1),INDEX(ToimistoSuunniteltu[],,1),0),MATCH(Toimistopoikkeamat[[#Headers],[Loka]],ToimistoTodellinen[#Headers],0))","v":{"v":300,"d":"300.00 €"}},{"$f":"INDEX(ToimistoSuunniteltu[],MATCH(INDEX(Toimistopoikkeamat[],ROW()-ROW(Toimistopoikkeamat[[#Headers],[Marras]]),1),INDEX(ToimistoSuunniteltu[],,1),0),MATCH(Toimistopoikkeamat[[#Headers],[Marras]],ToimistoSuunniteltu[#Headers],0))-INDEX(ToimistoTodellinen[],MATCH(INDEX(Toimistopoikkeamat[],ROW()-ROW(Toimistopoikkeamat[[#Headers],[Marras]]),1),INDEX(ToimistoSuunniteltu[],,1),0),MATCH(Toimistopoikkeamat[[#Headers],[Marras]],ToimistoTodellinen[#Headers],0))","v":{"v":300,"d":"300.00 €"}},{"$f":"INDEX(ToimistoSuunniteltu[],MATCH(INDEX(Toimistopoikkeamat[],ROW()-ROW(Toimistopoikkeamat[[#Headers],[Joulu]]),1),INDEX(ToimistoSuunniteltu[],,1),0),MATCH(Toimistopoikkeamat[[#Headers],[Joulu]],ToimistoSuunniteltu[#Headers],0))-INDEX(ToimistoTodellinen[],MATCH(INDEX(Toimistopoikkeamat[],ROW()-ROW(Toimistopoikkeamat[[#Headers],[Joulu]]),1),INDEX(ToimistoSuunniteltu[],,1),0),MATCH(Toimistopoikkeamat[[#Headers],[Joulu]],ToimistoTodellinen[#Headers],0))","v":{"v":300,"d":"300.00 €"}},{"$f":"SUM(Toimistopoikkeamat[[#This Row],[Tammi]:[Joulu]])","v":{"v":1871,"d":"1,871.00 €"}}]
[null,"Vesi",{"$f":"INDEX(ToimistoSuunniteltu[],MATCH(INDEX(Toimistopoikkeamat[],ROW()-ROW(Toimistopoikkeamat[[#Headers],[Tammi]]),1),INDEX(ToimistoSuunniteltu[],,1),0),MATCH(Toimistopoikkeamat[[#Headers],[Tammi]],ToimistoSuunniteltu[#Headers],0))-INDEX(ToimistoTodellinen[],MATCH(INDEX(Toimistopoikkeamat[],ROW()-ROW(Toimistopoikkeamat[[#Headers],[Tammi]]),1),INDEX(ToimistoSuunniteltu[],,1),0),MATCH(Toimistopoikkeamat[[#Headers],[Tammi]],ToimistoTodellinen[#Headers],0))","v":{"v":5,"d":"5.00 €"}},{"$f":"INDEX(ToimistoSuunniteltu[],MATCH(INDEX(Toimistopoikkeamat[],ROW()-ROW(Toimistopoikkeamat[[#Headers],[Helmi]]),1),INDEX(ToimistoSuunniteltu[],,1),0),MATCH(Toimistopoikkeamat[[#Headers],[Helmi]],ToimistoSuunniteltu[#Headers],0))-INDEX(ToimistoTodellinen[],MATCH(INDEX(Toimistopoikkeamat[],ROW()-ROW(Toimistopoikkeamat[[#Headers],[Helmi]]),1),INDEX(ToimistoSuunniteltu[],,1),0),MATCH(Toimistopoikkeamat[[#Headers],[Helmi]],ToimistoTodellinen[#Headers],0))","v":{"v":7,"d":"7.00 €"}},{"$f":"INDEX(ToimistoSuunniteltu[],MATCH(INDEX(Toimistopoikkeamat[],ROW()-ROW(Toimistopoikkeamat[[#Headers],[Maalis]]),1),INDEX(ToimistoSuunniteltu[],,1),0),MATCH(Toimistopoikkeamat[[#Headers],[Maalis]],ToimistoSuunniteltu[#Headers],0))-INDEX(ToimistoTodellinen[],MATCH(INDEX(Toimistopoikkeamat[],ROW()-ROW(Toimistopoikkeamat[[#Headers],[Maalis]]),1),INDEX(ToimistoSuunniteltu[],,1),0),MATCH(Toimistopoikkeamat[[#Headers],[Maalis]],ToimistoTodellinen[#Headers],0))","v":{"v":6,"d":"6.00 €"}},{"$f":"INDEX(ToimistoSuunniteltu[],MATCH(INDEX(Toimistopoikkeamat[],ROW()-ROW(Toimistopoikkeamat[[#Headers],[Huhti]]),1),INDEX(ToimistoSuunniteltu[],,1),0),MATCH(Toimistopoikkeamat[[#Headers],[Huhti]],ToimistoSuunniteltu[#Headers],0))-INDEX(ToimistoTodellinen[],MATCH(INDEX(Toimistopoikkeamat[],ROW()-ROW(Toimistopoikkeamat[[#Headers],[Huhti]]),1),INDEX(ToimistoSuunniteltu[],,1),0),MATCH(Toimistopoikkeamat[[#Headers],[Huhti]],ToimistoTodellinen[#Headers],0))","v":{"v":4,"d":"4.00 €"}},{"$f":"INDEX(ToimistoSuunniteltu[],MATCH(INDEX(Toimistopoikkeamat[],ROW()-ROW(Toimistopoikkeamat[[#Headers],[Touko]]),1),INDEX(ToimistoSuunniteltu[],,1),0),MATCH(Toimistopoikkeamat[[#Headers],[Touko]],ToimistoSuunniteltu[#Headers],0))-INDEX(ToimistoTodellinen[],MATCH(INDEX(Toimistopoikkeamat[],ROW()-ROW(Toimistopoikkeamat[[#Headers],[Touko]]),1),INDEX(ToimistoSuunniteltu[],,1),0),MATCH(Toimistopoikkeamat[[#Headers],[Touko]],ToimistoTodellinen[#Headers],0))","v":{"v":6,"d":"6.00 €"}},{"$f":"INDEX(ToimistoSuunniteltu[],MATCH(INDEX(Toimistopoikkeamat[],ROW()-ROW(Toimistopoikkeamat[[#Headers],[Kesä]]),1),INDEX(ToimistoSuunniteltu[],,1),0),MATCH(Toimistopoikkeamat[[#Headers],[Kesä]],ToimistoSuunniteltu[#Headers],0))-INDEX(ToimistoTodellinen[],MATCH(INDEX(Toimistopoikkeamat[],ROW()-ROW(Toimistopoikkeamat[[#Headers],[Kesä]]),1),INDEX(ToimistoSuunniteltu[],,1),0),MATCH(Toimistopoikkeamat[[#Headers],[Kesä]],ToimistoTodellinen[#Headers],0))","v":{"v":4,"d":"4.00 €"}},{"$f":"INDEX(ToimistoSuunniteltu[],MATCH(INDEX(Toimistopoikkeamat[],ROW()-ROW(Toimistopoikkeamat[[#Headers],[Heinä]]),1),INDEX(ToimistoSuunniteltu[],,1),0),MATCH(Toimistopoikkeamat[[#Headers],[Heinä]],ToimistoSuunniteltu[#Headers],0))-INDEX(ToimistoTodellinen[],MATCH(INDEX(Toimistopoikkeamat[],ROW()-ROW(Toimistopoikkeamat[[#Headers],[Heinä]]),1),INDEX(ToimistoSuunniteltu[],,1),0),MATCH(Toimistopoikkeamat[[#Headers],[Heinä]],ToimistoTodellinen[#Headers],0))","v":{"v":40,"d":"40.00 €"}},{"$f":"INDEX(ToimistoSuunniteltu[],MATCH(INDEX(Toimistopoikkeamat[],ROW()-ROW(Toimistopoikkeamat[[#Headers],[Elo]]),1),INDEX(ToimistoSuunniteltu[],,1),0),MATCH(Toimistopoikkeamat[[#Headers],[Elo]],ToimistoSuunniteltu[#Headers],0))-INDEX(ToimistoTodellinen[],MATCH(INDEX(Toimistopoikkeamat[],ROW()-ROW(Toimistopoikkeamat[[#Headers],[Elo]]),1),INDEX(ToimistoSuunniteltu[],,1),0),MATCH(Toimistopoikkeamat[[#Headers],[Elo]],ToimistoTodellinen[#Headers],0))","v":{"v":40,"d":"40.00 €"}},{"$f":"INDEX(ToimistoSuunniteltu[],MATCH(INDEX(Toimistopoikkeamat[],ROW()-ROW(Toimistopoikkeamat[[#Headers],[Syys]]),1),INDEX(ToimistoSuunniteltu[],,1),0),MATCH(Toimistopoikkeamat[[#Headers],[Syys]],ToimistoSuunniteltu[#Headers],0))-INDEX(ToimistoTodellinen[],MATCH(INDEX(Toimistopoikkeamat[],ROW()-ROW(Toimistopoikkeamat[[#Headers],[Syys]]),1),INDEX(ToimistoSuunniteltu[],,1),0),MATCH(Toimistopoikkeamat[[#Headers],[Syys]],ToimistoTodellinen[#Headers],0))","v":{"v":40,"d":"40.00 €"}},{"$f":"INDEX(ToimistoSuunniteltu[],MATCH(INDEX(Toimistopoikkeamat[],ROW()-ROW(Toimistopoikkeamat[[#Headers],[Loka]]),1),INDEX(ToimistoSuunniteltu[],,1),0),MATCH(Toimistopoikkeamat[[#Headers],[Loka]],ToimistoSuunniteltu[#Headers],0))-INDEX(ToimistoTodellinen[],MATCH(INDEX(Toimistopoikkeamat[],ROW()-ROW(Toimistopoikkeamat[[#Headers],[Loka]]),1),INDEX(ToimistoSuunniteltu[],,1),0),MATCH(Toimistopoikkeamat[[#Headers],[Loka]],ToimistoTodellinen[#Headers],0))","v":{"v":40,"d":"40.00 €"}},{"$f":"INDEX(ToimistoSuunniteltu[],MATCH(INDEX(Toimistopoikkeamat[],ROW()-ROW(Toimistopoikkeamat[[#Headers],[Marras]]),1),INDEX(ToimistoSuunniteltu[],,1),0),MATCH(Toimistopoikkeamat[[#Headers],[Marras]],ToimistoSuunniteltu[#Headers],0))-INDEX(ToimistoTodellinen[],MATCH(INDEX(Toimistopoikkeamat[],ROW()-ROW(Toimistopoikkeamat[[#Headers],[Marras]]),1),INDEX(ToimistoSuunniteltu[],,1),0),MATCH(Toimistopoikkeamat[[#Headers],[Marras]],ToimistoTodellinen[#Headers],0))","v":{"v":40,"d":"40.00 €"}},{"$f":"INDEX(ToimistoSuunniteltu[],MATCH(INDEX(Toimistopoikkeamat[],ROW()-ROW(Toimistopoikkeamat[[#Headers],[Joulu]]),1),INDEX(ToimistoSuunniteltu[],,1),0),MATCH(Toimistopoikkeamat[[#Headers],[Joulu]],ToimistoSuunniteltu[#Headers],0))-INDEX(ToimistoTodellinen[],MATCH(INDEX(Toimistopoikkeamat[],ROW()-ROW(Toimistopoikkeamat[[#Headers],[Joulu]]),1),INDEX(ToimistoSuunniteltu[],,1),0),MATCH(Toimistopoikkeamat[[#Headers],[Joulu]],ToimistoTodellinen[#Headers],0))","v":{"v":40,"d":"40.00 €"}},{"$f":"SUM(Toimistopoikkeamat[[#This Row],[Tammi]:[Joulu]])","v":{"v":272,"d":"272.00 €"}}]
[null,"Puhelin",{"$f":"INDEX(ToimistoSuunniteltu[],MATCH(INDEX(Toimistopoikkeamat[],ROW()-ROW(Toimistopoikkeamat[[#Headers],[Tammi]]),1),INDEX(ToimistoSuunniteltu[],,1),0),MATCH(Toimistopoikkeamat[[#Headers],[Tammi]],ToimistoSuunniteltu[#Headers],0))-INDEX(ToimistoTodellinen[],MATCH(INDEX(Toimistopoikkeamat[],ROW()-ROW(Toimistopoikkeamat[[#Headers],[Tammi]]),1),INDEX(ToimistoSuunniteltu[],,1),0),MATCH(Toimistopoikkeamat[[#Headers],[Tammi]],ToimistoTodellinen[#Headers],0))","v":{"v":26,"d":"26.00 €"}},{"$f":"INDEX(ToimistoSuunniteltu[],MATCH(INDEX(Toimistopoikkeamat[],ROW()-ROW(Toimistopoikkeamat[[#Headers],[Helmi]]),1),INDEX(ToimistoSuunniteltu[],,1),0),MATCH(Toimistopoikkeamat[[#Headers],[Helmi]],ToimistoSuunniteltu[#Headers],0))-INDEX(ToimistoTodellinen[],MATCH(INDEX(Toimistopoikkeamat[],ROW()-ROW(Toimistopoikkeamat[[#Headers],[Helmi]]),1),INDEX(ToimistoSuunniteltu[],,1),0),MATCH(Toimistopoikkeamat[[#Headers],[Helmi]],ToimistoTodellinen[#Headers],0))","v":{"v":15,"d":"15.00 €"}},{"$f":"INDEX(ToimistoSuunniteltu[],MATCH(INDEX(Toimistopoikkeamat[],ROW()-ROW(Toimistopoikkeamat[[#Headers],[Maalis]]),1),INDEX(ToimistoSuunniteltu[],,1),0),MATCH(Toimistopoikkeamat[[#Headers],[Maalis]],ToimistoSuunniteltu[#Headers],0))-INDEX(ToimistoTodellinen[],MATCH(INDEX(Toimistopoikkeamat[],ROW()-ROW(Toimistopoikkeamat[[#Headers],[Maalis]]),1),INDEX(ToimistoSuunniteltu[],,1),0),MATCH(Toimistopoikkeamat[[#Headers],[Maalis]],ToimistoTodellinen[#Headers],0))","v":{"v":-15,"d":"-15.00 €"}},{"$f":"INDEX(ToimistoSuunniteltu[],MATCH(INDEX(Toimistopoikkeamat[],ROW()-ROW(Toimistopoikkeamat[[#Headers],[Huhti]]),1),INDEX(ToimistoSuunniteltu[],,1),0),MATCH(Toimistopoikkeamat[[#Headers],[Huhti]],ToimistoSuunniteltu[#Headers],0))-INDEX(ToimistoTodellinen[],MATCH(INDEX(Toimistopoikkeamat[],ROW()-ROW(Toimistopoikkeamat[[#Headers],[Huhti]]),1),INDEX(ToimistoSuunniteltu[],,1),0),MATCH(Toimistopoikkeamat[[#Headers],[Huhti]],ToimistoTodellinen[#Headers],0))","v":{"v":5,"d":"5.00 €"}},{"$f":"INDEX(ToimistoSuunniteltu[],MATCH(INDEX(Toimistopoikkeamat[],ROW()-ROW(Toimistopoikkeamat[[#Headers],[Touko]]),1),INDEX(ToimistoSuunniteltu[],,1),0),MATCH(Toimistopoikkeamat[[#Headers],[Touko]],ToimistoSuunniteltu[#Headers],0))-INDEX(ToimistoTodellinen[],MATCH(INDEX(Toimistopoikkeamat[],ROW()-ROW(Toimistopoikkeamat[[#Headers],[Touko]]),1),INDEX(ToimistoSuunniteltu[],,1),0),MATCH(Toimistopoikkeamat[[#Headers],[Touko]],ToimistoTodellinen[#Headers],0))","v":{"v":5,"d":"5.00 €"}},{"$f":"INDEX(ToimistoSuunniteltu[],MATCH(INDEX(Toimistopoikkeamat[],ROW()-ROW(Toimistopoikkeamat[[#Headers],[Kesä]]),1),INDEX(ToimistoSuunniteltu[],,1),0),MATCH(Toimistopoikkeamat[[#Headers],[Kesä]],ToimistoSuunniteltu[#Headers],0))-INDEX(ToimistoTodellinen[],MATCH(INDEX(Toimistopoikkeamat[],ROW()-ROW(Toimistopoikkeamat[[#Headers],[Kesä]]),1),INDEX(ToimistoSuunniteltu[],,1),0),MATCH(Toimistopoikkeamat[[#Headers],[Kesä]],ToimistoTodellinen[#Headers],0))","v":{"v":30,"d":"30.00 €"}},{"$f":"INDEX(ToimistoSuunniteltu[],MATCH(INDEX(Toimistopoikkeamat[],ROW()-ROW(Toimistopoikkeamat[[#Headers],[Heinä]]),1),INDEX(ToimistoSuunniteltu[],,1),0),MATCH(Toimistopoikkeamat[[#Headers],[Heinä]],ToimistoSuunniteltu[#Headers],0))-INDEX(ToimistoTodellinen[],MATCH(INDEX(Toimistopoikkeamat[],ROW()-ROW(Toimistopoikkeamat[[#Headers],[Heinä]]),1),INDEX(ToimistoSuunniteltu[],,1),0),MATCH(Toimistopoikkeamat[[#Headers],[Heinä]],ToimistoTodellinen[#Headers],0))","v":{"v":250,"d":"250.00 €"}},{"$f":"INDEX(ToimistoSuunniteltu[],MATCH(INDEX(Toimistopoikkeamat[],ROW()-ROW(Toimistopoikkeamat[[#Headers],[Elo]]),1),INDEX(ToimistoSuunniteltu[],,1),0),MATCH(Toimistopoikkeamat[[#Headers],[Elo]],ToimistoSuunniteltu[#Headers],0))-INDEX(ToimistoTodellinen[],MATCH(INDEX(Toimistopoikkeamat[],ROW()-ROW(Toimistopoikkeamat[[#Headers],[Elo]]),1),INDEX(ToimistoSuunniteltu[],,1),0),MATCH(Toimistopoikkeamat[[#Headers],[Elo]],ToimistoTodellinen[#Headers],0))","v":{"v":250,"d":"250.00 €"}},{"$f":"INDEX(ToimistoSuunniteltu[],MATCH(INDEX(Toimistopoikkeamat[],ROW()-ROW(Toimistopoikkeamat[[#Headers],[Syys]]),1),INDEX(ToimistoSuunniteltu[],,1),0),MATCH(Toimistopoikkeamat[[#Headers],[Syys]],ToimistoSuunniteltu[#Headers],0))-INDEX(ToimistoTodellinen[],MATCH(INDEX(Toimistopoikkeamat[],ROW()-ROW(Toimistopoikkeamat[[#Headers],[Syys]]),1),INDEX(ToimistoSuunniteltu[],,1),0),MATCH(Toimistopoikkeamat[[#Headers],[Syys]],ToimistoTodellinen[#Headers],0))","v":{"v":250,"d":"250.00 €"}},{"$f":"INDEX(ToimistoSuunniteltu[],MATCH(INDEX(Toimistopoikkeamat[],ROW()-ROW(Toimistopoikkeamat[[#Headers],[Loka]]),1),INDEX(ToimistoSuunniteltu[],,1),0),MATCH(Toimistopoikkeamat[[#Headers],[Loka]],ToimistoSuunniteltu[#Headers],0))-INDEX(ToimistoTodellinen[],MATCH(INDEX(Toimistopoikkeamat[],ROW()-ROW(Toimistopoikkeamat[[#Headers],[Loka]]),1),INDEX(ToimistoSuunniteltu[],,1),0),MATCH(Toimistopoikkeamat[[#Headers],[Loka]],ToimistoTodellinen[#Headers],0))","v":{"v":250,"d":"250.00 €"}},{"$f":"INDEX(ToimistoSuunniteltu[],MATCH(INDEX(Toimistopoikkeamat[],ROW()-ROW(Toimistopoikkeamat[[#Headers],[Marras]]),1),INDEX(ToimistoSuunniteltu[],,1),0),MATCH(Toimistopoikkeamat[[#Headers],[Marras]],ToimistoSuunniteltu[#Headers],0))-INDEX(ToimistoTodellinen[],MATCH(INDEX(Toimistopoikkeamat[],ROW()-ROW(Toimistopoikkeamat[[#Headers],[Marras]]),1),INDEX(ToimistoSuunniteltu[],,1),0),MATCH(Toimistopoikkeamat[[#Headers],[Marras]],ToimistoTodellinen[#Headers],0))","v":{"v":250,"d":"250.00 €"}},{"$f":"INDEX(ToimistoSuunniteltu[],MATCH(INDEX(Toimistopoikkeamat[],ROW()-ROW(Toimistopoikkeamat[[#Headers],[Joulu]]),1),INDEX(ToimistoSuunniteltu[],,1),0),MATCH(Toimistopoikkeamat[[#Headers],[Joulu]],ToimistoSuunniteltu[#Headers],0))-INDEX(ToimistoTodellinen[],MATCH(INDEX(Toimistopoikkeamat[],ROW()-ROW(Toimistopoikkeamat[[#Headers],[Joulu]]),1),INDEX(ToimistoSuunniteltu[],,1),0),MATCH(Toimistopoikkeamat[[#Headers],[Joulu]],ToimistoTodellinen[#Headers],0))","v":{"v":250,"d":"250.00 €"}},{"$f":"SUM(Toimistopoikkeamat[[#This Row],[Tammi]:[Joulu]])","v":{"v":1566,"d":"1,566.00 €"}}]
[null,"Internet-yhteys",{"$f":"INDEX(ToimistoSuunniteltu[],MATCH(INDEX(Toimistopoikkeamat[],ROW()-ROW(Toimistopoikkeamat[[#Headers],[Tammi]]),1),INDEX(ToimistoSuunniteltu[],,1),0),MATCH(Toimistopoikkeamat[[#Headers],[Tammi]],ToimistoSuunniteltu[#Headers],0))-INDEX(ToimistoTodellinen[],MATCH(INDEX(Toimistopoikkeamat[],ROW()-ROW(Toimistopoikkeamat[[#Headers],[Tammi]]),1),INDEX(ToimistoSuunniteltu[],,1),0),MATCH(Toimistopoikkeamat[[#Headers],[Tammi]],ToimistoTodellinen[#Headers],0))","v":{"v":0,"d":"0.00 €"}},{"$f":"INDEX(ToimistoSuunniteltu[],MATCH(INDEX(Toimistopoikkeamat[],ROW()-ROW(Toimistopoikkeamat[[#Headers],[Helmi]]),1),INDEX(ToimistoSuunniteltu[],,1),0),MATCH(Toimistopoikkeamat[[#Headers],[Helmi]],ToimistoSuunniteltu[#Headers],0))-INDEX(ToimistoTodellinen[],MATCH(INDEX(Toimistopoikkeamat[],ROW()-ROW(Toimistopoikkeamat[[#Headers],[Helmi]]),1),INDEX(ToimistoSuunniteltu[],,1),0),MATCH(Toimistopoikkeamat[[#Headers],[Helmi]],ToimistoTodellinen[#Headers],0))","v":{"v":0,"d":"0.00 €"}},{"$f":"INDEX(ToimistoSuunniteltu[],MATCH(INDEX(Toimistopoikkeamat[],ROW()-ROW(Toimistopoikkeamat[[#Headers],[Maalis]]),1),INDEX(ToimistoSuunniteltu[],,1),0),MATCH(Toimistopoikkeamat[[#Headers],[Maalis]],ToimistoSuunniteltu[#Headers],0))-INDEX(ToimistoTodellinen[],MATCH(INDEX(Toimistopoikkeamat[],ROW()-ROW(Toimistopoikkeamat[[#Headers],[Maalis]]),1),INDEX(ToimistoSuunniteltu[],,1),0),MATCH(Toimistopoikkeamat[[#Headers],[Maalis]],ToimistoTodellinen[#Headers],0))","v":{"v":0,"d":"0.00 €"}},{"$f":"INDEX(ToimistoSuunniteltu[],MATCH(INDEX(Toimistopoikkeamat[],ROW()-ROW(Toimistopoikkeamat[[#Headers],[Huhti]]),1),INDEX(ToimistoSuunniteltu[],,1),0),MATCH(Toimistopoikkeamat[[#Headers],[Huhti]],ToimistoSuunniteltu[#Headers],0))-INDEX(ToimistoTodellinen[],MATCH(INDEX(Toimistopoikkeamat[],ROW()-ROW(Toimistopoikkeamat[[#Headers],[Huhti]]),1),INDEX(ToimistoSuunniteltu[],,1),0),MATCH(Toimistopoikkeamat[[#Headers],[Huhti]],ToimistoTodellinen[#Headers],0))","v":{"v":0,"d":"0.00 €"}},{"$f":"INDEX(ToimistoSuunniteltu[],MATCH(INDEX(Toimistopoikkeamat[],ROW()-ROW(Toimistopoikkeamat[[#Headers],[Touko]]),1),INDEX(ToimistoSuunniteltu[],,1),0),MATCH(Toimistopoikkeamat[[#Headers],[Touko]],ToimistoSuunniteltu[#Headers],0))-INDEX(ToimistoTodellinen[],MATCH(INDEX(Toimistopoikkeamat[],ROW()-ROW(Toimistopoikkeamat[[#Headers],[Touko]]),1),INDEX(ToimistoSuunniteltu[],,1),0),MATCH(Toimistopoikkeamat[[#Headers],[Touko]],ToimistoTodellinen[#Headers],0))","v":{"v":0,"d":"0.00 €"}},{"$f":"INDEX(ToimistoSuunniteltu[],MATCH(INDEX(Toimistopoikkeamat[],ROW()-ROW(Toimistopoikkeamat[[#Headers],[Kesä]]),1),INDEX(ToimistoSuunniteltu[],,1),0),MATCH(Toimistopoikkeamat[[#Headers],[Kesä]],ToimistoSuunniteltu[#Headers],0))-INDEX(ToimistoTodellinen[],MATCH(INDEX(Toimistopoikkeamat[],ROW()-ROW(Toimistopoikkeamat[[#Headers],[Kesä]]),1),INDEX(ToimistoSuunniteltu[],,1),0),MATCH(Toimistopoikkeamat[[#Headers],[Kesä]],ToimistoTodellinen[#Headers],0))","v":{"v":0,"d":"0.00 €"}},{"$f":"INDEX(ToimistoSuunniteltu[],MATCH(INDEX(Toimistopoikkeamat[],ROW()-ROW(Toimistopoikkeamat[[#Headers],[Heinä]]),1),INDEX(ToimistoSuunniteltu[],,1),0),MATCH(Toimistopoikkeamat[[#Headers],[Heinä]],ToimistoSuunniteltu[#Headers],0))-INDEX(ToimistoTodellinen[],MATCH(INDEX(Toimistopoikkeamat[],ROW()-ROW(Toimistopoikkeamat[[#Headers],[Heinä]]),1),INDEX(ToimistoSuunniteltu[],,1),0),MATCH(Toimistopoikkeamat[[#Headers],[Heinä]],ToimistoTodellinen[#Headers],0))","v":{"v":180,"d":"180.00 €"}},{"$f":"INDEX(ToimistoSuunniteltu[],MATCH(INDEX(Toimistopoikkeamat[],ROW()-ROW(Toimistopoikkeamat[[#Headers],[Elo]]),1),INDEX(ToimistoSuunniteltu[],,1),0),MATCH(Toimistopoikkeamat[[#Headers],[Elo]],ToimistoSuunniteltu[#Headers],0))-INDEX(ToimistoTodellinen[],MATCH(INDEX(Toimistopoikkeamat[],ROW()-ROW(Toimistopoikkeamat[[#Headers],[Elo]]),1),INDEX(ToimistoSuunniteltu[],,1),0),MATCH(Toimistopoikkeamat[[#Headers],[Elo]],ToimistoTodellinen[#Headers],0))","v":{"v":180,"d":"180.00 €"}},{"$f":"INDEX(ToimistoSuunniteltu[],MATCH(INDEX(Toimistopoikkeamat[],ROW()-ROW(Toimistopoikkeamat[[#Headers],[Syys]]),1),INDEX(ToimistoSuunniteltu[],,1),0),MATCH(Toimistopoikkeamat[[#Headers],[Syys]],ToimistoSuunniteltu[#Headers],0))-INDEX(ToimistoTodellinen[],MATCH(INDEX(Toimistopoikkeamat[],ROW()-ROW(Toimistopoikkeamat[[#Headers],[Syys]]),1),INDEX(ToimistoSuunniteltu[],,1),0),MATCH(Toimistopoikkeamat[[#Headers],[Syys]],ToimistoTodellinen[#Headers],0))","v":{"v":180,"d":"180.00 €"}},{"$f":"INDEX(ToimistoSuunniteltu[],MATCH(INDEX(Toimistopoikkeamat[],ROW()-ROW(Toimistopoikkeamat[[#Headers],[Loka]]),1),INDEX(ToimistoSuunniteltu[],,1),0),MATCH(Toimistopoikkeamat[[#Headers],[Loka]],ToimistoSuunniteltu[#Headers],0))-INDEX(ToimistoTodellinen[],MATCH(INDEX(Toimistopoikkeamat[],ROW()-ROW(Toimistopoikkeamat[[#Headers],[Loka]]),1),INDEX(ToimistoSuunniteltu[],,1),0),MATCH(Toimistopoikkeamat[[#Headers],[Loka]],ToimistoTodellinen[#Headers],0))","v":{"v":180,"d":"180.00 €"}},{"$f":"INDEX(ToimistoSuunniteltu[],MATCH(INDEX(Toimistopoikkeamat[],ROW()-ROW(Toimistopoikkeamat[[#Headers],[Marras]]),1),INDEX(ToimistoSuunniteltu[],,1),0),MATCH(Toimistopoikkeamat[[#Headers],[Marras]],ToimistoSuunniteltu[#Headers],0))-INDEX(ToimistoTodellinen[],MATCH(INDEX(Toimistopoikkeamat[],ROW()-ROW(Toimistopoikkeamat[[#Headers],[Marras]]),1),INDEX(ToimistoSuunniteltu[],,1),0),MATCH(Toimistopoikkeamat[[#Headers],[Marras]],ToimistoTodellinen[#Headers],0))","v":{"v":180,"d":"180.00 €"}},{"$f":"INDEX(ToimistoSuunniteltu[],MATCH(INDEX(Toimistopoikkeamat[],ROW()-ROW(Toimistopoikkeamat[[#Headers],[Joulu]]),1),INDEX(ToimistoSuunniteltu[],,1),0),MATCH(Toimistopoikkeamat[[#Headers],[Joulu]],ToimistoSuunniteltu[#Headers],0))-INDEX(ToimistoTodellinen[],MATCH(INDEX(Toimistopoikkeamat[],ROW()-ROW(Toimistopoikkeamat[[#Headers],[Joulu]]),1),INDEX(ToimistoSuunniteltu[],,1),0),MATCH(Toimistopoikkeamat[[#Headers],[Joulu]],ToimistoTodellinen[#Headers],0))","v":{"v":180,"d":"180.00 €"}},{"$f":"SUM(Toimistopoikkeamat[[#This Row],[Tammi]:[Joulu]])","v":{"v":1080,"d":"1,080.00 €"}}]
[null,"Toimistotarvikkeet",{"$f":"INDEX(ToimistoSuunniteltu[],MATCH(INDEX(Toimistopoikkeamat[],ROW()-ROW(Toimistopoikkeamat[[#Headers],[Tammi]]),1),INDEX(ToimistoSuunniteltu[],,1),0),MATCH(Toimistopoikkeamat[[#Headers],[Tammi]],ToimistoSuunniteltu[#Headers],0))-INDEX(ToimistoTodellinen[],MATCH(INDEX(Toimistopoikkeamat[],ROW()-ROW(Toimistopoikkeamat[[#Headers],[Tammi]]),1),INDEX(ToimistoSuunniteltu[],,1),0),MATCH(Toimistopoikkeamat[[#Headers],[Tammi]],ToimistoTodellinen[#Headers],0))","v":{"v":-56,"d":"-56.00 €"}},{"$f":"INDEX(ToimistoSuunniteltu[],MATCH(INDEX(Toimistopoikkeamat[],ROW()-ROW(Toimistopoikkeamat[[#Headers],[Helmi]]),1),INDEX(ToimistoSuunniteltu[],,1),0),MATCH(Toimistopoikkeamat[[#Headers],[Helmi]],ToimistoSuunniteltu[#Headers],0))-INDEX(ToimistoTodellinen[],MATCH(INDEX(Toimistopoikkeamat[],ROW()-ROW(Toimistopoikkeamat[[#Headers],[Helmi]]),1),INDEX(ToimistoSuunniteltu[],,1),0),MATCH(Toimistopoikkeamat[[#Headers],[Helmi]],ToimistoTodellinen[#Headers],0))","v":{"v":58,"d":"58.00 €"}},{"$f":"INDEX(ToimistoSuunniteltu[],MATCH(INDEX(Toimistopoikkeamat[],ROW()-ROW(Toimistopoikkeamat[[#Headers],[Maalis]]),1),INDEX(ToimistoSuunniteltu[],,1),0),MATCH(Toimistopoikkeamat[[#Headers],[Maalis]],ToimistoSuunniteltu[#Headers],0))-INDEX(ToimistoTodellinen[],MATCH(INDEX(Toimistopoikkeamat[],ROW()-ROW(Toimistopoikkeamat[[#Headers],[Maalis]]),1),INDEX(ToimistoSuunniteltu[],,1),0),MATCH(Toimistopoikkeamat[[#Headers],[Maalis]],ToimistoTodellinen[#Headers],0))","v":{"v":40,"d":"40.00 €"}},{"$f":"INDEX(ToimistoSuunniteltu[],MATCH(INDEX(Toimistopoikkeamat[],ROW()-ROW(Toimistopoikkeamat[[#Headers],[Huhti]]),1),INDEX(ToimistoSuunniteltu[],,1),0),MATCH(Toimistopoikkeamat[[#Headers],[Huhti]],ToimistoSuunniteltu[#Headers],0))-INDEX(ToimistoTodellinen[],MATCH(INDEX(Toimistopoikkeamat[],ROW()-ROW(Toimistopoikkeamat[[#Headers],[Huhti]]),1),INDEX(ToimistoSuunniteltu[],,1),0),MATCH(Toimistopoikkeamat[[#Headers],[Huhti]],ToimistoTodellinen[#Headers],0))","v":{"v":-21,"d":"-21.00 €"}},{"$f":"INDEX(ToimistoSuunniteltu[],MATCH(INDEX(Toimistopoikkeamat[],ROW()-ROW(Toimistopoikkeamat[[#Headers],[Touko]]),1),INDEX(ToimistoSuunniteltu[],,1),0),MATCH(Toimistopoikkeamat[[#Headers],[Touko]],ToimistoSuunniteltu[#Headers],0))-INDEX(ToimistoTodellinen[],MATCH(INDEX(Toimistopoikkeamat[],ROW()-ROW(Toimistopoikkeamat[[#Headers],[Touko]]),1),INDEX(ToimistoSuunniteltu[],,1),0),MATCH(Toimistopoikkeamat[[#Headers],[Touko]],ToimistoTodellinen[#Headers],0))","v":{"v":-56,"d":"-56.00 €"}},{"$f":"INDEX(ToimistoSuunniteltu[],MATCH(INDEX(Toimistopoikkeamat[],ROW()-ROW(Toimistopoikkeamat[[#Headers],[Kesä]]),1),INDEX(ToimistoSuunniteltu[],,1),0),MATCH(Toimistopoikkeamat[[#Headers],[Kesä]],ToimistoSuunniteltu[#Headers],0))-INDEX(ToimistoTodellinen[],MATCH(INDEX(Toimistopoikkeamat[],ROW()-ROW(Toimistopoikkeamat[[#Headers],[Kesä]]),1),INDEX(ToimistoSuunniteltu[],,1),0),MATCH(Toimistopoikkeamat[[#Headers],[Kesä]],ToimistoTodellinen[#Headers],0))","v":{"v":-40,"d":"-40.00 €"}},{"$f":"INDEX(ToimistoSuunniteltu[],MATCH(INDEX(Toimistopoikkeamat[],ROW()-ROW(Toimistopoikkeamat[[#Headers],[Heinä]]),1),INDEX(ToimistoSuunniteltu[],,1),0),MATCH(Toimistopoikkeamat[[#Headers],[Heinä]],ToimistoSuunniteltu[#Headers],0))-INDEX(ToimistoTodellinen[],MATCH(INDEX(Toimistopoikkeamat[],ROW()-ROW(Toimistopoikkeamat[[#Headers],[Heinä]]),1),INDEX(ToimistoSuunniteltu[],,1),0),MATCH(Toimistopoikkeamat[[#Headers],[Heinä]],ToimistoTodellinen[#Headers],0))","v":{"v":200,"d":"200.00 €"}},{"$f":"INDEX(ToimistoSuunniteltu[],MATCH(INDEX(Toimistopoikkeamat[],ROW()-ROW(Toimistopoikkeamat[[#Headers],[Elo]]),1),INDEX(ToimistoSuunniteltu[],,1),0),MATCH(Toimistopoikkeamat[[#Headers],[Elo]],ToimistoSuunniteltu[#Headers],0))-INDEX(ToimistoTodellinen[],MATCH(INDEX(Toimistopoikkeamat[],ROW()-ROW(Toimistopoikkeamat[[#Headers],[Elo]]),1),INDEX(ToimistoSuunniteltu[],,1),0),MATCH(Toimistopoikkeamat[[#Headers],[Elo]],ToimistoTodellinen[#Headers],0))","v":{"v":200,"d":"200.00 €"}},{"$f":"INDEX(ToimistoSuunniteltu[],MATCH(INDEX(Toimistopoikkeamat[],ROW()-ROW(Toimistopoikkeamat[[#Headers],[Syys]]),1),INDEX(ToimistoSuunniteltu[],,1),0),MATCH(Toimistopoikkeamat[[#Headers],[Syys]],ToimistoSuunniteltu[#Headers],0))-INDEX(ToimistoTodellinen[],MATCH(INDEX(Toimistopoikkeamat[],ROW()-ROW(Toimistopoikkeamat[[#Headers],[Syys]]),1),INDEX(ToimistoSuunniteltu[],,1),0),MATCH(Toimistopoikkeamat[[#Headers],[Syys]],ToimistoTodellinen[#Headers],0))","v":{"v":200,"d":"200.00 €"}},{"$f":"INDEX(ToimistoSuunniteltu[],MATCH(INDEX(Toimistopoikkeamat[],ROW()-ROW(Toimistopoikkeamat[[#Headers],[Loka]]),1),INDEX(ToimistoSuunniteltu[],,1),0),MATCH(Toimistopoikkeamat[[#Headers],[Loka]],ToimistoSuunniteltu[#Headers],0))-INDEX(ToimistoTodellinen[],MATCH(INDEX(Toimistopoikkeamat[],ROW()-ROW(Toimistopoikkeamat[[#Headers],[Loka]]),1),INDEX(ToimistoSuunniteltu[],,1),0),MATCH(Toimistopoikkeamat[[#Headers],[Loka]],ToimistoTodellinen[#Headers],0))","v":{"v":200,"d":"200.00 €"}},{"$f":"INDEX(ToimistoSuunniteltu[],MATCH(INDEX(Toimistopoikkeamat[],ROW()-ROW(Toimistopoikkeamat[[#Headers],[Marras]]),1),INDEX(ToimistoSuunniteltu[],,1),0),MATCH(Toimistopoikkeamat[[#Headers],[Marras]],ToimistoSuunniteltu[#Headers],0))-INDEX(ToimistoTodellinen[],MATCH(INDEX(Toimistopoikkeamat[],ROW()-ROW(Toimistopoikkeamat[[#Headers],[Marras]]),1),INDEX(ToimistoSuunniteltu[],,1),0),MATCH(Toimistopoikkeamat[[#Headers],[Marras]],ToimistoTodellinen[#Headers],0))","v":{"v":200,"d":"200.00 €"}},{"$f":"INDEX(ToimistoSuunniteltu[],MATCH(INDEX(Toimistopoikkeamat[],ROW()-ROW(Toimistopoikkeamat[[#Headers],[Joulu]]),1),INDEX(ToimistoSuunniteltu[],,1),0),MATCH(Toimistopoikkeamat[[#Headers],[Joulu]],ToimistoSuunniteltu[#Headers],0))-INDEX(ToimistoTodellinen[],MATCH(INDEX(Toimistopoikkeamat[],ROW()-ROW(Toimistopoikkeamat[[#Headers],[Joulu]]),1),INDEX(ToimistoSuunniteltu[],,1),0),MATCH(Toimistopoikkeamat[[#Headers],[Joulu]],ToimistoTodellinen[#Headers],0))","v":{"v":200,"d":"200.00 €"}},{"$f":"SUM(Toimistopoikkeamat[[#This Row],[Tammi]:[Joulu]])","v":{"v":1125,"d":"1,125.00 €"}}]
[null,"Tietoturva",{"$f":"INDEX(ToimistoSuunniteltu[],MATCH(INDEX(Toimistopoikkeamat[],ROW()-ROW(Toimistopoikkeamat[[#Headers],[Tammi]]),1),INDEX(ToimistoSuunniteltu[],,1),0),MATCH(Toimistopoikkeamat[[#Headers],[Tammi]],ToimistoSuunniteltu[#Headers],0))-INDEX(ToimistoTodellinen[],MATCH(INDEX(Toimistopoikkeamat[],ROW()-ROW(Toimistopoikkeamat[[#Headers],[Tammi]]),1),INDEX(ToimistoSuunniteltu[],,1),0),MATCH(Toimistopoikkeamat[[#Headers],[Tammi]],ToimistoTodellinen[#Headers],0))","v":{"v":0,"d":"0.00 €"}},{"$f":"INDEX(ToimistoSuunniteltu[],MATCH(INDEX(Toimistopoikkeamat[],ROW()-ROW(Toimistopoikkeamat[[#Headers],[Helmi]]),1),INDEX(ToimistoSuunniteltu[],,1),0),MATCH(Toimistopoikkeamat[[#Headers],[Helmi]],ToimistoSuunniteltu[#Headers],0))-INDEX(ToimistoTodellinen[],MATCH(INDEX(Toimistopoikkeamat[],ROW()-ROW(Toimistopoikkeamat[[#Headers],[Helmi]]),1),INDEX(ToimistoSuunniteltu[],,1),0),MATCH(Toimistopoikkeamat[[#Headers],[Helmi]],ToimistoTodellinen[#Headers],0))","v":{"v":0,"d":"0.00 €"}},{"$f":"INDEX(ToimistoSuunniteltu[],MATCH(INDEX(Toimistopoikkeamat[],ROW()-ROW(Toimistopoikkeamat[[#Headers],[Maalis]]),1),INDEX(ToimistoSuunniteltu[],,1),0),MATCH(Toimistopoikkeamat[[#Headers],[Maalis]],ToimistoSuunniteltu[#Headers],0))-INDEX(ToimistoTodellinen[],MATCH(INDEX(Toimistopoikkeamat[],ROW()-ROW(Toimistopoikkeamat[[#Headers],[Maalis]]),1),INDEX(ToimistoSuunniteltu[],,1),0),MATCH(Toimistopoikkeamat[[#Headers],[Maalis]],ToimistoTodellinen[#Headers],0))","v":{"v":0,"d":"0.00 €"}},{"$f":"INDEX(ToimistoSuunniteltu[],MATCH(INDEX(Toimistopoikkeamat[],ROW()-ROW(Toimistopoikkeamat[[#Headers],[Huhti]]),1),INDEX(ToimistoSuunniteltu[],,1),0),MATCH(Toimistopoikkeamat[[#Headers],[Huhti]],ToimistoSuunniteltu[#Headers],0))-INDEX(ToimistoTodellinen[],MATCH(INDEX(Toimistopoikkeamat[],ROW()-ROW(Toimistopoikkeamat[[#Headers],[Huhti]]),1),INDEX(ToimistoSuunniteltu[],,1),0),MATCH(Toimistopoikkeamat[[#Headers],[Huhti]],ToimistoTodellinen[#Headers],0))","v":{"v":0,"d":"0.00 €"}},{"$f":"INDEX(ToimistoSuunniteltu[],MATCH(INDEX(Toimistopoikkeamat[],ROW()-ROW(Toimistopoikkeamat[[#Headers],[Touko]]),1),INDEX(ToimistoSuunniteltu[],,1),0),MATCH(Toimistopoikkeamat[[#Headers],[Touko]],ToimistoSuunniteltu[#Headers],0))-INDEX(ToimistoTodellinen[],MATCH(INDEX(Toimistopoikkeamat[],ROW()-ROW(Toimistopoikkeamat[[#Headers],[Touko]]),1),INDEX(ToimistoSuunniteltu[],,1),0),MATCH(Toimistopoikkeamat[[#Headers],[Touko]],ToimistoTodellinen[#Headers],0))","v":{"v":0,"d":"0.00 €"}},{"$f":"INDEX(ToimistoSuunniteltu[],MATCH(INDEX(Toimistopoikkeamat[],ROW()-ROW(Toimistopoikkeamat[[#Headers],[Kesä]]),1),INDEX(ToimistoSuunniteltu[],,1),0),MATCH(Toimistopoikkeamat[[#Headers],[Kesä]],ToimistoSuunniteltu[#Headers],0))-INDEX(ToimistoTodellinen[],MATCH(INDEX(Toimistopoikkeamat[],ROW()-ROW(Toimistopoikkeamat[[#Headers],[Kesä]]),1),INDEX(ToimistoSuunniteltu[],,1),0),MATCH(Toimistopoikkeamat[[#Headers],[Kesä]],ToimistoTodellinen[#Headers],0))","v":{"v":0,"d":"0.00 €"}},{"$f":"INDEX(ToimistoSuunniteltu[],MATCH(INDEX(Toimistopoikkeamat[],ROW()-ROW(Toimistopoikkeamat[[#Headers],[Heinä]]),1),INDEX(ToimistoSuunniteltu[],,1),0),MATCH(Toimistopoikkeamat[[#Headers],[Heinä]],ToimistoSuunniteltu[#Headers],0))-INDEX(ToimistoTodellinen[],MATCH(INDEX(Toimistopoikkeamat[],ROW()-ROW(Toimistopoikkeamat[[#Headers],[Heinä]]),1),INDEX(ToimistoSuunniteltu[],,1),0),MATCH(Toimistopoikkeamat[[#Headers],[Heinä]],ToimistoTodellinen[#Headers],0))","v":{"v":600,"d":"600.00 €"}},{"$f":"INDEX(ToimistoSuunniteltu[],MATCH(INDEX(Toimistopoikkeamat[],ROW()-ROW(Toimistopoikkeamat[[#Headers],[Elo]]),1),INDEX(ToimistoSuunniteltu[],,1),0),MATCH(Toimistopoikkeamat[[#Headers],[Elo]],ToimistoSuunniteltu[#Headers],0))-INDEX(ToimistoTodellinen[],MATCH(INDEX(Toimistopoikkeamat[],ROW()-ROW(Toimistopoikkeamat[[#Headers],[Elo]]),1),INDEX(ToimistoSuunniteltu[],,1),0),MATCH(Toimistopoikkeamat[[#Headers],[Elo]],ToimistoTodellinen[#Headers],0))","v":{"v":600,"d":"600.00 €"}},{"$f":"INDEX(ToimistoSuunniteltu[],MATCH(INDEX(Toimistopoikkeamat[],ROW()-ROW(Toimistopoikkeamat[[#Headers],[Syys]]),1),INDEX(ToimistoSuunniteltu[],,1),0),MATCH(Toimistopoikkeamat[[#Headers],[Syys]],ToimistoSuunniteltu[#Headers],0))-INDEX(ToimistoTodellinen[],MATCH(INDEX(Toimistopoikkeamat[],ROW()-ROW(Toimistopoikkeamat[[#Headers],[Syys]]),1),INDEX(ToimistoSuunniteltu[],,1),0),MATCH(Toimistopoikkeamat[[#Headers],[Syys]],ToimistoTodellinen[#Headers],0))","v":{"v":600,"d":"600.00 €"}},{"$f":"INDEX(ToimistoSuunniteltu[],MATCH(INDEX(Toimistopoikkeamat[],ROW()-ROW(Toimistopoikkeamat[[#Headers],[Loka]]),1),INDEX(ToimistoSuunniteltu[],,1),0),MATCH(Toimistopoikkeamat[[#Headers],[Loka]],ToimistoSuunniteltu[#Headers],0))-INDEX(ToimistoTodellinen[],MATCH(INDEX(Toimistopoikkeamat[],ROW()-ROW(Toimistopoikkeamat[[#Headers],[Loka]]),1),INDEX(ToimistoSuunniteltu[],,1),0),MATCH(Toimistopoikkeamat[[#Headers],[Loka]],ToimistoTodellinen[#Headers],0))","v":{"v":600,"d":"600.00 €"}},{"$f":"INDEX(ToimistoSuunniteltu[],MATCH(INDEX(Toimistopoikkeamat[],ROW()-ROW(Toimistopoikkeamat[[#Headers],[Marras]]),1),INDEX(ToimistoSuunniteltu[],,1),0),MATCH(Toimistopoikkeamat[[#Headers],[Marras]],ToimistoSuunniteltu[#Headers],0))-INDEX(ToimistoTodellinen[],MATCH(INDEX(Toimistopoikkeamat[],ROW()-ROW(Toimistopoikkeamat[[#Headers],[Marras]]),1),INDEX(ToimistoSuunniteltu[],,1),0),MATCH(Toimistopoikkeamat[[#Headers],[Marras]],ToimistoTodellinen[#Headers],0))","v":{"v":600,"d":"600.00 €"}},{"$f":"INDEX(ToimistoSuunniteltu[],MATCH(INDEX(Toimistopoikkeamat[],ROW()-ROW(Toimistopoikkeamat[[#Headers],[Joulu]]),1),INDEX(ToimistoSuunniteltu[],,1),0),MATCH(Toimistopoikkeamat[[#Headers],[Joulu]],ToimistoSuunniteltu[#Headers],0))-INDEX(ToimistoTodellinen[],MATCH(INDEX(Toimistopoikkeamat[],ROW()-ROW(Toimistopoikkeamat[[#Headers],[Joulu]]),1),INDEX(ToimistoSuunniteltu[],,1),0),MATCH(Toimistopoikkeamat[[#Headers],[Joulu]],ToimistoTodellinen[#Headers],0))","v":{"v":600,"d":"600.00 €"}},{"$f":"SUM(Toimistopoikkeamat[[#This Row],[Tammi]:[Joulu]])","v":{"v":3600,"d":"3,600.00 €"}}]
[null,"Välisumma",{"$f":"SUBTOTAL(109,Toimistopoikkeamat[Tammi])","v":{"v":-17,"d":"-17.00 €"}},{"$f":"SUBTOTAL(109,Toimistopoikkeamat[Helmi])","v":{"v":72,"d":"72.00 €"}},{"$f":"SUBTOTAL(109,Toimistopoikkeamat[Maalis])","v":{"v":78,"d":"78.00 €"}},{"$f":"SUBTOTAL(109,Toimistopoikkeamat[Huhti])","v":{"v":-141,"d":"-141.00 €"}},{"$f":"SUBTOTAL(109,Toimistopoikkeamat[Touko])","v":{"v":-38,"d":"-38.00 €"}},{"$f":"SUBTOTAL(109,Toimistopoikkeamat[Kesä])","v":{"v":16,"d":"16.00 €"}},{"$f":"SUBTOTAL(109,Toimistopoikkeamat[Heinä])","v":{"v":11470,"d":"11,470.00 €"}},{"$f":"SUBTOTAL(109,Toimistopoikkeamat[Elo])","v":{"v":11470,"d":"11,470.00 €"}},{"$f":"SUBTOTAL(109,Toimistopoikkeamat[Syys])","v":{"v":11470,"d":"11,470.00 €"}},{"$f":"SUBTOTAL(109,Toimistopoikkeamat[Loka])","v":{"v":11470,"d":"11,470.00 €"}},{"$f":"SUBTOTAL(109,Toimistopoikkeamat[Marras])","v":{"v":11770,"d":"11,770.00 €"}},{"$f":"SUBTOTAL(109,Toimistopoikkeamat[Joulu])","v":{"v":11770,"d":"11,770.00 €"}},{"$f":"SUBTOTAL(109,Toimistopoikkeamat[VUOSI])","v":{"v":69390,"d":"69,390.00 €"}}]
[]
["Markkinointikulut poikkeama lasketaan automaattisesti Markkinointipoikkeamat-taulukkoon oikealla olevasta solusta aloittaen. Seuraava ohje on solussa A30.","Markkinointikulut","Tammi","Helmi","Maalis","Huhti","Touko","Kesä","Heinä","Elo","Syys","Loka","Marras","Joulu","VUOSI"]
[null,"Verkkosivuston isännöinti",{"$f":"INDEX(MarkkinointiSuunniteltu[],MATCH(INDEX(Markkinointipoikkeamat[],ROW()-ROW(Markkinointipoikkeamat[[#Headers],[Tammi]]),1),INDEX(MarkkinointiSuunniteltu[],,1),0),MATCH(Markkinointipoikkeamat[[#Headers],[Tammi]],MarkkinointiSuunniteltu[#Headers],0))-INDEX(MarkkinointiTodellinen[],MATCH(INDEX(Markkinointipoikkeamat[],ROW()-ROW(Markkinointipoikkeamat[[#Headers],[Tammi]]),1),INDEX(MarkkinointiSuunniteltu[],,1),0),MATCH(Markkinointipoikkeamat[[#Headers],[Tammi]],MarkkinointiTodellinen[#Headers],0))","v":{"v":0,"d":"0.00 €"}},{"$f":"INDEX(MarkkinointiSuunniteltu[],MATCH(INDEX(Markkinointipoikkeamat[],ROW()-ROW(Markkinointipoikkeamat[[#Headers],[Helmi]]),1),INDEX(MarkkinointiSuunniteltu[],,1),0),MATCH(Markkinointipoikkeamat[[#Headers],[Helmi]],MarkkinointiSuunniteltu[#Headers],0))-INDEX(MarkkinointiTodellinen[],MATCH(INDEX(Markkinointipoikkeamat[],ROW()-ROW(Markkinointipoikkeamat[[#Headers],[Helmi]]),1),INDEX(MarkkinointiSuunniteltu[],,1),0),MATCH(Markkinointipoikkeamat[[#Headers],[Helmi]],MarkkinointiTodellinen[#Headers],0))","v":{"v":0,"d":"0.00 €"}},{"$f":"INDEX(MarkkinointiSuunniteltu[],MATCH(INDEX(Markkinointipoikkeamat[],ROW()-ROW(Markkinointipoikkeamat[[#Headers],[Maalis]]),1),INDEX(MarkkinointiSuunniteltu[],,1),0),MATCH(Markkinointipoikkeamat[[#Headers],[Maalis]],MarkkinointiSuunniteltu[#Headers],0))-INDEX(MarkkinointiTodellinen[],MATCH(INDEX(Markkinointipoikkeamat[],ROW()-ROW(Markkinointipoikkeamat[[#Headers],[Maalis]]),1),INDEX(MarkkinointiSuunniteltu[],,1),0),MATCH(Markkinointipoikkeamat[[#Headers],[Maalis]],MarkkinointiTodellinen[#Headers],0))","v":{"v":0,"d":"0.00 €"}},{"$f":"INDEX(MarkkinointiSuunniteltu[],MATCH(INDEX(Markkinointipoikkeamat[],ROW()-ROW(Markkinointipoikkeamat[[#Headers],[Huhti]]),1),INDEX(MarkkinointiSuunniteltu[],,1),0),MATCH(Markkinointipoikkeamat[[#Headers],[Huhti]],MarkkinointiSuunniteltu[#Headers],0))-INDEX(MarkkinointiTodellinen[],MATCH(INDEX(Markkinointipoikkeamat[],ROW()-ROW(Markkinointipoikkeamat[[#Headers],[Huhti]]),1),INDEX(MarkkinointiSuunniteltu[],,1),0),MATCH(Markkinointipoikkeamat[[#Headers],[Huhti]],MarkkinointiTodellinen[#Headers],0))","v":{"v":0,"d":"0.00 €"}},{"$f":"INDEX(MarkkinointiSuunniteltu[],MATCH(INDEX(Markkinointipoikkeamat[],ROW()-ROW(Markkinointipoikkeamat[[#Headers],[Touko]]),1),INDEX(MarkkinointiSuunniteltu[],,1),0),MATCH(Markkinointipoikkeamat[[#Headers],[Touko]],MarkkinointiSuunniteltu[#Headers],0))-INDEX(MarkkinointiTodellinen[],MATCH(INDEX(Markkinointipoikkeamat[],ROW()-ROW(Markkinointipoikkeamat[[#Headers],[Touko]]),1),INDEX(MarkkinointiSuunniteltu[],,1),0),MATCH(Markkinointipoikkeamat[[#Headers],[Touko]],MarkkinointiTodellinen[#Headers],0))","v":{"v":0,"d":"0.00 €"}},{"$f":"INDEX(MarkkinointiSuunniteltu[],MATCH(INDEX(Markkinointipoikkeamat[],ROW()-ROW(Markkinointipoikkeamat[[#Headers],[Kesä]]),1),INDEX(MarkkinointiSuunniteltu[],,1),0),MATCH(Markkinointipoikkeamat[[#Headers],[Kesä]],MarkkinointiSuunniteltu[#Headers],0))-INDEX(MarkkinointiTodellinen[],MATCH(INDEX(Markkinointipoikkeamat[],ROW()-ROW(Markkinointipoikkeamat[[#Headers],[Kesä]]),1),INDEX(MarkkinointiSuunniteltu[],,1),0),MATCH(Markkinointipoikkeamat[[#Headers],[Kesä]],MarkkinointiTodellinen[#Headers],0))","v":{"v":0,"d":"0.00 €"}},{"$f":"INDEX(MarkkinointiSuunniteltu[],MATCH(INDEX(Markkinointipoikkeamat[],ROW()-ROW(Markkinointipoikkeamat[[#Headers],[Heinä]]),1),INDEX(MarkkinointiSuunniteltu[],,1),0),MATCH(Markkinointipoikkeamat[[#Headers],[Heinä]],MarkkinointiSuunniteltu[#Headers],0))-INDEX(MarkkinointiTodellinen[],MATCH(INDEX(Markkinointipoikkeamat[],ROW()-ROW(Markkinointipoikkeamat[[#Headers],[Heinä]]),1),INDEX(MarkkinointiSuunniteltu[],,1),0),MATCH(Markkinointipoikkeamat[[#Headers],[Heinä]],MarkkinointiTodellinen[#Headers],0))","v":{"v":500,"d":"500.00 €"}},{"$f":"INDEX(MarkkinointiSuunniteltu[],MATCH(INDEX(Markkinointipoikkeamat[],ROW()-ROW(Markkinointipoikkeamat[[#Headers],[Elo]]),1),INDEX(MarkkinointiSuunniteltu[],,1),0),MATCH(Markkinointipoikkeamat[[#Headers],[Elo]],MarkkinointiSuunniteltu[#Headers],0))-INDEX(MarkkinointiTodellinen[],MATCH(INDEX(Markkinointipoikkeamat[],ROW()-ROW(Markkinointipoikkeamat[[#Headers],[Elo]]),1),INDEX(MarkkinointiSuunniteltu[],,1),0),MATCH(Markkinointipoikkeamat[[#Headers],[Elo]],MarkkinointiTodellinen[#Headers],0))","v":{"v":500,"d":"500.00 €"}},{"$f":"INDEX(MarkkinointiSuunniteltu[],MATCH(INDEX(Markkinointipoikkeamat[],ROW()-ROW(Markkinointipoikkeamat[[#Headers],[Syys]]),1),INDEX(MarkkinointiSuunniteltu[],,1),0),MATCH(Markkinointipoikkeamat[[#Headers],[Syys]],MarkkinointiSuunniteltu[#Headers],0))-INDEX(MarkkinointiTodellinen[],MATCH(INDEX(Markkinointipoikkeamat[],ROW()-ROW(Markkinointipoikkeamat[[#Headers],[Syys]]),1),INDEX(MarkkinointiSuunniteltu[],,1),0),MATCH(Markkinointipoikkeamat[[#Headers],[Syys]],MarkkinointiTodellinen[#Headers],0))","v":{"v":500,"d":"500.00 €"}},{"$f":"INDEX(MarkkinointiSuunniteltu[],MATCH(INDEX(Markkinointipoikkeamat[],ROW()-ROW(Markkinointipoikkeamat[[#Headers],[Loka]]),1),INDEX(MarkkinointiSuunniteltu[],,1),0),MATCH(Markkinointipoikkeamat[[#Headers],[Loka]],MarkkinointiSuunniteltu[#Headers],0))-INDEX(MarkkinointiTodellinen[],MATCH(INDEX(Markkinointipoikkeamat[],ROW()-ROW(Markkinointipoikkeamat[[#Headers],[Loka]]),1),INDEX(MarkkinointiSuunniteltu[],,1),0),MATCH(Markkinointipoikkeamat[[#Headers],[Loka]],MarkkinointiTodellinen[#Headers],0))","v":{"v":500,"d":"500.00 €"}},{"$f":"INDEX(MarkkinointiSuunniteltu[],MATCH(INDEX(Markkinointipoikkeamat[],ROW()-ROW(Markkinointipoikkeamat[[#Headers],[Marras]]),1),INDEX(MarkkinointiSuunniteltu[],,1),0),MATCH(Markkinointipoikkeamat[[#Headers],[Marras]],MarkkinointiSuunniteltu[#Headers],0))-INDEX(MarkkinointiTodellinen[],MATCH(INDEX(Markkinointipoikkeamat[],ROW()-ROW(Markkinointipoikkeamat[[#Headers],[Marras]]),1),INDEX(MarkkinointiSuunniteltu[],,1),0),MATCH(Markkinointipoikkeamat[[#Headers],[Marras]],MarkkinointiTodellinen[#Headers],0))","v":{"v":500,"d":"500.00 €"}},{"$f":"INDEX(MarkkinointiSuunniteltu[],MATCH(INDEX(Markkinointipoikkeamat[],ROW()-ROW(Markkinointipoikkeamat[[#Headers],[Joulu]]),1),INDEX(MarkkinointiSuunniteltu[],,1),0),MATCH(Markkinointipoikkeamat[[#Headers],[Joulu]],MarkkinointiSuunniteltu[#Headers],0))-INDEX(MarkkinointiTodellinen[],MATCH(INDEX(Markkinointipoikkeamat[],ROW()-ROW(Markkinointipoikkeamat[[#Headers],[Joulu]]),1),INDEX(MarkkinointiSuunniteltu[],,1),0),MATCH(Markkinointipoikkeamat[[#Headers],[Joulu]],MarkkinointiTodellinen[#Headers],0))","v":{"v":500,"d":"500.00 €"}},{"$f":"SUM(Markkinointipoikkeamat[[#This Row],[Tammi]:[Joulu]])","v":{"v":3000,"d":"3,000.00 €"}}]
[null,"Verkkosivuston päivitykset",{"$f":"INDEX(MarkkinointiSuunniteltu[],MATCH(INDEX(Markkinointipoikkeamat[],ROW()-ROW(Markkinointipoikkeamat[[#Headers],[Tammi]]),1),INDEX(MarkkinointiSuunniteltu[],,1),0),MATCH(Markkinointipoikkeamat[[#Headers],[Tammi]],MarkkinointiSuunniteltu[#Headers],0))-INDEX(MarkkinointiTodellinen[],MATCH(INDEX(Markkinointipoikkeamat[],ROW()-ROW(Markkinointipoikkeamat[[#Headers],[Tammi]]),1),INDEX(MarkkinointiSuunniteltu[],,1),0),MATCH(Markkinointipoikkeamat[[#Headers],[Tammi]],MarkkinointiTodellinen[#Headers],0))","v":{"v":0,"d":"0.00 €"}},{"$f":"INDEX(MarkkinointiSuunniteltu[],MATCH(INDEX(Markkinointipoikkeamat[],ROW()-ROW(Markkinointipoikkeamat[[#Headers],[Helmi]]),1),INDEX(MarkkinointiSuunniteltu[],,1),0),MATCH(Markkinointipoikkeamat[[#Headers],[Helmi]],MarkkinointiSuunniteltu[#Headers],0))-INDEX(MarkkinointiTodellinen[],MATCH(INDEX(Markkinointipoikkeamat[],ROW()-ROW(Markkinointipoikkeamat[[#Headers],[Helmi]]),1),INDEX(MarkkinointiSuunniteltu[],,1),0),MATCH(Markkinointipoikkeamat[[#Headers],[Helmi]],MarkkinointiTodellinen[#Headers],0))","v":{"v":0,"d":"0.00 €"}},{"$f":"INDEX(MarkkinointiSuunniteltu[],MATCH(INDEX(Markkinointipoikkeamat[],ROW()-ROW(Markkinointipoikkeamat[[#Headers],[Maalis]]),1),INDEX(MarkkinointiSuunniteltu[],,1),0),MATCH(Markkinointipoikkeamat[[#Headers],[Maalis]],MarkkinointiSuunniteltu[#Headers],0))-INDEX(MarkkinointiTodellinen[],MATCH(INDEX(Markkinointipoikkeamat[],ROW()-ROW(Markkinointipoikkeamat[[#Headers],[Maalis]]),1),INDEX(MarkkinointiSuunniteltu[],,1),0),MATCH(Markkinointipoikkeamat[[#Headers],[Maalis]],MarkkinointiTodellinen[#Headers],0))","v":{"v":0,"d":"0.00 €"}},{"$f":"INDEX(MarkkinointiSuunniteltu[],MATCH(INDEX(Markkinointipoikkeamat[],ROW()-ROW(Markkinointipoikkeamat[[#Headers],[Huhti]]),1),INDEX(MarkkinointiSuunniteltu[],,1),0),MATCH(Markkinointipoikkeamat[[#Headers],[Huhti]],MarkkinointiSuunniteltu[#Headers],0))-INDEX(MarkkinointiTodellinen[],MATCH(INDEX(Markkinointipoikkeamat[],ROW()-ROW(Markkinointipoikkeamat[[#Headers],[Huhti]]),1),INDEX(MarkkinointiSuunniteltu[],,1),0),MATCH(Markkinointipoikkeamat[[#Headers],[Huhti]],MarkkinointiTodellinen[#Headers],0))","v":{"v":0,"d":"0.00 €"}},{"$f":"INDEX(MarkkinointiSuunniteltu[],MATCH(INDEX(Markkinointipoikkeamat[],ROW()-ROW(Markkinointipoikkeamat[[#Headers],[Touko]]),1),INDEX(MarkkinointiSuunniteltu[],,1),0),MATCH(Markkinointipoikkeamat[[#Headers],[Touko]],MarkkinointiSuunniteltu[#Headers],0))-INDEX(MarkkinointiTodellinen[],MATCH(INDEX(Markkinointipoikkeamat[],ROW()-ROW(Markkinointipoikkeamat[[#Headers],[Touko]]),1),INDEX(MarkkinointiSuunniteltu[],,1),0),MATCH(Markkinointipoikkeamat[[#Headers],[Touko]],MarkkinointiTodellinen[#Headers],0))","v":{"v":0,"d":"0.00 €"}},{"$f":"INDEX(MarkkinointiSuunniteltu[],MATCH(INDEX(Markkinointipoikkeamat[],ROW()-ROW(Markkinointipoikkeamat[[#Headers],[Kesä]]),1),INDEX(MarkkinointiSuunniteltu[],,1),0),MATCH(Markkinointipoikkeamat[[#Headers],[Kesä]],MarkkinointiSuunniteltu[#Headers],0))-INDEX(MarkkinointiTodellinen[],MATCH(INDEX(Markkinointipoikkeamat[],ROW()-ROW(Markkinointipoikkeamat[[#Headers],[Kesä]]),1),INDEX(MarkkinointiSuunniteltu[],,1),0),MATCH(Markkinointipoikkeamat[[#Headers],[Kesä]],MarkkinointiTodellinen[#Headers],0))","v":{"v":-500,"d":"-500.00 €"}},{"$f":"INDEX(MarkkinointiSuunniteltu[],MATCH(INDEX(Markkinointipoikkeamat[],ROW()-ROW(Markkinointipoikkeamat[[#Headers],[Heinä]]),1),INDEX(MarkkinointiSuunniteltu[],,1),0),MATCH(Markkinointipoikkeamat[[#Headers],[Heinä]],MarkkinointiSuunniteltu[#Headers],0))-INDEX(MarkkinointiTodellinen[],MATCH(INDEX(Markkinointipoikkeamat[],ROW()-ROW(Markkinointipoikkeamat[[#Headers],[Heinä]]),1),INDEX(MarkkinointiSuunniteltu[],,1),0),MATCH(Markkinointipoikkeamat[[#Headers],[Heinä]],MarkkinointiTodellinen[#Headers],0))","v":{"v":200,"d":"200.00 €"}},{"$f":"INDEX(MarkkinointiSuunniteltu[],MATCH(INDEX(Markkinointipoikkeamat[],ROW()-ROW(Markkinointipoikkeamat[[#Headers],[Elo]]),1),INDEX(MarkkinointiSuunniteltu[],,1),0),MATCH(Markkinointipoikkeamat[[#Headers],[Elo]],MarkkinointiSuunniteltu[#Headers],0))-INDEX(MarkkinointiTodellinen[],MATCH(INDEX(Markkinointipoikkeamat[],ROW()-ROW(Markkinointipoikkeamat[[#Headers],[Elo]]),1),INDEX(MarkkinointiSuunniteltu[],,1),0),MATCH(Markkinointipoikkeamat[[#Headers],[Elo]],MarkkinointiTodellinen[#Headers],0))","v":{"v":200,"d":"200.00 €"}},{"$f":"INDEX(MarkkinointiSuunniteltu[],MATCH(INDEX(Markkinointipoikkeamat[],ROW()-ROW(Markkinointipoikkeamat[[#Headers],[Syys]]),1),INDEX(MarkkinointiSuunniteltu[],,1),0),MATCH(Markkinointipoikkeamat[[#Headers],[Syys]],MarkkinointiSuunniteltu[#Headers],0))-INDEX(MarkkinointiTodellinen[],MATCH(INDEX(Markkinointipoikkeamat[],ROW()-ROW(Markkinointipoikkeamat[[#Headers],[Syys]]),1),INDEX(MarkkinointiSuunniteltu[],,1),0),MATCH(Markkinointipoikkeamat[[#Headers],[Syys]],MarkkinointiTodellinen[#Headers],0))","v":{"v":200,"d":"200.00 €"}},{"$f":"INDEX(MarkkinointiSuunniteltu[],MATCH(INDEX(Markkinointipoikkeamat[],ROW()-ROW(Markkinointipoikkeamat[[#Headers],[Loka]]),1),INDEX(MarkkinointiSuunniteltu[],,1),0),MATCH(Markkinointipoikkeamat[[#Headers],[Loka]],MarkkinointiSuunniteltu[#Headers],0))-INDEX(MarkkinointiTodellinen[],MATCH(INDEX(Markkinointipoikkeamat[],ROW()-ROW(Markkinointipoikkeamat[[#Headers],[Loka]]),1),INDEX(MarkkinointiSuunniteltu[],,1),0),MATCH(Markkinointipoikkeamat[[#Headers],[Loka]],MarkkinointiTodellinen[#Headers],0))","v":{"v":200,"d":"200.00 €"}},{"$f":"INDEX(MarkkinointiSuunniteltu[],MATCH(INDEX(Markkinointipoikkeamat[],ROW()-ROW(Markkinointipoikkeamat[[#Headers],[Marras]]),1),INDEX(MarkkinointiSuunniteltu[],,1),0),MATCH(Markkinointipoikkeamat[[#Headers],[Marras]],MarkkinointiSuunniteltu[#Headers],0))-INDEX(MarkkinointiTodellinen[],MATCH(INDEX(Markkinointipoikkeamat[],ROW()-ROW(Markkinointipoikkeamat[[#Headers],[Marras]]),1),INDEX(MarkkinointiSuunniteltu[],,1),0),MATCH(Markkinointipoikkeamat[[#Headers],[Marras]],MarkkinointiTodellinen[#Headers],0))","v":{"v":200,"d":"200.00 €"}},{"$f":"INDEX(MarkkinointiSuunniteltu[],MATCH(INDEX(Markkinointipoikkeamat[],ROW()-ROW(Markkinointipoikkeamat[[#Headers],[Joulu]]),1),INDEX(MarkkinointiSuunniteltu[],,1),0),MATCH(Markkinointipoikkeamat[[#Headers],[Joulu]],MarkkinointiSuunniteltu[#Headers],0))-INDEX(MarkkinointiTodellinen[],MATCH(INDEX(Markkinointipoikkeamat[],ROW()-ROW(Markkinointipoikkeamat[[#Headers],[Joulu]]),1),INDEX(MarkkinointiSuunniteltu[],,1),0),MATCH(Markkinointipoikkeamat[[#Headers],[Joulu]],MarkkinointiTodellinen[#Headers],0))","v":{"v":1000,"d":"1,000.00 €"}},{"$f":"SUM(Markkinointipoikkeamat[[#This Row],[Tammi]:[Joulu]])","v":{"v":1500,"d":"1,500.00 €"}}]
[null,"Oheismateriaalin valmistelu",{"$f":"INDEX(MarkkinointiSuunniteltu[],MATCH(INDEX(Markkinointipoikkeamat[],ROW()-ROW(Markkinointipoikkeamat[[#Headers],[Tammi]]),1),INDEX(MarkkinointiSuunniteltu[],,1),0),MATCH(Markkinointipoikkeamat[[#Headers],[Tammi]],MarkkinointiSuunniteltu[#Headers],0))-INDEX(MarkkinointiTodellinen[],MATCH(INDEX(Markkinointipoikkeamat[],ROW()-ROW(Markkinointipoikkeamat[[#Headers],[Tammi]]),1),INDEX(MarkkinointiSuunniteltu[],,1),0),MATCH(Markkinointipoikkeamat[[#Headers],[Tammi]],MarkkinointiTodellinen[#Headers],0))","v":{"v":200,"d":"200.00 €"}},{"$f":"INDEX(MarkkinointiSuunniteltu[],MATCH(INDEX(Markkinointipoikkeamat[],ROW()-ROW(Markkinointipoikkeamat[[#Headers],[Helmi]]),1),INDEX(MarkkinointiSuunniteltu[],,1),0),MATCH(Markkinointipoikkeamat[[#Headers],[Helmi]],MarkkinointiSuunniteltu[#Headers],0))-INDEX(MarkkinointiTodellinen[],MATCH(INDEX(Markkinointipoikkeamat[],ROW()-ROW(Markkinointipoikkeamat[[#Headers],[Helmi]]),1),INDEX(MarkkinointiSuunniteltu[],,1),0),MATCH(Markkinointipoikkeamat[[#Headers],[Helmi]],MarkkinointiTodellinen[#Headers],0))","v":{"v":0,"d":"0.00 €"}},{"$f":"INDEX(MarkkinointiSuunniteltu[],MATCH(INDEX(Markkinointipoikkeamat[],ROW()-ROW(Markkinointipoikkeamat[[#Headers],[Maalis]]),1),INDEX(MarkkinointiSuunniteltu[],,1),0),MATCH(Markkinointipoikkeamat[[#Headers],[Maalis]],MarkkinointiSuunniteltu[#Headers],0))-INDEX(MarkkinointiTodellinen[],MATCH(INDEX(Markkinointipoikkeamat[],ROW()-ROW(Markkinointipoikkeamat[[#Headers],[Maalis]]),1),INDEX(MarkkinointiSuunniteltu[],,1),0),MATCH(Markkinointipoikkeamat[[#Headers],[Maalis]],MarkkinointiTodellinen[#Headers],0))","v":{"v":0,"d":"0.00 €"}},{"$f":"INDEX(MarkkinointiSuunniteltu[],MATCH(INDEX(Markkinointipoikkeamat[],ROW()-ROW(Markkinointipoikkeamat[[#Headers],[Huhti]]),1),INDEX(MarkkinointiSuunniteltu[],,1),0),MATCH(Markkinointipoikkeamat[[#Headers],[Huhti]],MarkkinointiSuunniteltu[#Headers],0))-INDEX(MarkkinointiTodellinen[],MATCH(INDEX(Markkinointipoikkeamat[],ROW()-ROW(Markkinointipoikkeamat[[#Headers],[Huhti]]),1),INDEX(MarkkinointiSuunniteltu[],,1),0),MATCH(Markkinointipoikkeamat[[#Headers],[Huhti]],MarkkinointiTodellinen[#Headers],0))","v":{"v":-500,"d":"-500.00 €"}},{"$f":"INDEX(MarkkinointiSuunniteltu[],MATCH(INDEX(Markkinointipoikkeamat[],ROW()-ROW(Markkinointipoikkeamat[[#Headers],[Touko]]),1),INDEX(MarkkinointiSuunniteltu[],,1),0),MATCH(Markkinointipoikkeamat[[#Headers],[Touko]],MarkkinointiSuunniteltu[#Headers],0))-INDEX(MarkkinointiTodellinen[],MATCH(INDEX(Markkinointipoikkeamat[],ROW()-ROW(Markkinointipoikkeamat[[#Headers],[Touko]]),1),INDEX(MarkkinointiSuunniteltu[],,1),0),MATCH(Markkinointipoikkeamat[[#Headers],[Touko]],MarkkinointiTodellinen[#Headers],0))","v":{"v":0,"d":"0.00 €"}},{"$f":"INDEX(MarkkinointiSuunniteltu[],MATCH(INDEX(Markkinointipoikkeamat[],ROW()-ROW(Markkinointipoikkeamat[[#Headers],[Kesä]]),1),INDEX(MarkkinointiSuunniteltu[],,1),0),MATCH(Markkinointipoikkeamat[[#Headers],[Kesä]],MarkkinointiSuunniteltu[#Headers],0))-INDEX(MarkkinointiTodellinen[],MATCH(INDEX(Markkinointipoikkeamat[],ROW()-ROW(Markkinointipoikkeamat[[#Headers],[Kesä]]),1),INDEX(MarkkinointiSuunniteltu[],,1),0),MATCH(Markkinointipoikkeamat[[#Headers],[Kesä]],MarkkinointiTodellinen[#Headers],0))","v":{"v":0,"d":"0.00 €"}},{"$f":"INDEX(MarkkinointiSuunniteltu[],MATCH(INDEX(Markkinointipoikkeamat[],ROW()-ROW(Markkinointipoikkeamat[[#Headers],[Heinä]]),1),INDEX(MarkkinointiSuunniteltu[],,1),0),MATCH(Markkinointipoikkeamat[[#Headers],[Heinä]],MarkkinointiSuunniteltu[#Headers],0))-INDEX(MarkkinointiTodellinen[],MATCH(INDEX(Markkinointipoikkeamat[],ROW()-ROW(Markkinointipoikkeamat[[#Headers],[Heinä]]),1),INDEX(MarkkinointiSuunniteltu[],,1),0),MATCH(Markkinointipoikkeamat[[#Headers],[Heinä]],MarkkinointiTodellinen[#Headers],0))","v":{"v":5000,"d":"5,000.00 €"}},{"$f":"INDEX(MarkkinointiSuunniteltu[],MATCH(INDEX(Markkinointipoikkeamat[],ROW()-ROW(Markkinointipoikkeamat[[#Headers],[Elo]]),1),INDEX(MarkkinointiSuunniteltu[],,1),0),MATCH(Markkinointipoikkeamat[[#Headers],[Elo]],MarkkinointiSuunniteltu[#Headers],0))-INDEX(MarkkinointiTodellinen[],MATCH(INDEX(Markkinointipoikkeamat[],ROW()-ROW(Markkinointipoikkeamat[[#Headers],[Elo]]),1),INDEX(MarkkinointiSuunniteltu[],,1),0),MATCH(Markkinointipoikkeamat[[#Headers],[Elo]],MarkkinointiTodellinen[#Headers],0))","v":{"v":0,"d":"0.00 €"}},{"$f":"INDEX(MarkkinointiSuunniteltu[],MATCH(INDEX(Markkinointipoikkeamat[],ROW()-ROW(Markkinointipoikkeamat[[#Headers],[Syys]]),1),INDEX(MarkkinointiSuunniteltu[],,1),0),MATCH(Markkinointipoikkeamat[[#Headers],[Syys]],MarkkinointiSuunniteltu[#Headers],0))-INDEX(MarkkinointiTodellinen[],MATCH(INDEX(Markkinointipoikkeamat[],ROW()-ROW(Markkinointipoikkeamat[[#Headers],[Syys]]),1),INDEX(MarkkinointiSuunniteltu[],,1),0),MATCH(Markkinointipoikkeamat[[#Headers],[Syys]],MarkkinointiTodellinen[#Headers],0))","v":{"v":0,"d":"0.00 €"}},{"$f":"INDEX(MarkkinointiSuunniteltu[],MATCH(INDEX(Markkinointipoikkeamat[],ROW()-ROW(Markkinointipoikkeamat[[#Headers],[Loka]]),1),INDEX(MarkkinointiSuunniteltu[],,1),0),MATCH(Markkinointipoikkeamat[[#Headers],[Loka]],MarkkinointiSuunniteltu[#Headers],0))-INDEX(MarkkinointiTodellinen[],MATCH(INDEX(Markkinointipoikkeamat[],ROW()-ROW(Markkinointipoikkeamat[[#Headers],[Loka]]),1),INDEX(MarkkinointiSuunniteltu[],,1),0),MATCH(Markkinointipoikkeamat[[#Headers],[Loka]],MarkkinointiTodellinen[#Headers],0))","v":{"v":5000,"d":"5,000.00 €"}},{"$f":"INDEX(MarkkinointiSuunniteltu[],MATCH(INDEX(Markkinointipoikkeamat[],ROW()-ROW(Markkinointipoikkeamat[[#Headers],[Marras]]),1),INDEX(MarkkinointiSuunniteltu[],,1),0),MATCH(Markkinointipoikkeamat[[#Headers],[Marras]],MarkkinointiSuunniteltu[#Headers],0))-INDEX(MarkkinointiTodellinen[],MATCH(INDEX(Markkinointipoikkeamat[],ROW()-ROW(Markkinointipoikkeamat[[#Headers],[Marras]]),1),INDEX(MarkkinointiSuunniteltu[],,1),0),MATCH(Markkinointipoikkeamat[[#Headers],[Marras]],MarkkinointiTodellinen[#Headers],0))","v":{"v":0,"d":"0.00 €"}},{"$f":"INDEX(MarkkinointiSuunniteltu[],MATCH(INDEX(Markkinointipoikkeamat[],ROW()-ROW(Markkinointipoikkeamat[[#Headers],[Joulu]]),1),INDEX(MarkkinointiSuunniteltu[],,1),0),MATCH(Markkinointipoikkeamat[[#Headers],[Joulu]],MarkkinointiSuunniteltu[#Headers],0))-INDEX(MarkkinointiTodellinen[],MATCH(INDEX(Markkinointipoikkeamat[],ROW()-ROW(Markkinointipoikkeamat[[#Headers],[Joulu]]),1),INDEX(MarkkinointiSuunniteltu[],,1),0),MATCH(Markkinointipoikkeamat[[#Headers],[Joulu]],MarkkinointiTodellinen[#Headers],0))","v":{"v":0,"d":"0.00 €"}},{"$f":"SUM(Markkinointipoikkeamat[[#This Row],[Tammi]:[Joulu]])","v":{"v":9700,"d":"9,700.00 €"}}]
[null,"Oheismateriaalin tulostaminen",{"$f":"INDEX(MarkkinointiSuunniteltu[],MATCH(INDEX(Markkinointipoikkeamat[],ROW()-ROW(Markkinointipoikkeamat[[#Headers],[Tammi]]),1),INDEX(MarkkinointiSuunniteltu[],,1),0),MATCH(Markkinointipoikkeamat[[#Headers],[Tammi]],MarkkinointiSuunniteltu[#Headers],0))-INDEX(MarkkinointiTodellinen[],MATCH(INDEX(Markkinointipoikkeamat[],ROW()-ROW(Markkinointipoikkeamat[[#Headers],[Tammi]]),1),INDEX(MarkkinointiSuunniteltu[],,1),0),MATCH(Markkinointipoikkeamat[[#Headers],[Tammi]],MarkkinointiTodellinen[#Headers],0))","v":{"v":100,"d":"100.00 €"}},{"$f":"INDEX(MarkkinointiSuunniteltu[],MATCH(INDEX(Markkinointipoikkeamat[],ROW()-ROW(Markkinointipoikkeamat[[#Headers],[Helmi]]),1),INDEX(MarkkinointiSuunniteltu[],,1),0),MATCH(Markkinointipoikkeamat[[#Headers],[Helmi]],MarkkinointiSuunniteltu[#Headers],0))-INDEX(MarkkinointiTodellinen[],MATCH(INDEX(Markkinointipoikkeamat[],ROW()-ROW(Markkinointipoikkeamat[[#Headers],[Helmi]]),1),INDEX(MarkkinointiSuunniteltu[],,1),0),MATCH(Markkinointipoikkeamat[[#Headers],[Helmi]],MarkkinointiTodellinen[#Headers],0))","v":{"v":-300,"d":"-300.00 €"}},{"$f":"INDEX(MarkkinointiSuunniteltu[],MATCH(INDEX(Markkinointipoikkeamat[],ROW()-ROW(Markkinointipoikkeamat[[#Headers],[Maalis]]),1),INDEX(MarkkinointiSuunniteltu[],,1),0),MATCH(Markkinointipoikkeamat[[#Headers],[Maalis]],MarkkinointiSuunniteltu[#Headers],0))-INDEX(MarkkinointiTodellinen[],MATCH(INDEX(Markkinointipoikkeamat[],ROW()-ROW(Markkinointipoikkeamat[[#Headers],[Maalis]]),1),INDEX(MarkkinointiSuunniteltu[],,1),0),MATCH(Markkinointipoikkeamat[[#Headers],[Maalis]],MarkkinointiTodellinen[#Headers],0))","v":{"v":100,"d":"100.00 €"}},{"$f":"INDEX(MarkkinointiSuunniteltu[],MATCH(INDEX(Markkinointipoikkeamat[],ROW()-ROW(Markkinointipoikkeamat[[#Headers],[Huhti]]),1),INDEX(MarkkinointiSuunniteltu[],,1),0),MATCH(Markkinointipoikkeamat[[#Headers],[Huhti]],MarkkinointiSuunniteltu[#Headers],0))-INDEX(MarkkinointiTodellinen[],MATCH(INDEX(Markkinointipoikkeamat[],ROW()-ROW(Markkinointipoikkeamat[[#Headers],[Huhti]]),1),INDEX(MarkkinointiSuunniteltu[],,1),0),MATCH(Markkinointipoikkeamat[[#Headers],[Huhti]],MarkkinointiTodellinen[#Headers],0))","v":{"v":100,"d":"100.00 €"}},{"$f":"INDEX(MarkkinointiSuunniteltu[],MATCH(INDEX(Markkinointipoikkeamat[],ROW()-ROW(Markkinointipoikkeamat[[#Headers],[Touko]]),1),INDEX(MarkkinointiSuunniteltu[],,1),0),MATCH(Markkinointipoikkeamat[[#Headers],[Touko]],MarkkinointiSuunniteltu[#Headers],0))-INDEX(MarkkinointiTodellinen[],MATCH(INDEX(Markkinointipoikkeamat[],ROW()-ROW(Markkinointipoikkeamat[[#Headers],[Touko]]),1),INDEX(MarkkinointiSuunniteltu[],,1),0),MATCH(Markkinointipoikkeamat[[#Headers],[Touko]],MarkkinointiTodellinen[#Headers],0))","v":{"v":-400,"d":"-400.00 €"}},{"$f":"INDEX(MarkkinointiSuunniteltu[],MATCH(INDEX(Markkinointipoikkeamat[],ROW()-ROW(Markkinointipoikkeamat[[#Headers],[Kesä]]),1),INDEX(MarkkinointiSuunniteltu[],,1),0),MATCH(Markkinointipoikkeamat[[#Headers],[Kesä]],MarkkinointiSuunniteltu[#Headers],0))-INDEX(MarkkinointiTodellinen[],MATCH(INDEX(Markkinointipoikkeamat[],ROW()-ROW(Markkinointipoikkeamat[[#Headers],[Kesä]]),1),INDEX(MarkkinointiSuunniteltu[],,1),0),MATCH(Markkinointipoikkeamat[[#Headers],[Kesä]],MarkkinointiTodellinen[#Headers],0))","v":{"v":20,"d":"20.00 €"}},{"$f":"INDEX(MarkkinointiSuunniteltu[],MATCH(INDEX(Markkinointipoikkeamat[],ROW()-ROW(Markkinointipoikkeamat[[#Headers],[Heinä]]),1),INDEX(MarkkinointiSuunniteltu[],,1),0),MATCH(Markkinointipoikkeamat[[#Headers],[Heinä]],MarkkinointiSuunniteltu[#Headers],0))-INDEX(MarkkinointiTodellinen[],MATCH(INDEX(Markkinointipoikkeamat[],ROW()-ROW(Markkinointipoikkeamat[[#Headers],[Heinä]]),1),INDEX(MarkkinointiSuunniteltu[],,1),0),MATCH(Markkinointipoikkeamat[[#Headers],[Heinä]],MarkkinointiTodellinen[#Headers],0))","v":{"v":200,"d":"200.00 €"}},{"$f":"INDEX(MarkkinointiSuunniteltu[],MATCH(INDEX(Markkinointipoikkeamat[],ROW()-ROW(Markkinointipoikkeamat[[#Headers],[Elo]]),1),INDEX(MarkkinointiSuunniteltu[],,1),0),MATCH(Markkinointipoikkeamat[[#Headers],[Elo]],MarkkinointiSuunniteltu[#Headers],0))-INDEX(MarkkinointiTodellinen[],MATCH(INDEX(Markkinointipoikkeamat[],ROW()-ROW(Markkinointipoikkeamat[[#Headers],[Elo]]),1),INDEX(MarkkinointiSuunniteltu[],,1),0),MATCH(Markkinointipoikkeamat[[#Headers],[Elo]],MarkkinointiTodellinen[#Headers],0))","v":{"v":200,"d":"200.00 €"}},{"$f":"INDEX(MarkkinointiSuunniteltu[],MATCH(INDEX(Markkinointipoikkeamat[],ROW()-ROW(Markkinointipoikkeamat[[#Headers],[Syys]]),1),INDEX(MarkkinointiSuunniteltu[],,1),0),MATCH(Markkinointipoikkeamat[[#Headers],[Syys]],MarkkinointiSuunniteltu[#Headers],0))-INDEX(MarkkinointiTodellinen[],MATCH(INDEX(Markkinointipoikkeamat[],ROW()-ROW(Markkinointipoikkeamat[[#Headers],[Syys]]),1),INDEX(MarkkinointiSuunniteltu[],,1),0),MATCH(Markkinointipoikkeamat[[#Headers],[Syys]],MarkkinointiTodellinen[#Headers],0))","v":{"v":200,"d":"200.00 €"}},{"$f":"INDEX(MarkkinointiSuunniteltu[],MATCH(INDEX(Markkinointipoikkeamat[],ROW()-ROW(Markkinointipoikkeamat[[#Headers],[Loka]]),1),INDEX(MarkkinointiSuunniteltu[],,1),0),MATCH(Markkinointipoikkeamat[[#Headers],[Loka]],MarkkinointiSuunniteltu[#Headers],0))-INDEX(MarkkinointiTodellinen[],MATCH(INDEX(Markkinointipoikkeamat[],ROW()-ROW(Markkinointipoikkeamat[[#Headers],[Loka]]),1),INDEX(MarkkinointiSuunniteltu[],,1),0),MATCH(Markkinointipoikkeamat[[#Headers],[Loka]],MarkkinointiTodellinen[#Headers],0))","v":{"v":200,"d":"200.00 €"}},{"$f":"INDEX(MarkkinointiSuunniteltu[],MATCH(INDEX(Markkinointipoikkeamat[],ROW()-ROW(Markkinointipoikkeamat[[#Headers],[Marras]]),1),INDEX(MarkkinointiSuunniteltu[],,1),0),MATCH(Markkinointipoikkeamat[[#Headers],[Marras]],MarkkinointiSuunniteltu[#Headers],0))-INDEX(MarkkinointiTodellinen[],MATCH(INDEX(Markkinointipoikkeamat[],ROW()-ROW(Markkinointipoikkeamat[[#Headers],[Marras]]),1),INDEX(MarkkinointiSuunniteltu[],,1),0),MATCH(Markkinointipoikkeamat[[#Headers],[Marras]],MarkkinointiTodellinen[#Headers],0))","v":{"v":200,"d":"200.00 €"}},{"$f":"INDEX(MarkkinointiSuunniteltu[],MATCH(INDEX(Markkinointipoikkeamat[],ROW()-ROW(Markkinointipoikkeamat[[#Headers],[Joulu]]),1),INDEX(MarkkinointiSuunniteltu[],,1),0),MATCH(Markkinointipoikkeamat[[#Headers],[Joulu]],MarkkinointiSuunniteltu[#Headers],0))-INDEX(MarkkinointiTodellinen[],MATCH(INDEX(Markkinointipoikkeamat[],ROW()-ROW(Markkinointipoikkeamat[[#Headers],[Joulu]]),1),INDEX(MarkkinointiSuunniteltu[],,1),0),MATCH(Markkinointipoikkeamat[[#Headers],[Joulu]],MarkkinointiTodellinen[#Headers],0))","v":{"v":200,"d":"200.00 €"}},{"$f":"SUM(Markkinointipoikkeamat[[#This Row],[Tammi]:[Joulu]])","v":{"v":820,"d":"820.00 €"}}]
[null,"Markkinointitapahtumat",{"$f":"INDEX(MarkkinointiSuunniteltu[],MATCH(INDEX(Markkinointipoikkeamat[],ROW()-ROW(Markkinointipoikkeamat[[#Headers],[Tammi]]),1),INDEX(MarkkinointiSuunniteltu[],,1),0),MATCH(Markkinointipoikkeamat[[#Headers],[Tammi]],MarkkinointiSuunniteltu[#Headers],0))-INDEX(MarkkinointiTodellinen[],MATCH(INDEX(Markkinointipoikkeamat[],ROW()-ROW(Markkinointipoikkeamat[[#Headers],[Tammi]]),1),INDEX(MarkkinointiSuunniteltu[],,1),0),MATCH(Markkinointipoikkeamat[[#Headers],[Tammi]],MarkkinointiTodellinen[#Headers],0))","v":{"v":200,"d":"200.00 €"}},{"$f":"INDEX(MarkkinointiSuunniteltu[],MATCH(INDEX(Markkinointipoikkeamat[],ROW()-ROW(Markkinointipoikkeamat[[#Headers],[Helmi]]),1),INDEX(MarkkinointiSuunniteltu[],,1),0),MATCH(Markkinointipoikkeamat[[#Headers],[Helmi]],MarkkinointiSuunniteltu[#Headers],0))-INDEX(MarkkinointiTodellinen[],MATCH(INDEX(Markkinointipoikkeamat[],ROW()-ROW(Markkinointipoikkeamat[[#Headers],[Helmi]]),1),INDEX(MarkkinointiSuunniteltu[],,1),0),MATCH(Markkinointipoikkeamat[[#Headers],[Helmi]],MarkkinointiTodellinen[#Headers],0))","v":{"v":-200,"d":"-200.00 €"}},{"$f":"INDEX(MarkkinointiSuunniteltu[],MATCH(INDEX(Markkinointipoikkeamat[],ROW()-ROW(Markkinointipoikkeamat[[#Headers],[Maalis]]),1),INDEX(MarkkinointiSuunniteltu[],,1),0),MATCH(Markkinointipoikkeamat[[#Headers],[Maalis]],MarkkinointiSuunniteltu[#Headers],0))-INDEX(MarkkinointiTodellinen[],MATCH(INDEX(Markkinointipoikkeamat[],ROW()-ROW(Markkinointipoikkeamat[[#Headers],[Maalis]]),1),INDEX(MarkkinointiSuunniteltu[],,1),0),MATCH(Markkinointipoikkeamat[[#Headers],[Maalis]],MarkkinointiTodellinen[#Headers],0))","v":{"v":-200,"d":"-200.00 €"}},{"$f":"INDEX(MarkkinointiSuunniteltu[],MATCH(INDEX(Markkinointipoikkeamat[],ROW()-ROW(Markkinointipoikkeamat[[#Headers],[Huhti]]),1),INDEX(MarkkinointiSuunniteltu[],,1),0),MATCH(Markkinointipoikkeamat[[#Headers],[Huhti]],MarkkinointiSuunniteltu[#Headers],0))-INDEX(MarkkinointiTodellinen[],MATCH(INDEX(Markkinointipoikkeamat[],ROW()-ROW(Markkinointipoikkeamat[[#Headers],[Huhti]]),1),INDEX(MarkkinointiSuunniteltu[],,1),0),MATCH(Markkinointipoikkeamat[[#Headers],[Huhti]],MarkkinointiTodellinen[#Headers],0))","v":{"v":300,"d":"300.00 €"}},{"$f":"INDEX(MarkkinointiSuunniteltu[],MATCH(INDEX(Markkinointipoikkeamat[],ROW()-ROW(Markkinointipoikkeamat[[#Headers],[Touko]]),1),INDEX(MarkkinointiSuunniteltu[],,1),0),MATCH(Markkinointipoikkeamat[[#Headers],[Touko]],MarkkinointiSuunniteltu[#Headers],0))-INDEX(MarkkinointiTodellinen[],MATCH(INDEX(Markkinointipoikkeamat[],ROW()-ROW(Markkinointipoikkeamat[[#Headers],[Touko]]),1),INDEX(MarkkinointiSuunniteltu[],,1),0),MATCH(Markkinointipoikkeamat[[#Headers],[Touko]],MarkkinointiTodellinen[#Headers],0))","v":{"v":500,"d":"500.00 €"}},{"$f":"INDEX(MarkkinointiSuunniteltu[],MATCH(INDEX(Markkinointipoikkeamat[],ROW()-ROW(Markkinointipoikkeamat[[#Headers],[Kesä]]),1),INDEX(MarkkinointiSuunniteltu[],,1),0),MATCH(Markkinointipoikkeamat[[#Headers],[Kesä]],MarkkinointiSuunniteltu[#Headers],0))-INDEX(MarkkinointiTodellinen[],MATCH(INDEX(Markkinointipoikkeamat[],ROW()-ROW(Markkinointipoikkeamat[[#Headers],[Kesä]]),1),INDEX(MarkkinointiSuunniteltu[],,1),0),MATCH(Markkinointipoikkeamat[[#Headers],[Kesä]],MarkkinointiTodellinen[#Headers],0))","v":{"v":-300,"d":"-300.00 €"}},{"$f":"INDEX(MarkkinointiSuunniteltu[],MATCH(INDEX(Markkinointipoikkeamat[],ROW()-ROW(Markkinointipoikkeamat[[#Headers],[Heinä]]),1),INDEX(MarkkinointiSuunniteltu[],,1),0),MATCH(Markkinointipoikkeamat[[#Headers],[Heinä]],MarkkinointiSuunniteltu[#Headers],0))-INDEX(MarkkinointiTodellinen[],MATCH(INDEX(Markkinointipoikkeamat[],ROW()-ROW(Markkinointipoikkeamat[[#Headers],[Heinä]]),1),INDEX(MarkkinointiSuunniteltu[],,1),0),MATCH(Markkinointipoikkeamat[[#Headers],[Heinä]],MarkkinointiTodellinen[#Headers],0))","v":{"v":2000,"d":"2,000.00 €"}},{"$f":"INDEX(MarkkinointiSuunniteltu[],MATCH(INDEX(Markkinointipoikkeamat[],ROW()-ROW(Markkinointipoikkeamat[[#Headers],[Elo]]),1),INDEX(MarkkinointiSuunniteltu[],,1),0),MATCH(Markkinointipoikkeamat[[#Headers],[Elo]],MarkkinointiSuunniteltu[#Headers],0))-INDEX(MarkkinointiTodellinen[],MATCH(INDEX(Markkinointipoikkeamat[],ROW()-ROW(Markkinointipoikkeamat[[#Headers],[Elo]]),1),INDEX(MarkkinointiSuunniteltu[],,1),0),MATCH(Markkinointipoikkeamat[[#Headers],[Elo]],MarkkinointiTodellinen[#Headers],0))","v":{"v":5000,"d":"5,000.00 €"}},{"$f":"INDEX(MarkkinointiSuunniteltu[],MATCH(INDEX(Markkinointipoikkeamat[],ROW()-ROW(Markkinointipoikkeamat[[#Headers],[Syys]]),1),INDEX(MarkkinointiSuunniteltu[],,1),0),MATCH(Markkinointipoikkeamat[[#Headers],[Syys]],MarkkinointiSuunniteltu[#Headers],0))-INDEX(MarkkinointiTodellinen[],MATCH(INDEX(Markkinointipoikkeamat[],ROW()-ROW(Markkinointipoikkeamat[[#Headers],[Syys]]),1),INDEX(MarkkinointiSuunniteltu[],,1),0),MATCH(Markkinointipoikkeamat[[#Headers],[Syys]],MarkkinointiTodellinen[#Headers],0))","v":{"v":2000,"d":"2,000.00 €"}},{"$f":"INDEX(MarkkinointiSuunniteltu[],MATCH(INDEX(Markkinointipoikkeamat[],ROW()-ROW(Markkinointipoikkeamat[[#Headers],[Loka]]),1),INDEX(MarkkinointiSuunniteltu[],,1),0),MATCH(Markkinointipoikkeamat[[#Headers],[Loka]],MarkkinointiSuunniteltu[#Headers],0))-INDEX(MarkkinointiTodellinen[],MATCH(INDEX(Markkinointipoikkeamat[],ROW()-ROW(Markkinointipoikkeamat[[#Headers],[Loka]]),1),INDEX(MarkkinointiSuunniteltu[],,1),0),MATCH(Markkinointipoikkeamat[[#Headers],[Loka]],MarkkinointiTodellinen[#Headers],0))","v":{"v":2000,"d":"2,000.00 €"}},{"$f":"INDEX(MarkkinointiSuunniteltu[],MATCH(INDEX(Markkinointipoikkeamat[],ROW()-ROW(Markkinointipoikkeamat[[#Headers],[Marras]]),1),INDEX(MarkkinointiSuunniteltu[],,1),0),MATCH(Markkinointipoikkeamat[[#Headers],[Marras]],MarkkinointiSuunniteltu[#Headers],0))-INDEX(MarkkinointiTodellinen[],MATCH(INDEX(Markkinointipoikkeamat[],ROW()-ROW(Markkinointipoikkeamat[[#Headers],[Marras]]),1),INDEX(MarkkinointiSuunniteltu[],,1),0),MATCH(Markkinointipoikkeamat[[#Headers],[Marras]],MarkkinointiTodellinen[#Headers],0))","v":{"v":2000,"d":"2,000.00 €"}},{"$f":"INDEX(MarkkinointiSuunniteltu[],MATCH(INDEX(Markkinointipoikkeamat[],ROW()-ROW(Markkinointipoikkeamat[[#Headers],[Joulu]]),1),INDEX(MarkkinointiSuunniteltu[],,1),0),MATCH(Markkinointipoikkeamat[[#Headers],[Joulu]],MarkkinointiSuunniteltu[#Headers],0))-INDEX(MarkkinointiTodellinen[],MATCH(INDEX(Markkinointipoikkeamat[],ROW()-ROW(Markkinointipoikkeamat[[#Headers],[Joulu]]),1),INDEX(MarkkinointiSuunniteltu[],,1),0),MATCH(Markkinointipoikkeamat[[#Headers],[Joulu]],MarkkinointiTodellinen[#Headers],0))","v":{"v":5000,"d":"5,000.00 €"}},{"$f":"SUM(Markkinointipoikkeamat[[#This Row],[Tammi]:[Joulu]])","v":{"v":18300,"d":"18,300.00 €"}}]
[null,"Sekalaiset kulut",{"$f":"INDEX(MarkkinointiSuunniteltu[],MATCH(INDEX(Markkinointipoikkeamat[],ROW()-ROW(Markkinointipoikkeamat[[#Headers],[Tammi]]),1),INDEX(MarkkinointiSuunniteltu[],,1),0),MATCH(Markkinointipoikkeamat[[#Headers],[Tammi]],MarkkinointiSuunniteltu[#Headers],0))-INDEX(MarkkinointiTodellinen[],MATCH(INDEX(Markkinointipoikkeamat[],ROW()-ROW(Markkinointipoikkeamat[[#Headers],[Tammi]]),1),INDEX(MarkkinointiSuunniteltu[],,1),0),MATCH(Markkinointipoikkeamat[[#Headers],[Tammi]],MarkkinointiTodellinen[#Headers],0))","v":{"v":55,"d":"55.00 €"}},{"$f":"INDEX(MarkkinointiSuunniteltu[],MATCH(INDEX(Markkinointipoikkeamat[],ROW()-ROW(Markkinointipoikkeamat[[#Headers],[Helmi]]),1),INDEX(MarkkinointiSuunniteltu[],,1),0),MATCH(Markkinointipoikkeamat[[#Headers],[Helmi]],MarkkinointiSuunniteltu[#Headers],0))-INDEX(MarkkinointiTodellinen[],MATCH(INDEX(Markkinointipoikkeamat[],ROW()-ROW(Markkinointipoikkeamat[[#Headers],[Helmi]]),1),INDEX(MarkkinointiSuunniteltu[],,1),0),MATCH(Markkinointipoikkeamat[[#Headers],[Helmi]],MarkkinointiTodellinen[#Headers],0))","v":{"v":44,"d":"44.00 €"}},{"$f":"INDEX(MarkkinointiSuunniteltu[],MATCH(INDEX(Markkinointipoikkeamat[],ROW()-ROW(Markkinointipoikkeamat[[#Headers],[Maalis]]),1),INDEX(MarkkinointiSuunniteltu[],,1),0),MATCH(Markkinointipoikkeamat[[#Headers],[Maalis]],MarkkinointiSuunniteltu[#Headers],0))-INDEX(MarkkinointiTodellinen[],MATCH(INDEX(Markkinointipoikkeamat[],ROW()-ROW(Markkinointipoikkeamat[[#Headers],[Maalis]]),1),INDEX(MarkkinointiSuunniteltu[],,1),0),MATCH(Markkinointipoikkeamat[[#Headers],[Maalis]],MarkkinointiTodellinen[#Headers],0))","v":{"v":77,"d":"77.00 €"}},{"$f":"INDEX(MarkkinointiSuunniteltu[],MATCH(INDEX(Markkinointipoikkeamat[],ROW()-ROW(Markkinointipoikkeamat[[#Headers],[Huhti]]),1),INDEX(MarkkinointiSuunniteltu[],,1),0),MATCH(Markkinointipoikkeamat[[#Headers],[Huhti]],MarkkinointiSuunniteltu[#Headers],0))-INDEX(MarkkinointiTodellinen[],MATCH(INDEX(Markkinointipoikkeamat[],ROW()-ROW(Markkinointipoikkeamat[[#Headers],[Huhti]]),1),INDEX(MarkkinointiSuunniteltu[],,1),0),MATCH(Markkinointipoikkeamat[[#Headers],[Huhti]],MarkkinointiTodellinen[#Headers],0))","v":{"v":-23,"d":"-23.00 €"}},{"$f":"INDEX(MarkkinointiSuunniteltu[],MATCH(INDEX(Markkinointipoikkeamat[],ROW()-ROW(Markkinointipoikkeamat[[#Headers],[Touko]]),1),INDEX(MarkkinointiSuunniteltu[],,1),0),MATCH(Markkinointipoikkeamat[[#Headers],[Touko]],MarkkinointiSuunniteltu[#Headers],0))-INDEX(MarkkinointiTodellinen[],MATCH(INDEX(Markkinointipoikkeamat[],ROW()-ROW(Markkinointipoikkeamat[[#Headers],[Touko]]),1),INDEX(MarkkinointiSuunniteltu[],,1),0),MATCH(Markkinointipoikkeamat[[#Headers],[Touko]],MarkkinointiTodellinen[#Headers],0))","v":{"v":13,"d":"13.00 €"}},{"$f":"INDEX(MarkkinointiSuunniteltu[],MATCH(INDEX(Markkinointipoikkeamat[],ROW()-ROW(Markkinointipoikkeamat[[#Headers],[Kesä]]),1),INDEX(MarkkinointiSuunniteltu[],,1),0),MATCH(Markkinointipoikkeamat[[#Headers],[Kesä]],MarkkinointiSuunniteltu[#Headers],0))-INDEX(MarkkinointiTodellinen[],MATCH(INDEX(Markkinointipoikkeamat[],ROW()-ROW(Markkinointipoikkeamat[[#Headers],[Kesä]]),1),INDEX(MarkkinointiSuunniteltu[],,1),0),MATCH(Markkinointipoikkeamat[[#Headers],[Kesä]],MarkkinointiTodellinen[#Headers],0))","v":{"v":-45,"d":"-45.00 €"}},{"$f":"INDEX(MarkkinointiSuunniteltu[],MATCH(INDEX(Markkinointipoikkeamat[],ROW()-ROW(Markkinointipoikkeamat[[#Headers],[Heinä]]),1),INDEX(MarkkinointiSuunniteltu[],,1),0),MATCH(Markkinointipoikkeamat[[#Headers],[Heinä]],MarkkinointiSuunniteltu[#Headers],0))-INDEX(MarkkinointiTodellinen[],MATCH(INDEX(Markkinointipoikkeamat[],ROW()-ROW(Markkinointipoikkeamat[[#Headers],[Heinä]]),1),INDEX(MarkkinointiSuunniteltu[],,1),0),MATCH(Markkinointipoikkeamat[[#Headers],[Heinä]],MarkkinointiTodellinen[#Headers],0))","v":{"v":200,"d":"200.00 €"}},{"$f":"INDEX(MarkkinointiSuunniteltu[],MATCH(INDEX(Markkinointipoikkeamat[],ROW()-ROW(Markkinointipoikkeamat[[#Headers],[Elo]]),1),INDEX(MarkkinointiSuunniteltu[],,1),0),MATCH(Markkinointipoikkeamat[[#Headers],[Elo]],MarkkinointiSuunniteltu[#Headers],0))-INDEX(MarkkinointiTodellinen[],MATCH(INDEX(Markkinointipoikkeamat[],ROW()-ROW(Markkinointipoikkeamat[[#Headers],[Elo]]),1),INDEX(MarkkinointiSuunniteltu[],,1),0),MATCH(Markkinointipoikkeamat[[#Headers],[Elo]],MarkkinointiTodellinen[#Headers],0))","v":{"v":200,"d":"200.00 €"}},{"$f":"INDEX(MarkkinointiSuunniteltu[],MATCH(INDEX(Markkinointipoikkeamat[],ROW()-ROW(Markkinointipoikkeamat[[#Headers],[Syys]]),1),INDEX(MarkkinointiSuunniteltu[],,1),0),MATCH(Markkinointipoikkeamat[[#Headers],[Syys]],MarkkinointiSuunniteltu[#Headers],0))-INDEX(MarkkinointiTodellinen[],MATCH(INDEX(Markkinointipoikkeamat[],ROW()-ROW(Markkinointipoikkeamat[[#Headers],[Syys]]),1),INDEX(MarkkinointiSuunniteltu[],,1),0),MATCH(Markkinointipoikkeamat[[#Headers],[Syys]],MarkkinointiTodellinen[#Headers],0))","v":{"v":200,"d":"200.00 €"}},{"$f":"INDEX(MarkkinointiSuunniteltu[],MATCH(INDEX(Markkinointipoikkeamat[],ROW()-ROW(Markkinointipoikkeamat[[#Headers],[Loka]]),1),INDEX(MarkkinointiSuunniteltu[],,1),0),MATCH(Markkinointipoikkeamat[[#Headers],[Loka]],MarkkinointiSuunniteltu[#Headers],0))-INDEX(MarkkinointiTodellinen[],MATCH(INDEX(Markkinointipoikkeamat[],ROW()-ROW(Markkinointipoikkeamat[[#Headers],[Loka]]),1),INDEX(MarkkinointiSuunniteltu[],,1),0),MATCH(Markkinointipoikkeamat[[#Headers],[Loka]],MarkkinointiTodellinen[#Headers],0))","v":{"v":200,"d":"200.00 €"}},{"$f":"INDEX(MarkkinointiSuunniteltu[],MATCH(INDEX(Markkinointipoikkeamat[],ROW()-ROW(Markkinointipoikkeamat[[#Headers],[Marras]]),1),INDEX(MarkkinointiSuunniteltu[],,1),0),MATCH(Markkinointipoikkeamat[[#Headers],[Marras]],MarkkinointiSuunniteltu[#Headers],0))-INDEX(MarkkinointiTodellinen[],MATCH(INDEX(Markkinointipoikkeamat[],ROW()-ROW(Markkinointipoikkeamat[[#Headers],[Marras]]),1),INDEX(MarkkinointiSuunniteltu[],,1),0),MATCH(Markkinointipoikkeamat[[#Headers],[Marras]],MarkkinointiTodellinen[#Headers],0))","v":{"v":200,"d":"200.00 €"}},{"$f":"INDEX(MarkkinointiSuunniteltu[],MATCH(INDEX(Markkinointipoikkeamat[],ROW()-ROW(Markkinointipoikkeamat[[#Headers],[Joulu]]),1),INDEX(MarkkinointiSuunniteltu[],,1),0),MATCH(Markkinointipoikkeamat[[#Headers],[Joulu]],MarkkinointiSuunniteltu[#Headers],0))-INDEX(MarkkinointiTodellinen[],MATCH(INDEX(Markkinointipoikkeamat[],ROW()-ROW(Markkinointipoikkeamat[[#Headers],[Joulu]]),1),INDEX(MarkkinointiSuunniteltu[],,1),0),MATCH(Markkinointipoikkeamat[[#Headers],[Joulu]],MarkkinointiTodellinen[#Headers],0))","v":{"v":200,"d":"200.00 €"}},{"$f":"SUM(Markkinointipoikkeamat[[#This Row],[Tammi]:[Joulu]])","v":{"v":1321,"d":"1,321.00 €"}}]
[null,"Välisumma",{"$f":"SUBTOTAL(109,Markkinointipoikkeamat[Tammi])","v":{"v":555,"d":"555.00 €"}},{"$f":"SUBTOTAL(109,Markkinointipoikkeamat[Helmi])","v":{"v":-456,"d":"-456.00 €"}},{"$f":"SUBTOTAL(109,Markkinointipoikkeamat[Maalis])","v":{"v":-23,"d":"-23.00 €"}},{"$f":"SUBTOTAL(109,Markkinointipoikkeamat[Huhti])","v":{"v":-123,"d":"-123.00 €"}},{"$f":"SUBTOTAL(109,Markkinointipoikkeamat[Touko])","v":{"v":113,"d":"113.00 €"}},{"$f":"SUBTOTAL(109,Markkinointipoikkeamat[Kesä])","v":{"v":-825,"d":"-825.00 €"}},{"$f":"SUBTOTAL(109,Markkinointipoikkeamat[Heinä])","v":{"v":8100,"d":"8,100.00 €"}},{"$f":"SUBTOTAL(109,Markkinointipoikkeamat[Elo])","v":{"v":6100,"d":"6,100.00 €"}},{"$f":"SUBTOTAL(109,Markkinointipoikkeamat[Syys])","v":{"v":3100,"d":"3,100.00 €"}},{"$f":"SUBTOTAL(109,Markkinointipoikkeamat[Loka])","v":{"v":8100,"d":"8,100.00 €"}},{"$f":"SUBTOTAL(109,Markkinointipoikkeamat[Marras])","v":{"v":3100,"d":"3,100.00 €"}},{"$f":"SUBTOTAL(109,Markkinointipoikkeamat[Joulu])","v":{"v":6900,"d":"6,900.00 €"}},{"$f":"SUBTOTAL(109,Markkinointipoikkeamat[VUOSI])","v":{"v":34641,"d":"34,641.00 €"}}]
[]
["Koulutus- tai matkakulujen poikkeama lasketaan automaattisesti Koulutus- ja matkapoikkeamat -taulukkoon oikealla olevasta solusta aloittaen. Seuraava ohje on solussa A35.","Koulutus/matka","Tammi","Helmi","Maalis","Huhti","Touko","Kesä","Heinä","Elo","Syys","Loka","Marras","Joulu","VUOSI"]
[null,"Koulutuskurssit",{"$f":"INDEX(KoulutusJaMatkaSuunniteltu[],MATCH(INDEX(KoulutusJaMatkapoikkeamat[],ROW()-ROW(KoulutusJaMatkapoikkeamat[[#Headers],[Tammi]]),1),INDEX(KoulutusJaMatkaSuunniteltu[],,1),0),MATCH(KoulutusJaMatkapoikkeamat[[#Headers],[Tammi]],KoulutusJaMatkaSuunniteltu[#Headers],0))-INDEX(KoulutusJaMatkaTodellinen[],MATCH(INDEX(KoulutusJaMatkapoikkeamat[],ROW()-ROW(KoulutusJaMatkapoikkeamat[[#Headers],[Tammi]]),1),INDEX(KoulutusJaMatkaSuunniteltu[],,1),0),MATCH(KoulutusJaMatkapoikkeamat[[#Headers],[Tammi]],KoulutusJaMatkaTodellinen[#Headers],0))","v":{"v":400,"d":"400.00 €"}},{"$f":"INDEX(KoulutusJaMatkaSuunniteltu[],MATCH(INDEX(KoulutusJaMatkapoikkeamat[],ROW()-ROW(KoulutusJaMatkapoikkeamat[[#Headers],[Helmi]]),1),INDEX(KoulutusJaMatkaSuunniteltu[],,1),0),MATCH(KoulutusJaMatkapoikkeamat[[#Headers],[Helmi]],KoulutusJaMatkaSuunniteltu[#Headers],0))-INDEX(KoulutusJaMatkaTodellinen[],MATCH(INDEX(KoulutusJaMatkapoikkeamat[],ROW()-ROW(KoulutusJaMatkapoikkeamat[[#Headers],[Helmi]]),1),INDEX(KoulutusJaMatkaSuunniteltu[],,1),0),MATCH(KoulutusJaMatkapoikkeamat[[#Headers],[Helmi]],KoulutusJaMatkaTodellinen[#Headers],0))","v":{"v":-400,"d":"-400.00 €"}},{"$f":"INDEX(KoulutusJaMatkaSuunniteltu[],MATCH(INDEX(KoulutusJaMatkapoikkeamat[],ROW()-ROW(KoulutusJaMatkapoikkeamat[[#Headers],[Maalis]]),1),INDEX(KoulutusJaMatkaSuunniteltu[],,1),0),MATCH(KoulutusJaMatkapoikkeamat[[#Headers],[Maalis]],KoulutusJaMatkaSuunniteltu[#Headers],0))-INDEX(KoulutusJaMatkaTodellinen[],MATCH(INDEX(KoulutusJaMatkapoikkeamat[],ROW()-ROW(KoulutusJaMatkapoikkeamat[[#Headers],[Maalis]]),1),INDEX(KoulutusJaMatkaSuunniteltu[],,1),0),MATCH(KoulutusJaMatkapoikkeamat[[#Headers],[Maalis]],KoulutusJaMatkaTodellinen[#Headers],0))","v":{"v":600,"d":"600.00 €"}},{"$f":"INDEX(KoulutusJaMatkaSuunniteltu[],MATCH(INDEX(KoulutusJaMatkapoikkeamat[],ROW()-ROW(KoulutusJaMatkapoikkeamat[[#Headers],[Huhti]]),1),INDEX(KoulutusJaMatkaSuunniteltu[],,1),0),MATCH(KoulutusJaMatkapoikkeamat[[#Headers],[Huhti]],KoulutusJaMatkaSuunniteltu[#Headers],0))-INDEX(KoulutusJaMatkaTodellinen[],MATCH(INDEX(KoulutusJaMatkapoikkeamat[],ROW()-ROW(KoulutusJaMatkapoikkeamat[[#Headers],[Huhti]]),1),INDEX(KoulutusJaMatkaSuunniteltu[],,1),0),MATCH(KoulutusJaMatkapoikkeamat[[#Headers],[Huhti]],KoulutusJaMatkaTodellinen[#Headers],0))","v":{"v":400,"d":"400.00 €"}},{"$f":"INDEX(KoulutusJaMatkaSuunniteltu[],MATCH(INDEX(KoulutusJaMatkapoikkeamat[],ROW()-ROW(KoulutusJaMatkapoikkeamat[[#Headers],[Touko]]),1),INDEX(KoulutusJaMatkaSuunniteltu[],,1),0),MATCH(KoulutusJaMatkapoikkeamat[[#Headers],[Touko]],KoulutusJaMatkaSuunniteltu[#Headers],0))-INDEX(KoulutusJaMatkaTodellinen[],MATCH(INDEX(KoulutusJaMatkapoikkeamat[],ROW()-ROW(KoulutusJaMatkapoikkeamat[[#Headers],[Touko]]),1),INDEX(KoulutusJaMatkaSuunniteltu[],,1),0),MATCH(KoulutusJaMatkapoikkeamat[[#Headers],[Touko]],KoulutusJaMatkaTodellinen[#Headers],0))","v":{"v":800,"d":"800.00 €"}},{"$f":"INDEX(KoulutusJaMatkaSuunniteltu[],MATCH(INDEX(KoulutusJaMatkapoikkeamat[],ROW()-ROW(KoulutusJaMatkapoikkeamat[[#Headers],[Kesä]]),1),INDEX(KoulutusJaMatkaSuunniteltu[],,1),0),MATCH(KoulutusJaMatkapoikkeamat[[#Headers],[Kesä]],KoulutusJaMatkaSuunniteltu[#Headers],0))-INDEX(KoulutusJaMatkaTodellinen[],MATCH(INDEX(KoulutusJaMatkapoikkeamat[],ROW()-ROW(KoulutusJaMatkapoikkeamat[[#Headers],[Kesä]]),1),INDEX(KoulutusJaMatkaSuunniteltu[],,1),0),MATCH(KoulutusJaMatkapoikkeamat[[#Headers],[Kesä]],KoulutusJaMatkaTodellinen[#Headers],0))","v":{"v":-800,"d":"-800.00 €"}},{"$f":"INDEX(KoulutusJaMatkaSuunniteltu[],MATCH(INDEX(KoulutusJaMatkapoikkeamat[],ROW()-ROW(KoulutusJaMatkapoikkeamat[[#Headers],[Heinä]]),1),INDEX(KoulutusJaMatkaSuunniteltu[],,1),0),MATCH(KoulutusJaMatkapoikkeamat[[#Headers],[Heinä]],KoulutusJaMatkaSuunniteltu[#Headers],0))-INDEX(KoulutusJaMatkaTodellinen[],MATCH(INDEX(KoulutusJaMatkapoikkeamat[],ROW()-ROW(KoulutusJaMatkapoikkeamat[[#Headers],[Heinä]]),1),INDEX(KoulutusJaMatkaSuunniteltu[],,1),0),MATCH(KoulutusJaMatkapoikkeamat[[#Headers],[Heinä]],KoulutusJaMatkaTodellinen[#Headers],0))","v":{"v":2000,"d":"2,000.00 €"}},{"$f":"INDEX(KoulutusJaMatkaSuunniteltu[],MATCH(INDEX(KoulutusJaMatkapoikkeamat[],ROW()-ROW(KoulutusJaMatkapoikkeamat[[#Headers],[Elo]]),1),INDEX(KoulutusJaMatkaSuunniteltu[],,1),0),MATCH(KoulutusJaMatkapoikkeamat[[#Headers],[Elo]],KoulutusJaMatkaSuunniteltu[#Headers],0))-INDEX(KoulutusJaMatkaTodellinen[],MATCH(INDEX(KoulutusJaMatkapoikkeamat[],ROW()-ROW(KoulutusJaMatkapoikkeamat[[#Headers],[Elo]]),1),INDEX(KoulutusJaMatkaSuunniteltu[],,1),0),MATCH(KoulutusJaMatkapoikkeamat[[#Headers],[Elo]],KoulutusJaMatkaTodellinen[#Headers],0))","v":{"v":2000,"d":"2,000.00 €"}},{"$f":"INDEX(KoulutusJaMatkaSuunniteltu[],MATCH(INDEX(KoulutusJaMatkapoikkeamat[],ROW()-ROW(KoulutusJaMatkapoikkeamat[[#Headers],[Syys]]),1),INDEX(KoulutusJaMatkaSuunniteltu[],,1),0),MATCH(KoulutusJaMatkapoikkeamat[[#Headers],[Syys]],KoulutusJaMatkaSuunniteltu[#Headers],0))-INDEX(KoulutusJaMatkaTodellinen[],MATCH(INDEX(KoulutusJaMatkapoikkeamat[],ROW()-ROW(KoulutusJaMatkapoikkeamat[[#Headers],[Syys]]),1),INDEX(KoulutusJaMatkaSuunniteltu[],,1),0),MATCH(KoulutusJaMatkapoikkeamat[[#Headers],[Syys]],KoulutusJaMatkaTodellinen[#Headers],0))","v":{"v":2000,"d":"2,000.00 €"}},{"$f":"INDEX(KoulutusJaMatkaSuunniteltu[],MATCH(INDEX(KoulutusJaMatkapoikkeamat[],ROW()-ROW(KoulutusJaMatkapoikkeamat[[#Headers],[Loka]]),1),INDEX(KoulutusJaMatkaSuunniteltu[],,1),0),MATCH(KoulutusJaMatkapoikkeamat[[#Headers],[Loka]],KoulutusJaMatkaSuunniteltu[#Headers],0))-INDEX(KoulutusJaMatkaTodellinen[],MATCH(INDEX(KoulutusJaMatkapoikkeamat[],ROW()-ROW(KoulutusJaMatkapoikkeamat[[#Headers],[Loka]]),1),INDEX(KoulutusJaMatkaSuunniteltu[],,1),0),MATCH(KoulutusJaMatkapoikkeamat[[#Headers],[Loka]],KoulutusJaMatkaTodellinen[#Headers],0))","v":{"v":2000,"d":"2,000.00 €"}},{"$f":"INDEX(KoulutusJaMatkaSuunniteltu[],MATCH(INDEX(KoulutusJaMatkapoikkeamat[],ROW()-ROW(KoulutusJaMatkapoikkeamat[[#Headers],[Marras]]),1),INDEX(KoulutusJaMatkaSuunniteltu[],,1),0),MATCH(KoulutusJaMatkapoikkeamat[[#Headers],[Marras]],KoulutusJaMatkaSuunniteltu[#Headers],0))-INDEX(KoulutusJaMatkaTodellinen[],MATCH(INDEX(KoulutusJaMatkapoikkeamat[],ROW()-ROW(KoulutusJaMatkapoikkeamat[[#Headers],[Marras]]),1),INDEX(KoulutusJaMatkaSuunniteltu[],,1),0),MATCH(KoulutusJaMatkapoikkeamat[[#Headers],[Marras]],KoulutusJaMatkaTodellinen[#Headers],0))","v":{"v":2000,"d":"2,000.00 €"}},{"$f":"INDEX(KoulutusJaMatkaSuunniteltu[],MATCH(INDEX(KoulutusJaMatkapoikkeamat[],ROW()-ROW(KoulutusJaMatkapoikkeamat[[#Headers],[Joulu]]),1),INDEX(KoulutusJaMatkaSuunniteltu[],,1),0),MATCH(KoulutusJaMatkapoikkeamat[[#Headers],[Joulu]],KoulutusJaMatkaSuunniteltu[#Headers],0))-INDEX(KoulutusJaMatkaTodellinen[],MATCH(INDEX(KoulutusJaMatkapoikkeamat[],ROW()-ROW(KoulutusJaMatkapoikkeamat[[#Headers],[Joulu]]),1),INDEX(KoulutusJaMatkaSuunniteltu[],,1),0),MATCH(KoulutusJaMatkapoikkeamat[[#Headers],[Joulu]],KoulutusJaMatkaTodellinen[#Headers],0))","v":{"v":2000,"d":"2,000.00 €"}},{"$f":"SUM(KoulutusJaMatkapoikkeamat[[#This Row],[Tammi]:[Joulu]])","v":{"v":13000,"d":"13,000.00 €"}}]
[null,"Koulutukseen liittyvät matkakulut",{"$f":"INDEX(KoulutusJaMatkaSuunniteltu[],MATCH(INDEX(KoulutusJaMatkapoikkeamat[],ROW()-ROW(KoulutusJaMatkapoikkeamat[[#Headers],[Tammi]]),1),INDEX(KoulutusJaMatkaSuunniteltu[],,1),0),MATCH(KoulutusJaMatkapoikkeamat[[#Headers],[Tammi]],KoulutusJaMatkaSuunniteltu[#Headers],0))-INDEX(KoulutusJaMatkaTodellinen[],MATCH(INDEX(KoulutusJaMatkapoikkeamat[],ROW()-ROW(KoulutusJaMatkapoikkeamat[[#Headers],[Tammi]]),1),INDEX(KoulutusJaMatkaSuunniteltu[],,1),0),MATCH(KoulutusJaMatkapoikkeamat[[#Headers],[Tammi]],KoulutusJaMatkaTodellinen[#Headers],0))","v":{"v":800,"d":"800.00 €"}},{"$f":"INDEX(KoulutusJaMatkaSuunniteltu[],MATCH(INDEX(KoulutusJaMatkapoikkeamat[],ROW()-ROW(KoulutusJaMatkapoikkeamat[[#Headers],[Helmi]]),1),INDEX(KoulutusJaMatkaSuunniteltu[],,1),0),MATCH(KoulutusJaMatkapoikkeamat[[#Headers],[Helmi]],KoulutusJaMatkaSuunniteltu[#Headers],0))-INDEX(KoulutusJaMatkaTodellinen[],MATCH(INDEX(KoulutusJaMatkapoikkeamat[],ROW()-ROW(KoulutusJaMatkapoikkeamat[[#Headers],[Helmi]]),1),INDEX(KoulutusJaMatkaSuunniteltu[],,1),0),MATCH(KoulutusJaMatkapoikkeamat[[#Headers],[Helmi]],KoulutusJaMatkaTodellinen[#Headers],0))","v":{"v":-200,"d":"-200.00 €"}},{"$f":"INDEX(KoulutusJaMatkaSuunniteltu[],MATCH(INDEX(KoulutusJaMatkapoikkeamat[],ROW()-ROW(KoulutusJaMatkapoikkeamat[[#Headers],[Maalis]]),1),INDEX(KoulutusJaMatkaSuunniteltu[],,1),0),MATCH(KoulutusJaMatkapoikkeamat[[#Headers],[Maalis]],KoulutusJaMatkaSuunniteltu[#Headers],0))-INDEX(KoulutusJaMatkaTodellinen[],MATCH(INDEX(KoulutusJaMatkapoikkeamat[],ROW()-ROW(KoulutusJaMatkapoikkeamat[[#Headers],[Maalis]]),1),INDEX(KoulutusJaMatkaSuunniteltu[],,1),0),MATCH(KoulutusJaMatkapoikkeamat[[#Headers],[Maalis]],KoulutusJaMatkaTodellinen[#Headers],0))","v":{"v":600,"d":"600.00 €"}},{"$f":"INDEX(KoulutusJaMatkaSuunniteltu[],MATCH(INDEX(KoulutusJaMatkapoikkeamat[],ROW()-ROW(KoulutusJaMatkapoikkeamat[[#Headers],[Huhti]]),1),INDEX(KoulutusJaMatkaSuunniteltu[],,1),0),MATCH(KoulutusJaMatkapoikkeamat[[#Headers],[Huhti]],KoulutusJaMatkaSuunniteltu[#Headers],0))-INDEX(KoulutusJaMatkaTodellinen[],MATCH(INDEX(KoulutusJaMatkapoikkeamat[],ROW()-ROW(KoulutusJaMatkapoikkeamat[[#Headers],[Huhti]]),1),INDEX(KoulutusJaMatkaSuunniteltu[],,1),0),MATCH(KoulutusJaMatkapoikkeamat[[#Headers],[Huhti]],KoulutusJaMatkaTodellinen[#Headers],0))","v":{"v":800,"d":"800.00 €"}},{"$f":"INDEX(KoulutusJaMatkaSuunniteltu[],MATCH(INDEX(KoulutusJaMatkapoikkeamat[],ROW()-ROW(KoulutusJaMatkapoikkeamat[[#Headers],[Touko]]),1),INDEX(KoulutusJaMatkaSuunniteltu[],,1),0),MATCH(KoulutusJaMatkapoikkeamat[[#Headers],[Touko]],KoulutusJaMatkaSuunniteltu[#Headers],0))-INDEX(KoulutusJaMatkaTodellinen[],MATCH(INDEX(KoulutusJaMatkapoikkeamat[],ROW()-ROW(KoulutusJaMatkapoikkeamat[[#Headers],[Touko]]),1),INDEX(KoulutusJaMatkaSuunniteltu[],,1),0),MATCH(KoulutusJaMatkapoikkeamat[[#Headers],[Touko]],KoulutusJaMatkaTodellinen[#Headers],0))","v":{"v":1200,"d":"1,200.00 €"}},{"$f":"INDEX(KoulutusJaMatkaSuunniteltu[],MATCH(INDEX(KoulutusJaMatkapoikkeamat[],ROW()-ROW(KoulutusJaMatkapoikkeamat[[#Headers],[Kesä]]),1),INDEX(KoulutusJaMatkaSuunniteltu[],,1),0),MATCH(KoulutusJaMatkapoikkeamat[[#Headers],[Kesä]],KoulutusJaMatkaSuunniteltu[#Headers],0))-INDEX(KoulutusJaMatkaTodellinen[],MATCH(INDEX(KoulutusJaMatkapoikkeamat[],ROW()-ROW(KoulutusJaMatkapoikkeamat[[#Headers],[Kesä]]),1),INDEX(KoulutusJaMatkaSuunniteltu[],,1),0),MATCH(KoulutusJaMatkapoikkeamat[[#Headers],[Kesä]],KoulutusJaMatkaTodellinen[#Headers],0))","v":{"v":-1500,"d":"-1,500.00 €"}},{"$f":"INDEX(KoulutusJaMatkaSuunniteltu[],MATCH(INDEX(KoulutusJaMatkapoikkeamat[],ROW()-ROW(KoulutusJaMatkapoikkeamat[[#Headers],[Heinä]]),1),INDEX(KoulutusJaMatkaSuunniteltu[],,1),0),MATCH(KoulutusJaMatkapoikkeamat[[#Headers],[Heinä]],KoulutusJaMatkaSuunniteltu[#Headers],0))-INDEX(KoulutusJaMatkaTodellinen[],MATCH(INDEX(KoulutusJaMatkapoikkeamat[],ROW()-ROW(KoulutusJaMatkapoikkeamat[[#Headers],[Heinä]]),1),INDEX(KoulutusJaMatkaSuunniteltu[],,1),0),MATCH(KoulutusJaMatkapoikkeamat[[#Headers],[Heinä]],KoulutusJaMatkaTodellinen[#Headers],0))","v":{"v":2000,"d":"2,000.00 €"}},{"$f":"INDEX(KoulutusJaMatkaSuunniteltu[],MATCH(INDEX(KoulutusJaMatkapoikkeamat[],ROW()-ROW(KoulutusJaMatkapoikkeamat[[#Headers],[Elo]]),1),INDEX(KoulutusJaMatkaSuunniteltu[],,1),0),MATCH(KoulutusJaMatkapoikkeamat[[#Headers],[Elo]],KoulutusJaMatkaSuunniteltu[#Headers],0))-INDEX(KoulutusJaMatkaTodellinen[],MATCH(INDEX(KoulutusJaMatkapoikkeamat[],ROW()-ROW(KoulutusJaMatkapoikkeamat[[#Headers],[Elo]]),1),INDEX(KoulutusJaMatkaSuunniteltu[],,1),0),MATCH(KoulutusJaMatkapoikkeamat[[#Headers],[Elo]],KoulutusJaMatkaTodellinen[#Headers],0))","v":{"v":2000,"d":"2,000.00 €"}},{"$f":"INDEX(KoulutusJaMatkaSuunniteltu[],MATCH(INDEX(KoulutusJaMatkapoikkeamat[],ROW()-ROW(KoulutusJaMatkapoikkeamat[[#Headers],[Syys]]),1),INDEX(KoulutusJaMatkaSuunniteltu[],,1),0),MATCH(KoulutusJaMatkapoikkeamat[[#Headers],[Syys]],KoulutusJaMatkaSuunniteltu[#Headers],0))-INDEX(KoulutusJaMatkaTodellinen[],MATCH(INDEX(KoulutusJaMatkapoikkeamat[],ROW()-ROW(KoulutusJaMatkapoikkeamat[[#Headers],[Syys]]),1),INDEX(KoulutusJaMatkaSuunniteltu[],,1),0),MATCH(KoulutusJaMatkapoikkeamat[[#Headers],[Syys]],KoulutusJaMatkaTodellinen[#Headers],0))","v":{"v":2000,"d":"2,000.00 €"}},{"$f":"INDEX(KoulutusJaMatkaSuunniteltu[],MATCH(INDEX(KoulutusJaMatkapoikkeamat[],ROW()-ROW(KoulutusJaMatkapoikkeamat[[#Headers],[Loka]]),1),INDEX(KoulutusJaMatkaSuunniteltu[],,1),0),MATCH(KoulutusJaMatkapoikkeamat[[#Headers],[Loka]],KoulutusJaMatkaSuunniteltu[#Headers],0))-INDEX(KoulutusJaMatkaTodellinen[],MATCH(INDEX(KoulutusJaMatkapoikkeamat[],ROW()-ROW(KoulutusJaMatkapoikkeamat[[#Headers],[Loka]]),1),INDEX(KoulutusJaMatkaSuunniteltu[],,1),0),MATCH(KoulutusJaMatkapoikkeamat[[#Headers],[Loka]],KoulutusJaMatkaTodellinen[#Headers],0))","v":{"v":2000,"d":"2,000.00 €"}},{"$f":"INDEX(KoulutusJaMatkaSuunniteltu[],MATCH(INDEX(KoulutusJaMatkapoikkeamat[],ROW()-ROW(KoulutusJaMatkapoikkeamat[[#Headers],[Marras]]),1),INDEX(KoulutusJaMatkaSuunniteltu[],,1),0),MATCH(KoulutusJaMatkapoikkeamat[[#Headers],[Marras]],KoulutusJaMatkaSuunniteltu[#Headers],0))-INDEX(KoulutusJaMatkaTodellinen[],MATCH(INDEX(KoulutusJaMatkapoikkeamat[],ROW()-ROW(KoulutusJaMatkapoikkeamat[[#Headers],[Marras]]),1),INDEX(KoulutusJaMatkaSuunniteltu[],,1),0),MATCH(KoulutusJaMatkapoikkeamat[[#Headers],[Marras]],KoulutusJaMatkaTodellinen[#Headers],0))","v":{"v":2000,"d":"2,000.00 €"}},{"$f":"INDEX(KoulutusJaMatkaSuunniteltu[],MATCH(INDEX(KoulutusJaMatkapoikkeamat[],ROW()-ROW(KoulutusJaMatkapoikkeamat[[#Headers],[Joulu]]),1),INDEX(KoulutusJaMatkaSuunniteltu[],,1),0),MATCH(KoulutusJaMatkapoikkeamat[[#Headers],[Joulu]],KoulutusJaMatkaSuunniteltu[#Headers],0))-INDEX(KoulutusJaMatkaTodellinen[],MATCH(INDEX(KoulutusJaMatkapoikkeamat[],ROW()-ROW(KoulutusJaMatkapoikkeamat[[#Headers],[Joulu]]),1),INDEX(KoulutusJaMatkaSuunniteltu[],,1),0),MATCH(KoulutusJaMatkapoikkeamat[[#Headers],[Joulu]],KoulutusJaMatkaTodellinen[#Headers],0))","v":{"v":2000,"d":"2,000.00 €"}},{"$f":"SUM(KoulutusJaMatkapoikkeamat[[#This Row],[Tammi]:[Joulu]])","v":{"v":13700,"d":"13,700.00 €"}}]
[null,"Välisumma",{"$f":"SUBTOTAL(109,KoulutusJaMatkapoikkeamat[Tammi])","v":{"v":1200,"d":"1,200.00 €"}},{"$f":"SUBTOTAL(109,KoulutusJaMatkapoikkeamat[Helmi])","v":{"v":-600,"d":"-600.00 €"}},{"$f":"SUBTOTAL(109,KoulutusJaMatkapoikkeamat[Maalis])","v":{"v":1200,"d":"1,200.00 €"}},{"$f":"SUBTOTAL(109,KoulutusJaMatkapoikkeamat[Huhti])","v":{"v":1200,"d":"1,200.00 €"}},{"$f":"SUBTOTAL(109,KoulutusJaMatkapoikkeamat[Touko])","v":{"v":2000,"d":"2,000.00 €"}},{"$f":"SUBTOTAL(109,KoulutusJaMatkapoikkeamat[Kesä])","v":{"v":-2300,"d":"-2,300.00 €"}},{"$f":"SUBTOTAL(109,KoulutusJaMatkapoikkeamat[Heinä])","v":{"v":4000,"d":"4,000.00 €"}},{"$f":"SUBTOTAL(109,KoulutusJaMatkapoikkeamat[Elo])","v":{"v":4000,"d":"4,000.00 €"}},{"$f":"SUBTOTAL(109,KoulutusJaMatkapoikkeamat[Syys])","v":{"v":4000,"d":"4,000.00 €"}},{"$f":"SUBTOTAL(109,KoulutusJaMatkapoikkeamat[Loka])","v":{"v":4000,"d":"4,000.00 €"}},{"$f":"SUBTOTAL(109,KoulutusJaMatkapoikkeamat[Marras])","v":{"v":4000,"d":"4,000.00 €"}},{"$f":"SUBTOTAL(109,KoulutusJaMatkapoikkeamat[Joulu])","v":{"v":4000,"d":"4,000.00 €"}},{"$f":"SUBTOTAL(109,KoulutusJaMatkapoikkeamat[VUOSI])","v":{"v":26700,"d":"26,700.00 €"}}]
[]
["Kustannuspoikkeamat lasketaan automaattisesti Kokonaispoikkeamat-taulukkoon oikealla olevasta solusta aloittaen.","YHTEENSÄ","Tammi","Helmi","Maalis","Huhti","Touko","Kesä","Heinä","Elo","Syys","Loka","Marras","Joulu","Vuosi"]
[null,"Kuukausittaiset todelliset kulut",{"$f":"KoulutusJaMatkapoikkeamat[[#Totals],[Tammi]]+Markkinointipoikkeamat[[#Totals],[Tammi]]+Toimistopoikkeamat[[#Totals],[Tammi]]+Työntekijäpoikkeamat[[#Totals],[Tammi]]","v":{"v":1738,"d":"1,738.00 €"}},{"$f":"KoulutusJaMatkapoikkeamat[[#Totals],[Helmi]]+Markkinointipoikkeamat[[#Totals],[Helmi]]+Toimistopoikkeamat[[#Totals],[Helmi]]+Työntekijäpoikkeamat[[#Totals],[Helmi]]","v":{"v":-984,"d":"-984.00 €"}},{"$f":"KoulutusJaMatkapoikkeamat[[#Totals],[Maalis]]+Markkinointipoikkeamat[[#Totals],[Maalis]]+Toimistopoikkeamat[[#Totals],[Maalis]]+Työntekijäpoikkeamat[[#Totals],[Maalis]]","v":{"v":1255,"d":"1,255.00 €"}},{"$f":"KoulutusJaMatkapoikkeamat[[#Totals],[Huhti]]+Markkinointipoikkeamat[[#Totals],[Huhti]]+Toimistopoikkeamat[[#Totals],[Huhti]]+Työntekijäpoikkeamat[[#Totals],[Huhti]]","v":{"v":301,"d":"301.00 €"}},{"$f":"KoulutusJaMatkapoikkeamat[[#Totals],[Touko]]+Markkinointipoikkeamat[[#Totals],[Touko]]+Toimistopoikkeamat[[#Totals],[Touko]]+Työntekijäpoikkeamat[[#Totals],[Touko]]","v":{"v":1440,"d":"1,440.00 €"}},{"$f":"KoulutusJaMatkapoikkeamat[[#Totals],[Kesä]]+Markkinointipoikkeamat[[#Totals],[Kesä]]+Toimistopoikkeamat[[#Totals],[Kesä]]+Työntekijäpoikkeamat[[#Totals],[Kesä]]","v":{"v":-3744,"d":"-3,744.00 €"}},{"$f":"KoulutusJaMatkapoikkeamat[[#Totals],[Heinä]]+Markkinointipoikkeamat[[#Totals],[Heinä]]+Toimistopoikkeamat[[#Totals],[Heinä]]+Työntekijäpoikkeamat[[#Totals],[Heinä]]","v":{"v":134695,"d":"134,695.00 €"}},{"$f":"KoulutusJaMatkapoikkeamat[[#Totals],[Elo]]+Markkinointipoikkeamat[[#Totals],[Elo]]+Toimistopoikkeamat[[#Totals],[Elo]]+Työntekijäpoikkeamat[[#Totals],[Elo]]","v":{"v":138918,"d":"138,918.00 €"}},{"$f":"KoulutusJaMatkapoikkeamat[[#Totals],[Syys]]+Markkinointipoikkeamat[[#Totals],[Syys]]+Toimistopoikkeamat[[#Totals],[Syys]]+Työntekijäpoikkeamat[[#Totals],[Syys]]","v":{"v":135918,"d":"135,918.00 €"}},{"$f":"KoulutusJaMatkapoikkeamat[[#Totals],[Loka]]+Markkinointipoikkeamat[[#Totals],[Loka]]+Toimistopoikkeamat[[#Totals],[Loka]]+Työntekijäpoikkeamat[[#Totals],[Loka]]","v":{"v":140918,"d":"140,918.00 €"}},{"$f":"KoulutusJaMatkapoikkeamat[[#Totals],[Marras]]+Markkinointipoikkeamat[[#Totals],[Marras]]+Toimistopoikkeamat[[#Totals],[Marras]]+Työntekijäpoikkeamat[[#Totals],[Marras]]","v":{"v":136218,"d":"136,218.00 €"}},{"$f":"KoulutusJaMatkapoikkeamat[[#Totals],[Joulu]]+Markkinointipoikkeamat[[#Totals],[Joulu]]+Toimistopoikkeamat[[#Totals],[Joulu]]+Työntekijäpoikkeamat[[#Totals],[Joulu]]","v":{"v":140018,"d":"140,018.00 €"}},{"$f":"KoulutusJaMatkapoikkeamat[[#Totals],[VUOSI]]+Markkinointipoikkeamat[[#Totals],[VUOSI]]+Toimistopoikkeamat[[#Totals],[VUOSI]]+Työntekijäpoikkeamat[[#Totals],[VUOSI]]","v":{"v":826691,"d":"826,691.00 €"}}]
[null,"YHTEENSÄ Todelliset kulut",{"$f":"SUM($C$36:C36)","v":{"v":1738,"d":"1,738.00 €"}},{"$f":"SUM($C$36:D36)","v":{"v":754,"d":"754.00 €"}},{"$f":"SUM($C$36:E36)","v":{"v":2009,"d":"2,009.00 €"}},{"$f":"SUM($C$36:F36)","v":{"v":2310,"d":"2,310.00 €"}},{"$f":"SUM($C$36:G36)","v":{"v":3750,"d":"3,750.00 €"}},{"$f":"SUM($C$36:H36)","v":{"v":6,"d":"6.00 €"}},{"$f":"SUM($C$36:I36)","v":{"v":134701,"d":"134,701.00 €"}},{"$f":"SUM($C$36:J36)","v":{"v":273619,"d":"273,619.00 €"}},{"$f":"SUM($C$36:K36)","v":{"v":409537,"d":"409,537.00 €"}},{"$f":"SUM($C$36:L36)","v":{"v":550455,"d":"550,455.00 €"}},{"$f":"SUM($C$36:M36)","v":{"v":686673,"d":"686,673.00 €"}},{"$f":"SUM($C$36:N36)","v":{"v":826691,"d":"826,691.00 €"}}]

{"sheet":"KULUANALYYSI","index":4,"n_rows":14,"n_cols":16,"rows_kept":14,"merged":[[1,1,2,3],[1,5,1,6],[2,4,2,6],[11,1,11,2],[11,3,11,5],[13,1,36,5]]}
["Vuosittaiset suunnitellut ja todelliset kulut, kustannuspoikkeamat ja kustannuspoikkeaman prosenttiluku automaattisesti tämän laskentataulukon vastaaviin kululuokkiin. Tämän sarakkeen soluissa on hyödyllisiä ohjeita tämän laskentataulukon käyttöön. Aloita siirtymällä nuolella alaspäin. ",{"$nulls":5}," ",{"$nulls":8}," "]
["Yrityksen nimi päivitetään automaattisesti oikealla olevaan soluun. Lisää logo soluun F2.",{"$f":"'SUUNNITELLUT KULUT'!B2:D3","v":"Yrityksen nimi"},{"$nulls":3},"Logon paikkamerkki on tässä solussa."]
["Tämän laskentataulukon otsikko on solussa E3. Seuraava ohje on solussa A5.",{"$nulls":3},{"$f":"laskentataulukon_otsikko","v":"Yksityiskohtaiset kuluarviot"}]
[]
["Suunnitellut kulut, todelliset kulut, kustannuspoikkeamat ja kustannuspoikkeaman prosenttiluku automaattisesti Analyysi-taulukkoon oikealla olevasta solusta aloittaen. Seuraava ohje on solussa A12.","Kululuokka","Suunnitellut kulut","Todelliset kulut","Kustannuspoikkeamat","Kustannuspoikkeaman prosenttiluku"]
[null,"Työntekijäkulut",{"$f":"TyöntekijäSuunniteltu[[#Totals],[VUOSI]]","v":{"v":1355090,"d":"1,355,090.00 €"}},{"$f":"TyöntekijäTodellinen[[#Totals],[VUOSI]]","v":{"v":659130,"d":"659,130.00 €"}},{"$f":"C6-D6","v":{"v":695960,"d":"695,960.00 €"}},{"$f":"E6/C6","v":{"v":0.5135895032802249,"d":"51%"}}]
[null,{"$f":"'SUUNNITELLUT KULUT'!B10","v":"Toimistokulut"},{"$f":"ToimistoSuunniteltu[[#Totals],[VUOSI]]","v":{"v":138740,"d":"138,740.00 €"}},{"$f":"ToimistoTodellinen[[#Totals],[VUOSI]]","v":{"v":69350,"d":"69,350.00 €"}},{"$f":"C7-D7","v":{"v":69390,"d":"69,390.00 €"}},{"$f":"E7/C7","v":{"v":0.5001441545336601,"d":"50%"}}]
[null,{"$f":"'SUUNNITELLUT KULUT'!B21","v":"Markkinointikulut"},{"$f":"MarkkinointiSuunniteltu[[#Totals],[VUOSI]]","v":{"v":67800,"d":"67,800.00 €"}},{"$f":"MarkkinointiTodellinen[[#Totals],[VUOSI]]","v":{"v":33159,"d":"33,159.00 €"}},{"$f":"C8-D8","v":{"v":34641,"d":"34,641.00 €"}},{"$f":"E8/C8","v":{"v":0.510929203539823,"d":"51%"}}]
[null,{"$f":"'SUUNNITELLUT KULUT'!B30","v":"Koulutus/matka"},{"$f":"KoulutusJaMatkaSuunniteltu[[#Totals],[VUOSI]]","v":{"v":48000,"d":"48,000.00 €"}},{"$f":"KoulutusJaMatkaTodellinen[[#Totals],[VUOSI]]","v":{"v":21300,"d":"21,300.00 €"}},{"$f":"C9-D9","v":{"v":26700,"d":"26,700.00 €"}},{"$f":"E9/C9","v":{"v":0.55625,"d":"56%"}}]
[null,{"$f":"'SUUNNITELLUT KULUT'!B35","v":"SUMMA"},{"$f":"'SUUNNITELLUT KULUT'!O36","v":{"v":1609630,"d":"1,609,630.00 €"}},{"$f":"'TODELLISET KULUT'!O36","v":{"v":782939,"d":"782,939.00 €"}},{"$f":"C10-D10","v":{"v":826691,"d":"826,691.00 €"}},{"$f":"E10/C10","v":{"v":0.5135907009685455,"d":"51%"}}]
[]
["Suunnitellut kulut -ympyräkaavio on oikealla olevassa solussa ja Todelliset kulut -ympyräkaavio solussa D12. Seuraava ohje on solussa A14.","Suunnitellut kulut kululuokittain esittävä ympyräkaavio on tässä solussa.",null,"Todelliset kulut kululuokittain esittävä ympyräkaavio on tässä solussa."]
[]
["Suunniteltu ja todellinen kulut sekä poikkeama näkyvät Kuukausittaiset kulut -kaaviossa oikealla olevassa solussa."]